Trans No.,Service Area Categorisation,Service Division Categorisation,Responsible Unit,Unit Code,Expenses Type,Expenses Sub Type,Expense Code,Narrative,Amount,Invoice Date,CAP/REV,SupplierName
1,Childrens & Education Services,Leaving Care Services,"MASH, FR and VCT NRTPF                  ",W1CE39,Third Party Payments          ,Private Contractors           ,EH04,Accommodation Based Support             ,925.00,31/07/2015,REV,RESIDENZA PROPERTIES LTD      
2,Childrens & Education Services,Leaving Care Services,"MASH, FR and VCT NRTPF                  ",W1CE39,Third Party Payments          ,Private Contractors           ,EH04,Accommodation Based Support             ,925.00,31/07/2015,REV,RESIDENZA PROPERTIES LTD      
3,Childrens & Education Services,Leaving Care Services,"MASH, FR and VCT NRTPF                  ",W1CE39,Third Party Payments          ,Private Contractors           ,EH01,Miscellaneous Contrct Services          ,626.00,31/07/2015,REV,ST THOMAS OF CANTERBURY PRIMAR
4,Adult Social Care,LD u65 Home Care,LD Home Care External,W2KB49,Third Party Payments          ,Private Contractors           ,EH01,Miscellaneous Agency Services           ,689.25,28/07/2015,REV,ABLE COMMUNITY CARE LTD       
5,Adult Social Care,LD u65 Home Care,LD Home Care External,W2KB49,Third Party Payments          ,Private Contractors           ,EH01,Miscellaneous Agency Services           ,689.25,28/07/2015,REV,ABLE COMMUNITY CARE LTD       
6,Adult Social Care,LD u65 Home Care,LD Home Care External,W2KB49,Third Party Payments          ,Private Contractors           ,EH01,Miscellaneous Agency Services           ,700.00,28/07/2015,REV,ABLE COMMUNITY CARE LTD       
7,Adult Social Care,LD u65 Home Care,LD Home Care External,W2KB49,Third Party Payments          ,Private Contractors           ,EH01,Miscellaneous Agency Services           ,700.00,28/07/2015,REV,ABLE COMMUNITY CARE LTD       
8,Adult Social Care,LD u65 Home Care,LD Home Care External,W2KB49,Third Party Payments          ,Private Contractors           ,EH01,Miscellaneous Agency Services           ,751.24,22/04/2015,REV,UNITED RESPONSE               
9,Adult Social Care,LD u65 Home Care,LD Home Care External,W2KB49,Third Party Payments          ,Private Contractors           ,EH01,Miscellaneous Agency Services           ,788.61,22/04/2015,REV,UNITED RESPONSE               
10,Adult Social Care,LD u65 Home Care,LD Home Care External,W2KB49,Third Party Payments          ,Private Contractors           ,EH01,Miscellaneous Agency Services           ,673.75,22/04/2015,REV,UNITED RESPONSE               
11,Adult Social Care,LD u65 Home Care,LD Home Care External,W2KB49,Third Party Payments          ,Private Contractors           ,EH01,Miscellaneous Agency Services           ,850.87,22/04/2015,REV,UNITED RESPONSE               
12,Adult Social Care,LD u65 Home Care,LD Home Care External,W2KB49,Third Party Payments          ,Private Contractors           ,EH01,Miscellaneous Agency Services           ,832.42,22/04/2015,REV,UNITED RESPONSE               
13,Adult Social Care,LD u65 Home Care,LD Home Care External,W2KB49,Third Party Payments          ,Private Contractors           ,EH01,Miscellaneous Agency Services           ,939.43,22/04/2015,REV,UNITED RESPONSE               
14,Adult Social Care,LD u65 Home Care,LD Home Care External,W2KB49,Third Party Payments          ,Private Contractors           ,EH01,Miscellaneous Agency Services           ,751.24,22/04/2015,REV,UNITED RESPONSE               
15,Adult Social Care,LD u65 Home Care,LD Home Care External,W2KB49,Third Party Payments          ,Private Contractors           ,EH01,Miscellaneous Agency Services           ,788.61,22/04/2015,REV,UNITED RESPONSE               
16,Adult Social Care,LD u65 Home Care,LD Home Care External,W2KB49,Third Party Payments          ,Private Contractors           ,EH01,Miscellaneous Agency Services           ,673.75,22/04/2015,REV,UNITED RESPONSE               
17,Adult Social Care,LD u65 Home Care,LD Home Care External,W2KB49,Third Party Payments          ,Private Contractors           ,EH01,Miscellaneous Agency Services           ,939.43,22/04/2015,REV,UNITED RESPONSE               
18,Adult Social Care,LD u65 Home Care,LD Home Care External,W2KB49,Third Party Payments          ,Private Contractors           ,EH01,Miscellaneous Agency Services           ,832.42,22/04/2015,REV,UNITED RESPONSE               
19,Adult Social Care,LD u65 Home Care,LD Home Care External,W2KB49,Third Party Payments          ,Private Contractors           ,EH01,Miscellaneous Agency Services           ,850.87,22/04/2015,REV,UNITED RESPONSE               
20,Adult Social Care,LD u65 Home Care,LD Home Care External,W2KB49,Third Party Payments          ,Private Contractors           ,EH01,Miscellaneous Agency Services           ,850.87,22/04/2015,REV,UNITED RESPONSE               
21,Adult Social Care,LD u65 Home Care,LD Home Care External,W2KB49,Third Party Payments          ,Private Contractors           ,EH01,Miscellaneous Agency Services           ,832.42,22/04/2015,REV,UNITED RESPONSE               
22,Adult Social Care,LD u65 Home Care,LD Home Care External,W2KB49,Third Party Payments          ,Private Contractors           ,EH01,Miscellaneous Agency Services           ,788.61,22/04/2015,REV,UNITED RESPONSE               
23,Adult Social Care,LD u65 Home Care,LD Home Care External,W2KB49,Third Party Payments          ,Private Contractors           ,EH01,Miscellaneous Agency Services           ,673.75,22/04/2015,REV,UNITED RESPONSE               
24,Adult Social Care,LD u65 Home Care,LD Home Care External,W2KB49,Third Party Payments          ,Private Contractors           ,EH01,Miscellaneous Agency Services           ,751.24,22/04/2015,REV,UNITED RESPONSE               
25,Adult Social Care,LD u65 Home Care,LD Home Care External,W2KB49,Third Party Payments          ,Private Contractors           ,EH01,Miscellaneous Agency Services           ,939.43,22/04/2015,REV,UNITED RESPONSE               
26,Adult Social Care,LD u65 Home Care,LD Home Care External,W2KB49,Third Party Payments          ,Private Contractors           ,EH01,Miscellaneous Agency Services           ,939.43,22/04/2015,REV,UNITED RESPONSE               
27,Adult Social Care,LD u65 Home Care,LD Home Care External,W2KB49,Third Party Payments          ,Private Contractors           ,EH01,Miscellaneous Agency Services           ,751.24,22/04/2015,REV,UNITED RESPONSE               
28,Adult Social Care,LD u65 Home Care,LD Home Care External,W2KB49,Third Party Payments          ,Private Contractors           ,EH01,Miscellaneous Agency Services           ,850.87,22/04/2015,REV,UNITED RESPONSE               
29,Adult Social Care,LD u65 Home Care,LD Home Care External,W2KB49,Third Party Payments          ,Private Contractors           ,EH01,Miscellaneous Agency Services           ,788.61,22/04/2015,REV,UNITED RESPONSE               
30,Adult Social Care,LD u65 Home Care,LD Home Care External,W2KB49,Third Party Payments          ,Private Contractors           ,EH01,Miscellaneous Agency Services           ,673.75,22/04/2015,REV,UNITED RESPONSE               
31,Adult Social Care,LD u65 Home Care,LD Home Care External,W2KB49,Third Party Payments          ,Private Contractors           ,EH01,Miscellaneous Agency Services           ,832.42,22/04/2015,REV,UNITED RESPONSE               
32,Adult Social Care,LD u65 Home Care,LD Home Care External,W2KB49,Third Party Payments          ,Private Contractors           ,EH01,Miscellaneous Agency Services           ,850.87,12/05/2015,REV,UNITED RESPONSE               
33,Adult Social Care,LD u65 Home Care,LD Home Care External,W2KB49,Third Party Payments          ,Private Contractors           ,EH01,Miscellaneous Agency Services           ,751.24,12/05/2015,REV,UNITED RESPONSE               
34,Adult Social Care,LD u65 Home Care,LD Home Care External,W2KB49,Third Party Payments          ,Private Contractors           ,EH01,Miscellaneous Agency Services           ,673.75,12/05/2015,REV,UNITED RESPONSE               
35,Adult Social Care,LD u65 Home Care,LD Home Care External,W2KB49,Third Party Payments          ,Private Contractors           ,EH01,Miscellaneous Agency Services           ,788.61,12/05/2015,REV,UNITED RESPONSE               
36,Adult Social Care,LD u65 Home Care,LD Home Care External,W2KB49,Third Party Payments          ,Private Contractors           ,EH01,Miscellaneous Agency Services           ,939.43,12/05/2015,REV,UNITED RESPONSE               
37,Adult Social Care,LD u65 Home Care,LD Home Care External,W2KB49,Third Party Payments          ,Private Contractors           ,EH01,Miscellaneous Agency Services           ,832.42,12/05/2015,REV,UNITED RESPONSE               
38,Adult Social Care,LD u65 Home Care,LD Home Care External,W2KB49,Third Party Payments          ,Private Contractors           ,EH01,Miscellaneous Agency Services           ,850.87,12/05/2015,REV,UNITED RESPONSE               
39,Adult Social Care,LD u65 Home Care,LD Home Care External,W2KB49,Third Party Payments          ,Private Contractors           ,EH01,Miscellaneous Agency Services           ,673.75,12/05/2015,REV,UNITED RESPONSE               
40,Adult Social Care,LD u65 Home Care,LD Home Care External,W2KB49,Third Party Payments          ,Private Contractors           ,EH01,Miscellaneous Agency Services           ,751.24,12/05/2015,REV,UNITED RESPONSE               
41,Adult Social Care,LD u65 Home Care,LD Home Care External,W2KB49,Third Party Payments          ,Private Contractors           ,EH01,Miscellaneous Agency Services           ,939.43,12/05/2015,REV,UNITED RESPONSE               
42,Adult Social Care,LD u65 Home Care,LD Home Care External,W2KB49,Third Party Payments          ,Private Contractors           ,EH01,Miscellaneous Agency Services           ,832.42,12/05/2015,REV,UNITED RESPONSE               
43,Adult Social Care,LD u65 Home Care,LD Home Care External,W2KB49,Third Party Payments          ,Private Contractors           ,EH01,Miscellaneous Agency Services           ,788.61,12/05/2015,REV,UNITED RESPONSE               
44,Adult Social Care,LD u65 Home Care,LD Home Care External,W2KB49,Third Party Payments          ,Private Contractors           ,EH01,Miscellaneous Agency Services           ,832.42,12/05/2015,REV,UNITED RESPONSE               
45,Adult Social Care,LD u65 Home Care,LD Home Care External,W2KB49,Third Party Payments          ,Private Contractors           ,EH01,Miscellaneous Agency Services           ,788.61,12/05/2015,REV,UNITED RESPONSE               
46,Adult Social Care,LD u65 Home Care,LD Home Care External,W2KB49,Third Party Payments          ,Private Contractors           ,EH01,Miscellaneous Agency Services           ,673.75,12/05/2015,REV,UNITED RESPONSE               
47,Adult Social Care,LD u65 Home Care,LD Home Care External,W2KB49,Third Party Payments          ,Private Contractors           ,EH01,Miscellaneous Agency Services           ,751.24,12/05/2015,REV,UNITED RESPONSE               
48,Adult Social Care,LD u65 Home Care,LD Home Care External,W2KB49,Third Party Payments          ,Private Contractors           ,EH01,Miscellaneous Agency Services           ,939.43,12/05/2015,REV,UNITED RESPONSE               
49,Adult Social Care,LD u65 Home Care,LD Home Care External,W2KB49,Third Party Payments          ,Private Contractors           ,EH01,Miscellaneous Agency Services           ,850.87,12/05/2015,REV,UNITED RESPONSE               
50,Adult Social Care,LD u65 Home Care,LD Home Care External,W2KB49,Third Party Payments          ,Private Contractors           ,EH01,Miscellaneous Agency Services           ,939.43,12/05/2015,REV,UNITED RESPONSE               
51,Adult Social Care,LD u65 Home Care,LD Home Care External,W2KB49,Third Party Payments          ,Private Contractors           ,EH01,Miscellaneous Agency Services           ,751.24,12/05/2015,REV,UNITED RESPONSE               
52,Adult Social Care,LD u65 Home Care,LD Home Care External,W2KB49,Third Party Payments          ,Private Contractors           ,EH01,Miscellaneous Agency Services           ,832.42,12/05/2015,REV,UNITED RESPONSE               
53,Adult Social Care,LD u65 Home Care,LD Home Care External,W2KB49,Third Party Payments          ,Private Contractors           ,EH01,Miscellaneous Agency Services           ,673.75,12/05/2015,REV,UNITED RESPONSE               
54,Adult Social Care,LD u65 Home Care,LD Home Care External,W2KB49,Third Party Payments          ,Private Contractors           ,EH01,Miscellaneous Agency Services           ,788.61,12/05/2015,REV,UNITED RESPONSE               
55,Adult Social Care,LD u65 Home Care,LD Home Care External,W2KB49,Third Party Payments          ,Private Contractors           ,EH01,Miscellaneous Agency Services           ,850.87,12/05/2015,REV,UNITED RESPONSE               
56,Adult Social Care,LD u65 Home Care,LD Home Care External,W2KB49,Third Party Payments          ,Private Contractors           ,EH01,Miscellaneous Agency Services           ,751.24,31/05/2015,REV,UNITED RESPONSE               
57,Adult Social Care,LD u65 Home Care,LD Home Care External,W2KB49,Third Party Payments          ,Private Contractors           ,EH01,Miscellaneous Agency Services           ,788.61,31/05/2015,REV,UNITED RESPONSE               
58,Adult Social Care,LD u65 Home Care,LD Home Care External,W2KB49,Third Party Payments          ,Private Contractors           ,EH01,Miscellaneous Agency Services           ,939.43,31/05/2015,REV,UNITED RESPONSE               
59,Adult Social Care,LD u65 Home Care,LD Home Care External,W2KB49,Third Party Payments          ,Private Contractors           ,EH01,Miscellaneous Agency Services           ,850.87,31/05/2015,REV,UNITED RESPONSE               
60,Adult Social Care,LD u65 Home Care,LD Home Care External,W2KB49,Third Party Payments          ,Private Contractors           ,EH01,Miscellaneous Agency Services           ,832.42,31/05/2015,REV,UNITED RESPONSE               
61,Adult Social Care,LD u65 Home Care,LD Home Care External,W2KB49,Third Party Payments          ,Private Contractors           ,EH01,Miscellaneous Agency Services           ,673.75,31/05/2015,REV,UNITED RESPONSE               
62,Adult Social Care,LD u65 Home Care,LD Home Care External,W2KB49,Third Party Payments          ,Private Contractors           ,EH01,Miscellaneous Agency Services           ,751.24,31/05/2015,REV,UNITED RESPONSE               
63,Adult Social Care,LD u65 Home Care,LD Home Care External,W2KB49,Third Party Payments          ,Private Contractors           ,EH01,Miscellaneous Agency Services           ,788.61,31/05/2015,REV,UNITED RESPONSE               
64,Adult Social Care,LD u65 Home Care,LD Home Care External,W2KB49,Third Party Payments          ,Private Contractors           ,EH01,Miscellaneous Agency Services           ,673.75,31/05/2015,REV,UNITED RESPONSE               
65,Adult Social Care,LD u65 Home Care,LD Home Care External,W2KB49,Third Party Payments          ,Private Contractors           ,EH01,Miscellaneous Agency Services           ,939.43,31/05/2015,REV,UNITED RESPONSE               
66,Adult Social Care,LD u65 Home Care,LD Home Care External,W2KB49,Third Party Payments          ,Private Contractors           ,EH01,Miscellaneous Agency Services           ,832.42,31/05/2015,REV,UNITED RESPONSE               
67,Adult Social Care,LD u65 Home Care,LD Home Care External,W2KB49,Third Party Payments          ,Private Contractors           ,EH01,Miscellaneous Agency Services           ,850.87,31/05/2015,REV,UNITED RESPONSE               
68,Adult Social Care,LD u65 Home Care,LD Home Care External,W2KB49,Third Party Payments          ,Private Contractors           ,EH01,Miscellaneous Agency Services           ,850.87,31/05/2015,REV,UNITED RESPONSE               
69,Adult Social Care,LD u65 Home Care,LD Home Care External,W2KB49,Third Party Payments          ,Private Contractors           ,EH01,Miscellaneous Agency Services           ,832.42,31/05/2015,REV,UNITED RESPONSE               
70,Adult Social Care,LD u65 Home Care,LD Home Care External,W2KB49,Third Party Payments          ,Private Contractors           ,EH01,Miscellaneous Agency Services           ,788.61,31/05/2015,REV,UNITED RESPONSE               
71,Adult Social Care,LD u65 Home Care,LD Home Care External,W2KB49,Third Party Payments          ,Private Contractors           ,EH01,Miscellaneous Agency Services           ,673.75,31/05/2015,REV,UNITED RESPONSE               
72,Adult Social Care,LD u65 Home Care,LD Home Care External,W2KB49,Third Party Payments          ,Private Contractors           ,EH01,Miscellaneous Agency Services           ,751.24,31/05/2015,REV,UNITED RESPONSE               
73,Adult Social Care,LD u65 Home Care,LD Home Care External,W2KB49,Third Party Payments          ,Private Contractors           ,EH01,Miscellaneous Agency Services           ,939.43,31/05/2015,REV,UNITED RESPONSE               
74,Adult Social Care,LD u65 Home Care,LD Home Care External,W2KB49,Third Party Payments          ,Private Contractors           ,EH01,Miscellaneous Agency Services           ,939.43,31/05/2015,REV,UNITED RESPONSE               
75,Adult Social Care,LD u65 Home Care,LD Home Care External,W2KB49,Third Party Payments          ,Private Contractors           ,EH01,Miscellaneous Agency Services           ,751.24,31/05/2015,REV,UNITED RESPONSE               
76,Adult Social Care,LD u65 Home Care,LD Home Care External,W2KB49,Third Party Payments          ,Private Contractors           ,EH01,Miscellaneous Agency Services           ,850.87,31/05/2015,REV,UNITED RESPONSE               
77,Adult Social Care,LD u65 Home Care,LD Home Care External,W2KB49,Third Party Payments          ,Private Contractors           ,EH01,Miscellaneous Agency Services           ,788.61,31/05/2015,REV,UNITED RESPONSE               
78,Adult Social Care,LD u65 Home Care,LD Home Care External,W2KB49,Third Party Payments          ,Private Contractors           ,EH01,Miscellaneous Agency Services           ,673.75,31/05/2015,REV,UNITED RESPONSE               
79,Adult Social Care,LD u65 Home Care,LD Home Care External,W2KB49,Third Party Payments          ,Private Contractors           ,EH01,Miscellaneous Agency Services           ,832.42,31/05/2015,REV,UNITED RESPONSE               
80,Adult Social Care,LD u65 Home Care,LD Home Care External,W2KB49,Third Party Payments          ,Private Contractors           ,EH01,Miscellaneous Agency Services           ,751.24,31/07/2015,REV,UNITED RESPONSE               
81,Adult Social Care,LD u65 Home Care,LD Home Care External,W2KB49,Third Party Payments          ,Private Contractors           ,EH01,Miscellaneous Agency Services           ,939.43,31/07/2015,REV,UNITED RESPONSE               
82,Adult Social Care,LD u65 Home Care,LD Home Care External,W2KB49,Third Party Payments          ,Private Contractors           ,EH01,Miscellaneous Agency Services           ,832.42,31/07/2015,REV,UNITED RESPONSE               
83,Adult Social Care,LD u65 Home Care,LD Home Care External,W2KB49,Third Party Payments          ,Private Contractors           ,EH01,Miscellaneous Agency Services           ,788.61,31/07/2015,REV,UNITED RESPONSE               
84,Adult Social Care,LD u65 Home Care,LD Home Care External,W2KB49,Third Party Payments          ,Private Contractors           ,EH01,Miscellaneous Agency Services           ,850.87,31/07/2015,REV,UNITED RESPONSE               
85,Adult Social Care,LD u65 Home Care,LD Home Care External,W2KB49,Third Party Payments          ,Private Contractors           ,EH01,Miscellaneous Agency Services           ,673.75,31/07/2015,REV,UNITED RESPONSE               
86,Adult Social Care,LD u65 Home Care,LD Home Care External,W2KB49,Third Party Payments          ,Private Contractors           ,EH01,Miscellaneous Agency Services           ,751.24,31/07/2015,REV,UNITED RESPONSE               
87,Adult Social Care,LD u65 Home Care,LD Home Care External,W2KB49,Third Party Payments          ,Private Contractors           ,EH01,Miscellaneous Agency Services           ,788.61,31/07/2015,REV,UNITED RESPONSE               
88,Adult Social Care,LD u65 Home Care,LD Home Care External,W2KB49,Third Party Payments          ,Private Contractors           ,EH01,Miscellaneous Agency Services           ,673.75,31/07/2015,REV,UNITED RESPONSE               
89,Adult Social Care,LD u65 Home Care,LD Home Care External,W2KB49,Third Party Payments          ,Private Contractors           ,EH01,Miscellaneous Agency Services           ,832.42,31/07/2015,REV,UNITED RESPONSE               
90,Adult Social Care,LD u65 Home Care,LD Home Care External,W2KB49,Third Party Payments          ,Private Contractors           ,EH01,Miscellaneous Agency Services           ,939.43,31/07/2015,REV,UNITED RESPONSE               
91,Adult Social Care,LD u65 Home Care,LD Home Care External,W2KB49,Third Party Payments          ,Private Contractors           ,EH01,Miscellaneous Agency Services           ,850.87,31/07/2015,REV,UNITED RESPONSE               
92,Adult Social Care,LD u65 Home Care,LD Home Care External,W2KB49,Third Party Payments          ,Private Contractors           ,EH01,Miscellaneous Agency Services           ,850.87,31/07/2015,REV,UNITED RESPONSE               
93,Adult Social Care,LD u65 Home Care,LD Home Care External,W2KB49,Third Party Payments          ,Private Contractors           ,EH01,Miscellaneous Agency Services           ,832.42,31/07/2015,REV,UNITED RESPONSE               
94,Adult Social Care,LD u65 Home Care,LD Home Care External,W2KB49,Third Party Payments          ,Private Contractors           ,EH01,Miscellaneous Agency Services           ,788.61,31/07/2015,REV,UNITED RESPONSE               
95,Adult Social Care,LD u65 Home Care,LD Home Care External,W2KB49,Third Party Payments          ,Private Contractors           ,EH01,Miscellaneous Agency Services           ,673.75,31/07/2015,REV,UNITED RESPONSE               
96,Adult Social Care,LD u65 Home Care,LD Home Care External,W2KB49,Third Party Payments          ,Private Contractors           ,EH01,Miscellaneous Agency Services           ,751.24,31/07/2015,REV,UNITED RESPONSE               
97,Adult Social Care,LD u65 Home Care,LD Home Care External,W2KB49,Third Party Payments          ,Private Contractors           ,EH01,Miscellaneous Agency Services           ,939.43,31/07/2015,REV,UNITED RESPONSE               
98,Adult Social Care,LD u65 Home Care,LD Home Care External,W2KB49,Third Party Payments          ,Private Contractors           ,EH01,Miscellaneous Agency Services           ,751.24,31/07/2015,REV,UNITED RESPONSE               
99,Adult Social Care,LD u65 Home Care,LD Home Care External,W2KB49,Third Party Payments          ,Private Contractors           ,EH01,Miscellaneous Agency Services           ,850.87,31/07/2015,REV,UNITED RESPONSE               
100,Adult Social Care,LD u65 Home Care,LD Home Care External,W2KB49,Third Party Payments          ,Private Contractors           ,EH01,Miscellaneous Agency Services           ,788.61,31/07/2015,REV,UNITED RESPONSE               
101,Adult Social Care,LD u65 Home Care,LD Home Care External,W2KB49,Third Party Payments          ,Private Contractors           ,EH01,Miscellaneous Agency Services           ,939.43,31/07/2015,REV,UNITED RESPONSE               
102,Adult Social Care,LD u65 Home Care,LD Home Care External,W2KB49,Third Party Payments          ,Private Contractors           ,EH01,Miscellaneous Agency Services           ,673.75,31/07/2015,REV,UNITED RESPONSE               
103,Adult Social Care,LD u65 Home Care,LD Home Care External,W2KB49,Third Party Payments          ,Private Contractors           ,EH01,Miscellaneous Agency Services           ,832.42,31/07/2015,REV,UNITED RESPONSE               
104,Childrens & Education Services,Leaving Care Services,"MASH, FR and VCT NRTPF                  ",W1CE39,Third Party Payments          ,Private Contractors           ,EH04,Accommodation Based Support             ,1950.00,03/08/2015,REV,EURO HOTELS (CROYDON COURT)LTD
105,Childrens & Education Services,Leaving Care Services,"MASH, FR and VCT NRTPF                  ",W1CE39,Third Party Payments          ,Private Contractors           ,EH04,Accommodation Based Support             ,1500.00,03/08/2015,REV,EURO HOTELS (CROYDON COURT)LTD
106,Childrens & Education Services,Leaving Care Services,"MASH, FR and VCT NRTPF                  ",W1CE39,Third Party Payments          ,Private Contractors           ,EH04,Accommodation Based Support             ,1950.00,03/08/2015,REV,M K ACCOMMODATION             
107,Childrens & Education Services,Leaving Care Services,"MASH, FR and VCT NRTPF                  ",W1CE39,Third Party Payments          ,Private Contractors           ,EH04,Accommodation Based Support             ,2015.00,03/08/2015,REV,M K ACCOMMODATION             
108,Childrens & Education Services,Leaving Care Services,"MASH, FR and VCT NRTPF                  ",W1CE39,Third Party Payments          ,Private Contractors           ,EH04,Accommodation Based Support             ,1650.00,03/08/2015,REV,M K ACCOMMODATION             
109,Childrens & Education Services,Leaving Care Services,"MASH, FR and VCT NRTPF                  ",W1CE39,Third Party Payments          ,Private Contractors           ,EH04,Accommodation Based Support             ,1285.50,03/08/2015,REV,ROOMS & STUDIOS MANAGEMENT    
110,Childrens & Education Services,Leaving Care Services,"MASH, FR and VCT NRTPF                  ",W1CE39,Third Party Payments          ,Private Contractors           ,EH04,Accommodation Based Support             ,1285.50,03/08/2015,REV,ROOMS & STUDIOS MANAGEMENT    
111,Childrens & Education Services,Leaving Care Services,"MASH, FR and VCT NRTPF                  ",W1CE39,Third Party Payments          ,Private Contractors           ,EH04,Accommodation Based Support             ,1285.50,03/08/2015,REV,ROOMS & STUDIOS MANAGEMENT    
112,Childrens & Education Services,Leaving Care Services,"MASH, FR and VCT NRTPF                  ",W1CE39,Third Party Payments          ,Private Contractors           ,EH04,Accommodation Based Support             ,1285.50,03/08/2015,REV,ROOMS & STUDIOS MANAGEMENT    
113,Childrens & Education Services,Leaving Care Services,"MASH, FR and VCT NRTPF                  ",W1CE39,Third Party Payments          ,Private Contractors           ,EH04,Accommodation Based Support             ,1285.50,03/08/2015,REV,ROOMS & STUDIOS MANAGEMENT    
114,Childrens & Education Services,Leaving Care Services,"MASH, FR and VCT NRTPF                  ",W1CE39,Third Party Payments          ,Private Contractors           ,EH04,Accommodation Based Support             ,1285.50,03/08/2015,REV,ROOMS & STUDIOS MANAGEMENT    
115,Childrens & Education Services,Leaving Care Services,"MASH, FR and VCT NRTPF                  ",W1CE39,Third Party Payments          ,Private Contractors           ,EH04,Accommodation Based Support             ,1285.50,03/08/2015,REV,ROOMS & STUDIOS MANAGEMENT    
116,Childrens & Education Services,Family - Other Services,CS Referral & Assessment Sec17,W1CE38,Transfer Payments             ,Schoolchildren/Students       ,FF02,Childr Act 1989 S17                     ,1328.35,03/08/2015,REV,ROOMS & STUDIOS MANAGEMENT    
117,Childrens & Education Services,Leaving Care Services,"MASH, FR and VCT NRTPF                  ",W1CE39,Third Party Payments          ,Private Contractors           ,EH04,Accommodation Based Support             ,1285.50,03/08/2015,REV,ROOMS & STUDIOS MANAGEMENT    
118,Childrens & Education Services,,ART Residential Secure accommo,W1DE58,Third Party Payments          ,Private Contractors           ,EH01,Miscellaneous Agency Services           ,1100.00,30/06/2015,REV,HIGHER LEVEL CARE (HLC) LTD   
119,Childrens & Education Services,,ART Residential Secure accommo,W1DE58,Third Party Payments          ,Private Contractors           ,EH01,Miscellaneous Agency Services           ,1100.00,30/06/2015,REV,HIGHER LEVEL CARE (HLC) LTD   
120,Childrens & Education Services,,ART Residential Secure accommo,W1DE58,Third Party Payments          ,Private Contractors           ,EH01,Miscellaneous Agency Services           ,1100.00,30/06/2015,REV,HIGHER LEVEL CARE (HLC) LTD   
121,Childrens & Education Services,,ART Residential Secure accommo,W1DE58,Third Party Payments          ,Private Contractors           ,EH01,Miscellaneous Agency Services           ,1100.00,30/06/2015,REV,HIGHER LEVEL CARE (HLC) LTD   
122,Adult Social Care,LD u65 Home Care,LD Home Care External,W2KB49,Third Party Payments          ,Private Contractors           ,EH01,Miscellaneous Agency Services           ,656.39,23/07/2015,REV,BEECH HOME CARE SERVICES      
123,Adult Social Care,LD u65 Home Care,LD Home Care External,W2KB49,Third Party Payments          ,Private Contractors           ,EH01,Miscellaneous Agency Services           ,656.39,29/07/2015,REV,BEECH HOME CARE SERVICES      
124,Adult Social Care,LD u65 Home Care,LD Home Care External,W2KB49,Third Party Payments          ,Private Contractors           ,EH01,Miscellaneous Agency Services           ,1004.66,20/07/2015,REV,CHOICE SUPPORT                
125,Adult Social Care,LD u65 Home Care,LD Home Care External,W2KB49,Third Party Payments          ,Private Contractors           ,EH01,Miscellaneous Agency Services           ,1004.66,20/07/2015,REV,CHOICE SUPPORT                
126,Adult Social Care,LD u65 Home Care,LD Home Care External,W2KB49,Third Party Payments          ,Private Contractors           ,EH01,Miscellaneous Agency Services           ,1004.66,20/07/2015,REV,CHOICE SUPPORT                
127,Adult Social Care,LD u65 Home Care,LD Home Care External,W2KB49,Third Party Payments          ,Private Contractors           ,EH01,Miscellaneous Agency Services           ,1004.66,20/07/2015,REV,CHOICE SUPPORT                
128,Adult Social Care,LD u65 Home Care,LD Home Care External,W2KB49,Third Party Payments          ,Private Contractors           ,EH01,Miscellaneous Agency Services           ,617.21,31/07/2015,REV,COMMUNITY HOME CARE PROVIDER  
129,Adult Social Care,LD u65 Home Care,LD Home Care External,W2KB49,Third Party Payments          ,Private Contractors           ,EH01,Miscellaneous Agency Services           ,617.21,31/07/2015,REV,COMMUNITY HOME CARE PROVIDER  
130,Adult Social Care,LD u65 Home Care,LD Home Care External,W2KB49,Third Party Payments          ,Private Contractors           ,EH01,Miscellaneous Agency Services           ,617.21,31/07/2015,REV,COMMUNITY HOME CARE PROVIDER  
131,Adult Social Care,LD u65 Home Care,LD Home Care External,W2KB49,Third Party Payments          ,Private Contractors           ,EH01,Miscellaneous Agency Services           ,617.21,31/07/2015,REV,COMMUNITY HOME CARE PROVIDER  
132,Adult Social Care,PS u65 Nursing Care Placements,PD R/Park-Nursing                       ,W2JM53,Third Party Payments          ,Private Contractors           ,EH01,Miscellaneous Contrct Services          ,950.00,01/08/2015,REV,QUEEN ALEXANDRA HOSPITAL HOME 
133,Adult Social Care,PS u65 Nursing Care Placements,PD R/Park-Nursing                       ,W2JM53,Third Party Payments          ,Private Contractors           ,EH01,Miscellaneous Contrct Services          ,950.00,01/08/2015,REV,QUEEN ALEXANDRA HOSPITAL HOME 
134,Adult Social Care,PS u65 Nursing Care Placements,PD R/Park-Nursing                       ,W2JM53,Third Party Payments          ,Private Contractors           ,EH01,Miscellaneous Contrct Services          ,950.00,01/08/2015,REV,QUEEN ALEXANDRA HOSPITAL HOME 
135,Adult Social Care,PS u65 Nursing Care Placements,PD R/Park-Nursing                       ,W2JM53,Third Party Payments          ,Private Contractors           ,EH01,Miscellaneous Contrct Services          ,950.00,01/08/2015,REV,QUEEN ALEXANDRA HOSPITAL HOME 
136,Central Services,Council tax collection,Local Taxation Services,E02100,Supplies & Services           ,Services                      ,DF11,Counsel's Fees                          ,1643.31,04/08/2015,REV,HMCTS                         
137,Childrens & Education Services,Leaving Care Services,"MASH, FR and VCT NRTPF                  ",W1CE39,Third Party Payments          ,Private Contractors           ,EH04,Accommodation Based Support             ,1285.50,04/08/2015,REV,ROOMS & STUDIOS MANAGEMENT    
138,Childrens & Education Services,Leaving Care Services,"MASH, FR and VCT NRTPF                  ",W1CE39,Third Party Payments          ,Private Contractors           ,EH04,Accommodation Based Support             ,1285.50,04/08/2015,REV,ROOMS & STUDIOS MANAGEMENT    
139,Adult Social Care,LD u65 Direct Payments,LD Direct Payment Scheme,W2KB36,Third Party Payments          ,Private Contractors           ,EH73,Direct Payments                         ,960.00,05/08/2015,REV,REDACTED
140,Adult Social Care,PS u65 Residentl Care Placemnt,PD EAST TEAM-Residential,W2JJ55,Third Party Payments          ,Private Contractors           ,EH01,Miscellaneous Agency Services           ,2096.21,28/07/2015,REV,RNID                          
141,Adult Social Care,PS u65 Residentl Care Placemnt,PD EAST TEAM-Residential,W2JJ55,Third Party Payments          ,Private Contractors           ,EH01,Miscellaneous Agency Services           ,2096.21,28/07/2015,REV,RNID                          
142,Adult Social Care,PS u65 Residentl Care Placemnt,PD EAST TEAM-Residential,W2JJ55,Third Party Payments          ,Private Contractors           ,EH01,Miscellaneous Agency Services           ,2096.21,28/07/2015,REV,RNID                          
143,Adult Social Care,PS u65 Residentl Care Placemnt,PD EAST TEAM-Residential,W2JJ55,Third Party Payments          ,Private Contractors           ,EH01,Miscellaneous Agency Services           ,2096.21,28/07/2015,REV,RNID                          
144,Childrens & Education Services,Family - Direct Payments,CS Direct Payments,W1CF36,Third Party Payments          ,Private Contractors           ,EH73,Direct Payments                         ,656.00,06/08/2015,REV,REDACTED
145,Adult Social Care,MH u65 Nursing Care Placements,MH Nursing Care - Morden,W2HB53,Third Party Payments          ,Private Contractors           ,EH01,Miscellaneous Agency Services           ,679.13,01/08/2015,REV,CARE UNLIMITED                
146,Adult Social Care,MH u65 Nursing Care Placements,MH Nursing Care - Morden,W2HB53,Third Party Payments          ,Private Contractors           ,EH01,Miscellaneous Agency Services           ,679.13,01/08/2015,REV,CARE UNLIMITED                
147,Adult Social Care,MH u65 Nursing Care Placements,MH Nursing Care - Morden,W2HB53,Third Party Payments          ,Private Contractors           ,EH01,Miscellaneous Agency Services           ,679.13,01/08/2015,REV,CARE UNLIMITED                
148,Adult Social Care,MH u65 Nursing Care Placements,MH Nursing Care - Morden,W2HB53,Third Party Payments          ,Private Contractors           ,EH01,Miscellaneous Agency Services           ,679.13,01/08/2015,REV,CARE UNLIMITED                
149,Adult Social Care,LD u65 Home Care,LD Home Care External,W2KB49,Third Party Payments          ,Private Contractors           ,EH01,Miscellaneous Agency Services           ,656.39,05/08/2015,REV,BEECH HOME CARE SERVICES      
150,Adult Social Care,PS u65 Nursing Care Placements,PD EAST TEAM-Nursing,W2JJ53,Third Party Payments          ,Private Contractors           ,EH01,Miscellaneous Agency Services           ,689.66,31/07/2015,REV,ROYAL HOSP FOR NEURO-DISAB    
151,Adult Social Care,PS u65 Nursing Care Placements,PD EAST TEAM-Nursing,W2JJ53,Third Party Payments          ,Private Contractors           ,EH01,Miscellaneous Agency Services           ,1169.12,31/07/2015,REV,ROYAL HOSP FOR NEURO-DISAB    
152,Adult Social Care,PS u65 Nursing Care Placements,PD EAST TEAM-Nursing,W2JJ53,Third Party Payments          ,Private Contractors           ,EH01,Miscellaneous Agency Services           ,1169.12,31/07/2015,REV,ROYAL HOSP FOR NEURO-DISAB    
153,Adult Social Care,PS u65 Nursing Care Placements,PD EAST TEAM-Nursing,W2JJ53,Third Party Payments          ,Private Contractors           ,EH01,Miscellaneous Agency Services           ,1169.12,31/07/2015,REV,ROYAL HOSP FOR NEURO-DISAB    
154,Adult Social Care,PS u65 Nursing Care Placements,PD EAST TEAM-Nursing,W2JJ53,Third Party Payments          ,Private Contractors           ,EH01,Miscellaneous Agency Services           ,1169.12,31/07/2015,REV,ROYAL HOSP FOR NEURO-DISAB    
155,Adult Social Care,MH u65 Home Care,MH Home Care External -Morden,W2HB49,Third Party Payments          ,Private Contractors           ,EH01,Miscellaneous Agency Services           ,524.28,01/08/2015,REV,BROOKDALE HEALTH CARE         
156,Adult Social Care,MH u65 Home Care,MH Home Care External -Morden,W2HB49,Third Party Payments          ,Private Contractors           ,EH01,Miscellaneous Agency Services           ,524.28,01/08/2015,REV,BROOKDALE HEALTH CARE         
157,Adult Social Care,MH u65 Home Care,MH Home Care External -Morden,W2HB49,Third Party Payments          ,Private Contractors           ,EH01,Miscellaneous Agency Services           ,524.28,01/08/2015,REV,BROOKDALE HEALTH CARE         
158,Adult Social Care,MH u65 Home Care,MH Home Care External -Morden,W2HB49,Third Party Payments          ,Private Contractors           ,EH01,Miscellaneous Agency Services           ,524.28,01/08/2015,REV,BROOKDALE HEALTH CARE         
159,Adult Social Care,MH u65 Home Care,MH Home Care External -Morden,W2HB49,Third Party Payments          ,Private Contractors           ,EH01,Miscellaneous Agency Services           ,524.28,01/08/2015,REV,BROOKDALE HEALTH CARE         
160,Adult Social Care,PS u65 Residentl Care Placemnt,PD EAST TEAM-Residential,W2JJ55,Third Party Payments          ,Private Contractors           ,EH01,Miscellaneous Agency Services           ,1774.00,01/08/2015,REV,CARE MANAGEMENT GROUP         
161,Adult Social Care,PS u65 Residentl Care Placemnt,PD EAST TEAM-Residential,W2JJ55,Third Party Payments          ,Private Contractors           ,EH01,Miscellaneous Agency Services           ,1774.00,01/08/2015,REV,CARE MANAGEMENT GROUP         
162,Adult Social Care,PS u65 Residentl Care Placemnt,PD EAST TEAM-Residential,W2JJ55,Third Party Payments          ,Private Contractors           ,EH01,Miscellaneous Agency Services           ,1774.00,01/08/2015,REV,CARE MANAGEMENT GROUP         
163,Adult Social Care,PS u65 Residentl Care Placemnt,PD EAST TEAM-Residential,W2JJ55,Third Party Payments          ,Private Contractors           ,EH01,Miscellaneous Agency Services           ,1774.00,01/08/2015,REV,CARE MANAGEMENT GROUP         
164,Adult Social Care,PS u65 Residentl Care Placemnt,PD EAST TEAM-Residential,W2JJ55,Third Party Payments          ,Private Contractors           ,EH01,Miscellaneous Agency Services           ,812.42,10/08/2015,REV,SCOPE                         
165,Adult Social Care,PS u65 Residentl Care Placemnt,PD EAST TEAM-Residential,W2JJ55,Third Party Payments          ,Private Contractors           ,EH01,Miscellaneous Agency Services           ,812.42,10/08/2015,REV,SCOPE                         
166,Adult Social Care,PS u65 Residentl Care Placemnt,PD EAST TEAM-Residential,W2JJ55,Third Party Payments          ,Private Contractors           ,EH01,Miscellaneous Agency Services           ,812.42,10/08/2015,REV,SCOPE                         
167,Adult Social Care,PS u65 Residentl Care Placemnt,PD EAST TEAM-Residential,W2JJ55,Third Party Payments          ,Private Contractors           ,EH01,Miscellaneous Agency Services           ,812.42,10/08/2015,REV,SCOPE                         
168,Childrens & Education Services,Leaving Care Services,"MASH, FR and VCT NRTPF                  ",W1CE39,Third Party Payments          ,Private Contractors           ,EH04,Accommodation Based Support             ,800.00,10/08/2015,REV,REDACTED
169,Adult Social Care,LD u65 Home Care,LD Home Care External,W2KB49,Third Party Payments          ,Private Contractors           ,EH01,Miscellaneous Agency Services           ,526.94,16/07/2015,REV,METROPOLITAN SUPPORT TRUST    
170,Adult Social Care,LD u65 Home Care,LD Home Care External,W2KB49,Third Party Payments          ,Private Contractors           ,EH01,Miscellaneous Agency Services           ,526.94,16/07/2015,REV,METROPOLITAN SUPPORT TRUST    
171,Adult Social Care,LD u65 Home Care,LD Home Care External,W2KB49,Third Party Payments          ,Private Contractors           ,EH01,Miscellaneous Agency Services           ,526.94,16/07/2015,REV,METROPOLITAN SUPPORT TRUST    
172,Adult Social Care,LD u65 Home Care,LD Home Care External,W2KB49,Third Party Payments          ,Private Contractors           ,EH01,Miscellaneous Agency Services           ,526.94,16/07/2015,REV,METROPOLITAN SUPPORT TRUST    
173,Adult Social Care,LD u65 Home Care,LD Home Care External,W2KB49,Third Party Payments          ,Private Contractors           ,EH01,Miscellaneous Agency Services           ,526.94,16/07/2015,REV,METROPOLITAN SUPPORT TRUST    
174,Adult Social Care,LD u65 Home Care,LD Home Care External,W2KB49,Third Party Payments          ,Private Contractors           ,EH01,Miscellaneous Agency Services           ,526.94,16/07/2015,REV,METROPOLITAN SUPPORT TRUST    
175,Adult Social Care,LD u65 Home Care,LD Home Care External,W2KB49,Third Party Payments          ,Private Contractors           ,EH01,Miscellaneous Agency Services           ,526.94,16/07/2015,REV,METROPOLITAN SUPPORT TRUST    
176,Adult Social Care,LD u65 Home Care,LD Home Care External,W2KB49,Third Party Payments          ,Private Contractors           ,EH01,Miscellaneous Agency Services           ,526.94,16/07/2015,REV,METROPOLITAN SUPPORT TRUST    
177,Adult Social Care,LD u65 Home Care,LD Home Care External,W2KB49,Third Party Payments          ,Private Contractors           ,EH01,Miscellaneous Agency Services           ,526.94,16/07/2015,REV,METROPOLITAN SUPPORT TRUST    
178,Adult Social Care,LD u65 Home Care,LD Home Care External,W2KB49,Third Party Payments          ,Private Contractors           ,EH01,Miscellaneous Agency Services           ,526.94,16/07/2015,REV,METROPOLITAN SUPPORT TRUST    
179,Adult Social Care,LD u65 Home Care,LD Home Care External,W2KB49,Third Party Payments          ,Private Contractors           ,EH01,Miscellaneous Agency Services           ,526.94,16/07/2015,REV,METROPOLITAN SUPPORT TRUST    
180,Adult Social Care,LD u65 Home Care,LD Home Care External,W2KB49,Third Party Payments          ,Private Contractors           ,EH01,Miscellaneous Agency Services           ,526.94,16/07/2015,REV,METROPOLITAN SUPPORT TRUST    
181,Adult Social Care,LD u65 Home Care,LD Home Care External,W2KB49,Third Party Payments          ,Private Contractors           ,EH01,Miscellaneous Agency Services           ,526.94,16/07/2015,REV,METROPOLITAN SUPPORT TRUST    
182,Adult Social Care,LD u65 Home Care,LD Home Care External,W2KB49,Third Party Payments          ,Private Contractors           ,EH01,Miscellaneous Agency Services           ,526.94,16/07/2015,REV,METROPOLITAN SUPPORT TRUST    
183,Adult Social Care,LD u65 Home Care,LD Home Care External,W2KB49,Third Party Payments          ,Private Contractors           ,EH01,Miscellaneous Agency Services           ,526.94,16/07/2015,REV,METROPOLITAN SUPPORT TRUST    
184,Adult Social Care,LD u65 Home Care,LD Home Care External,W2KB49,Third Party Payments          ,Private Contractors           ,EH01,Miscellaneous Agency Services           ,526.94,16/07/2015,REV,METROPOLITAN SUPPORT TRUST    
185,Adult Social Care,LD u65 Home Care,LD Home Care External,W2KB49,Third Party Payments          ,Private Contractors           ,EH01,Miscellaneous Agency Services           ,526.94,16/07/2015,REV,METROPOLITAN SUPPORT TRUST    
186,Adult Social Care,LD u65 Home Care,LD Home Care External,W2KB49,Third Party Payments          ,Private Contractors           ,EH01,Miscellaneous Agency Services           ,526.94,16/07/2015,REV,METROPOLITAN SUPPORT TRUST    
187,Adult Social Care,LD u65 Home Care,LD Home Care External,W2KB49,Third Party Payments          ,Private Contractors           ,EH01,Miscellaneous Agency Services           ,526.94,16/07/2015,REV,METROPOLITAN SUPPORT TRUST    
188,Adult Social Care,LD u65 Home Care,LD Home Care External,W2KB49,Third Party Payments          ,Private Contractors           ,EH01,Miscellaneous Agency Services           ,526.94,16/07/2015,REV,METROPOLITAN SUPPORT TRUST    
189,Adult Social Care,LD u65 Home Care,LD Home Care External,W2KB49,Third Party Payments          ,Private Contractors           ,EH01,Miscellaneous Agency Services           ,850.87,31/07/2015,REV,UNITED RESPONSE               
190,Adult Social Care,LD u65 Home Care,LD Home Care External,W2KB49,Third Party Payments          ,Private Contractors           ,EH01,Miscellaneous Agency Services           ,751.24,31/07/2015,REV,UNITED RESPONSE               
191,Adult Social Care,LD u65 Home Care,LD Home Care External,W2KB49,Third Party Payments          ,Private Contractors           ,EH01,Miscellaneous Agency Services           ,673.75,31/07/2015,REV,UNITED RESPONSE               
192,Adult Social Care,LD u65 Home Care,LD Home Care External,W2KB49,Third Party Payments          ,Private Contractors           ,EH01,Miscellaneous Agency Services           ,788.61,31/07/2015,REV,UNITED RESPONSE               
193,Adult Social Care,LD u65 Home Care,LD Home Care External,W2KB49,Third Party Payments          ,Private Contractors           ,EH01,Miscellaneous Agency Services           ,939.43,31/07/2015,REV,UNITED RESPONSE               
194,Adult Social Care,LD u65 Home Care,LD Home Care External,W2KB49,Third Party Payments          ,Private Contractors           ,EH01,Miscellaneous Agency Services           ,832.42,31/07/2015,REV,UNITED RESPONSE               
195,Adult Social Care,LD u65 Home Care,LD Home Care External,W2KB49,Third Party Payments          ,Private Contractors           ,EH01,Miscellaneous Agency Services           ,939.43,31/07/2015,REV,UNITED RESPONSE               
196,Adult Social Care,LD u65 Home Care,LD Home Care External,W2KB49,Third Party Payments          ,Private Contractors           ,EH01,Miscellaneous Agency Services           ,751.24,31/07/2015,REV,UNITED RESPONSE               
197,Adult Social Care,LD u65 Home Care,LD Home Care External,W2KB49,Third Party Payments          ,Private Contractors           ,EH01,Miscellaneous Agency Services           ,673.75,31/07/2015,REV,UNITED RESPONSE               
198,Adult Social Care,LD u65 Home Care,LD Home Care External,W2KB49,Third Party Payments          ,Private Contractors           ,EH01,Miscellaneous Agency Services           ,850.87,31/07/2015,REV,UNITED RESPONSE               
199,Adult Social Care,LD u65 Home Care,LD Home Care External,W2KB49,Third Party Payments          ,Private Contractors           ,EH01,Miscellaneous Agency Services           ,788.61,31/07/2015,REV,UNITED RESPONSE               
200,Adult Social Care,LD u65 Home Care,LD Home Care External,W2KB49,Third Party Payments          ,Private Contractors           ,EH01,Miscellaneous Agency Services           ,832.42,31/07/2015,REV,UNITED RESPONSE               
201,Adult Social Care,LD u65 Home Care,LD Home Care External,W2KB49,Third Party Payments          ,Private Contractors           ,EH01,Miscellaneous Agency Services           ,832.42,31/07/2015,REV,UNITED RESPONSE               
202,Adult Social Care,LD u65 Home Care,LD Home Care External,W2KB49,Third Party Payments          ,Private Contractors           ,EH01,Miscellaneous Agency Services           ,788.61,31/07/2015,REV,UNITED RESPONSE               
203,Adult Social Care,LD u65 Home Care,LD Home Care External,W2KB49,Third Party Payments          ,Private Contractors           ,EH01,Miscellaneous Agency Services           ,673.75,31/07/2015,REV,UNITED RESPONSE               
204,Adult Social Care,LD u65 Home Care,LD Home Care External,W2KB49,Third Party Payments          ,Private Contractors           ,EH01,Miscellaneous Agency Services           ,751.24,31/07/2015,REV,UNITED RESPONSE               
205,Adult Social Care,LD u65 Home Care,LD Home Care External,W2KB49,Third Party Payments          ,Private Contractors           ,EH01,Miscellaneous Agency Services           ,939.43,31/07/2015,REV,UNITED RESPONSE               
206,Adult Social Care,LD u65 Home Care,LD Home Care External,W2KB49,Third Party Payments          ,Private Contractors           ,EH01,Miscellaneous Agency Services           ,850.87,31/07/2015,REV,UNITED RESPONSE               
207,Adult Social Care,LD u65 Home Care,LD Home Care External,W2KB49,Third Party Payments          ,Private Contractors           ,EH01,Miscellaneous Agency Services           ,939.43,31/07/2015,REV,UNITED RESPONSE               
208,Adult Social Care,LD u65 Home Care,LD Home Care External,W2KB49,Third Party Payments          ,Private Contractors           ,EH01,Miscellaneous Agency Services           ,751.24,31/07/2015,REV,UNITED RESPONSE               
209,Adult Social Care,LD u65 Home Care,LD Home Care External,W2KB49,Third Party Payments          ,Private Contractors           ,EH01,Miscellaneous Agency Services           ,832.42,31/07/2015,REV,UNITED RESPONSE               
210,Adult Social Care,LD u65 Home Care,LD Home Care External,W2KB49,Third Party Payments          ,Private Contractors           ,EH01,Miscellaneous Agency Services           ,673.75,31/07/2015,REV,UNITED RESPONSE               
211,Adult Social Care,LD u65 Home Care,LD Home Care External,W2KB49,Third Party Payments          ,Private Contractors           ,EH01,Miscellaneous Agency Services           ,788.61,31/07/2015,REV,UNITED RESPONSE               
212,Adult Social Care,LD u65 Home Care,LD Home Care External,W2KB49,Third Party Payments          ,Private Contractors           ,EH01,Miscellaneous Agency Services           ,850.87,31/07/2015,REV,UNITED RESPONSE               
213,Childrens & Education Services,Leaving Care Services,"MASH, FR and VCT NRTPF                  ",W1CE39,Third Party Payments          ,Private Contractors           ,EH01,Miscellaneous Contrct Services          ,2000.00,12/08/2015,REV,SAINSBURY'S BUSINESS DIRECT   
214,Adult Social Care,LD u65 Home Care,LD Home Care External,W2KB49,Third Party Payments          ,Private Contractors           ,EH01,Miscellaneous Agency Services           ,656.39,11/08/2015,REV,BEECH HOME CARE SERVICES      
215,Adult Social Care,LD u65 Home Care,LD Home Care External,W2KB49,Third Party Payments          ,Private Contractors           ,EH01,Miscellaneous Agency Services           ,624.80,10/08/2015,REV,ROYAL MENCAP SOCIETY          
216,Adult Social Care,LD u65 Home Care,LD Home Care External,W2KB49,Third Party Payments          ,Private Contractors           ,EH01,Miscellaneous Agency Services           ,624.80,10/08/2015,REV,ROYAL MENCAP SOCIETY          
217,Adult Social Care,LD u65 Home Care,LD Home Care External,W2KB49,Third Party Payments          ,Private Contractors           ,EH01,Miscellaneous Agency Services           ,624.80,10/08/2015,REV,ROYAL MENCAP SOCIETY          
218,Adult Social Care,LD u65 Home Care,LD Home Care External,W2KB49,Third Party Payments          ,Private Contractors           ,EH01,Miscellaneous Agency Services           ,624.80,10/08/2015,REV,ROYAL MENCAP SOCIETY          
219,Adult Social Care,LD u65 Home Care,LD Home Care External,W2KB49,Third Party Payments          ,Private Contractors           ,EH01,Miscellaneous Agency Services           ,530.24,10/08/2015,REV,ROYAL MENCAP SOCIETY          
220,Adult Social Care,LD u65 Home Care,LD Home Care External,W2KB49,Third Party Payments          ,Private Contractors           ,EH01,Miscellaneous Agency Services           ,530.24,10/08/2015,REV,ROYAL MENCAP SOCIETY          
221,Adult Social Care,LD u65 Home Care,LD Home Care External,W2KB49,Third Party Payments          ,Private Contractors           ,EH01,Miscellaneous Agency Services           ,530.24,10/08/2015,REV,ROYAL MENCAP SOCIETY          
222,Adult Social Care,LD u65 Home Care,LD Home Care External,W2KB49,Third Party Payments          ,Private Contractors           ,EH01,Miscellaneous Agency Services           ,530.24,10/08/2015,REV,ROYAL MENCAP SOCIETY          
223,Adult Social Care,PS u65 Nursing Care Placements,PD EAST TEAM-Nursing,W2JJ53,Third Party Payments          ,Private Contractors           ,EH01,Miscellaneous Agency Services           ,1890.36,10/08/2015,REV,BUPA CARE SERVICES BACS RECEIP
224,Adult Social Care,PS u65 Nursing Care Placements,PD EAST TEAM-Nursing,W2JJ53,Third Party Payments          ,Private Contractors           ,EH01,Miscellaneous Agency Services           ,1890.36,10/08/2015,REV,BUPA CARE SERVICES BACS RECEIP
225,Adult Social Care,PS u65 Nursing Care Placements,PD EAST TEAM-Nursing,W2JJ53,Third Party Payments          ,Private Contractors           ,EH01,Miscellaneous Agency Services           ,1890.36,10/08/2015,REV,BUPA CARE SERVICES BACS RECEIP
226,Adult Social Care,PS u65 Nursing Care Placements,PD EAST TEAM-Nursing,W2JJ53,Third Party Payments          ,Private Contractors           ,EH01,Miscellaneous Agency Services           ,1890.36,10/08/2015,REV,BUPA CARE SERVICES BACS RECEIP
227,Adult Social Care,PS u65 Nursing Care Placements,PD EAST TEAM-Nursing,W2JJ53,Third Party Payments          ,Private Contractors           ,EH01,Miscellaneous Agency Services           ,1200.00,10/08/2015,REV,HAVERING COURT NURSING HOME   
228,Adult Social Care,PS u65 Nursing Care Placements,PD EAST TEAM-Nursing,W2JJ53,Third Party Payments          ,Private Contractors           ,EH01,Miscellaneous Agency Services           ,1200.00,10/08/2015,REV,HAVERING COURT NURSING HOME   
229,Adult Social Care,PS u65 Nursing Care Placements,PD EAST TEAM-Nursing,W2JJ53,Third Party Payments          ,Private Contractors           ,EH01,Miscellaneous Agency Services           ,1200.00,10/08/2015,REV,HAVERING COURT NURSING HOME   
230,Adult Social Care,PS u65 Nursing Care Placements,PD EAST TEAM-Nursing,W2JJ53,Third Party Payments          ,Private Contractors           ,EH01,Miscellaneous Agency Services           ,1200.00,10/08/2015,REV,HAVERING COURT NURSING HOME   
231,Adult Social Care,PS u65 Nursing Care Placements,PD R/Park-Nursing                       ,W2JM53,Third Party Payments          ,Private Contractors           ,EH01,Miscellaneous Contrct Services          ,700.35,11/08/2015,REV,MEADBANK NURSING CENTRE       
232,Adult Social Care,PS u65 Nursing Care Placements,PD R/Park-Nursing                       ,W2JM53,Third Party Payments          ,Private Contractors           ,EH01,Miscellaneous Contrct Services          ,700.35,11/08/2015,REV,MEADBANK NURSING CENTRE       
233,Adult Social Care,PS u65 Nursing Care Placements,PD R/Park-Nursing                       ,W2JM53,Third Party Payments          ,Private Contractors           ,EH01,Miscellaneous Contrct Services          ,700.35,11/08/2015,REV,MEADBANK NURSING CENTRE       
234,Adult Social Care,PS u65 Nursing Care Placements,PD R/Park-Nursing                       ,W2JM53,Third Party Payments          ,Private Contractors           ,EH01,Miscellaneous Contrct Services          ,700.35,11/08/2015,REV,MEADBANK NURSING CENTRE       
235,Childrens & Education Services,Leaving Care Services,"MASH, FR and VCT NRTPF                  ",W1CE39,Third Party Payments          ,Private Contractors           ,EH04,Accommodation Based Support             ,1705.00,13/08/2015,REV,M K ACCOMMODATION             
236,Childrens & Education Services,Leaving Care Services,"MASH, FR and VCT NRTPF                  ",W1CE39,Third Party Payments          ,Private Contractors           ,EH04,Accommodation Based Support             ,2015.00,13/08/2015,REV,M K ACCOMMODATION             
237,Adult Social Care,PS u65 Nursing Care Placements,PD EAST TEAM-Nursing,W2JJ53,Third Party Payments          ,Private Contractors           ,EH01,Miscellaneous Agency Services           ,1000.00,30/06/2015,REV,BUPA CARE HOMES (ANS) LTD     
238,Adult Social Care,PS u65 Nursing Care Placements,PD EAST TEAM-Nursing,W2JJ53,Third Party Payments          ,Private Contractors           ,EH01,Miscellaneous Agency Services           ,1000.00,30/06/2015,REV,BUPA CARE HOMES (ANS) LTD     
239,Adult Social Care,PS u65 Nursing Care Placements,PD EAST TEAM-Nursing,W2JJ53,Third Party Payments          ,Private Contractors           ,EH01,Miscellaneous Agency Services           ,1000.00,30/06/2015,REV,BUPA CARE HOMES (ANS) LTD     
240,Adult Social Care,PS u65 Nursing Care Placements,PD EAST TEAM-Nursing,W2JJ53,Third Party Payments          ,Private Contractors           ,EH01,Miscellaneous Agency Services           ,1000.00,30/06/2015,REV,BUPA CARE HOMES (ANS) LTD     
241,Childrens & Education Services,Leaving Care Services,"MASH, FR and VCT NRTPF                  ",W1CE39,Third Party Payments          ,Private Contractors           ,EH04,Accommodation Based Support             ,2480.00,01/11/2013,REV,M K ACCOMMODATION             
242,Adult Social Care,PS u65 Nursing Care Placements,PD R/Park-Nursing                       ,W2JM53,Third Party Payments          ,Private Contractors           ,EH01,Miscellaneous Contrct Services          ,642.86,01/07/2015,REV,CHEGWORTH N.H. (BAYSWIFT LTD) 
243,Adult Social Care,PS u65 Nursing Care Placements,PD R/Park-Nursing                       ,W2JM53,Third Party Payments          ,Private Contractors           ,EH01,Miscellaneous Contrct Services          ,750.00,01/07/2015,REV,CHEGWORTH N.H. (BAYSWIFT LTD) 
244,Adult Social Care,LD u65 Direct Payments,LD Direct Payment Scheme,W2KB36,Third Party Payments          ,Private Contractors           ,EH73,Direct Payments                         ,851.50,17/08/2015,REV,REDACTED
245,Adult Social Care,LD u65 Direct Payments,LD Direct Payment Scheme,W2KB36,Third Party Payments          ,Private Contractors           ,EH73,Direct Payments                         ,500.00,17/08/2015,REV,REDACTED
246,Childrens & Education Services,Chidren's Homes,ART Residential Placements,W1DE57,Third Party Payments          ,Private Contractors           ,EH01,Miscellaneous Agency Services           ,3372.86,01/07/2015,REV,REDACTED
247,Childrens & Education Services,Chidren's Homes,ART Residential Placements,W1DE57,Third Party Payments          ,Private Contractors           ,EH01,Miscellaneous Agency Services           ,4750.00,01/07/2015,REV,REDACTED
248,Childrens & Education Services,Chidren's Homes,ART Residential Placements,W1DE57,Third Party Payments          ,Private Contractors           ,EH01,Miscellaneous Agency Services           ,4750.00,01/07/2015,REV,REDACTED
249,Childrens & Education Services,Chidren's Homes,ART Residential Placements,W1DE57,Third Party Payments          ,Private Contractors           ,EH01,Miscellaneous Agency Services           ,4750.00,01/07/2015,REV,REDACTED
250,Childrens & Education Services,Chidren's Homes,ART Residential Placements,W1DE57,Third Party Payments          ,Private Contractors           ,EH01,Miscellaneous Agency Services           ,4750.00,01/07/2015,REV,REDACTED
251,Childrens & Education Services,Chidren's Homes,ART Residential Placements,W1DE57,Third Party Payments          ,Private Contractors           ,EH01,Miscellaneous Agency Services           ,-1337.15,01/07/2015,REV,REDACTED
252,Adult Social Care,LD u65 Home Care,LD Home Care External,W2KB49,Third Party Payments          ,Private Contractors           ,EH01,Miscellaneous Agency Services           ,617.21,28/06/2015,REV,COMMUNITY HOME CARE PROVIDER  
253,Adult Social Care,LD u65 Home Care,LD Home Care External,W2KB49,Third Party Payments          ,Private Contractors           ,EH01,Miscellaneous Agency Services           ,617.21,28/06/2015,REV,COMMUNITY HOME CARE PROVIDER  
254,Adult Social Care,LD u65 Home Care,LD Home Care External,W2KB49,Third Party Payments          ,Private Contractors           ,EH01,Miscellaneous Agency Services           ,617.21,28/06/2015,REV,COMMUNITY HOME CARE PROVIDER  
255,Adult Social Care,LD u65 Home Care,LD Home Care External,W2KB49,Third Party Payments          ,Private Contractors           ,EH01,Miscellaneous Agency Services           ,617.21,28/06/2015,REV,COMMUNITY HOME CARE PROVIDER  
256,Adult Social Care,LD u65 Home Care,LD Home Care External,W2KB49,Third Party Payments          ,Private Contractors           ,EH01,Miscellaneous Agency Services           ,515.46,12/08/2015,REV,ROYAL MENCAP SOCIETY          
257,Adult Social Care,LD u65 Home Care,LD Home Care External,W2KB49,Third Party Payments          ,Private Contractors           ,EH01,Miscellaneous Agency Services           ,515.46,12/08/2015,REV,ROYAL MENCAP SOCIETY          
258,Adult Social Care,LD u65 Home Care,LD Home Care External,W2KB49,Third Party Payments          ,Private Contractors           ,EH01,Miscellaneous Agency Services           ,515.46,12/08/2015,REV,ROYAL MENCAP SOCIETY          
259,Adult Social Care,LD u65 Home Care,LD Home Care External,W2KB49,Third Party Payments          ,Private Contractors           ,EH01,Miscellaneous Agency Services           ,515.46,12/08/2015,REV,ROYAL MENCAP SOCIETY          
260,Adult Social Care,PS u65 Residentl Care Placemnt,PD EAST TEAM-Residential,W2JJ55,Third Party Payments          ,Private Contractors           ,EH01,Miscellaneous Agency Services           ,668.81,07/08/2015,REV,GARWOOD FOUNDATION            
261,Adult Social Care,PS u65 Residentl Care Placemnt,PD EAST TEAM-Residential,W2JJ55,Third Party Payments          ,Private Contractors           ,EH01,Miscellaneous Agency Services           ,668.81,07/08/2015,REV,GARWOOD FOUNDATION            
262,Adult Social Care,PS u65 Residentl Care Placemnt,PD EAST TEAM-Residential,W2JJ55,Third Party Payments          ,Private Contractors           ,EH01,Miscellaneous Agency Services           ,668.81,07/08/2015,REV,GARWOOD FOUNDATION            
263,Adult Social Care,PS u65 Residentl Care Placemnt,PD EAST TEAM-Residential,W2JJ55,Third Party Payments          ,Private Contractors           ,EH01,Miscellaneous Agency Services           ,668.81,07/08/2015,REV,GARWOOD FOUNDATION            
264,Adult Social Care,PS u65 Nursing Care Placements,PD R/Park-Nursing                       ,W2JM53,Third Party Payments          ,Private Contractors           ,EH01,Miscellaneous Contrct Services          ,1063.57,14/08/2015,REV,REDACTED
265,Adult Social Care,PS u65 Nursing Care Placements,PD R/Park-Nursing                       ,W2JM53,Third Party Payments          ,Private Contractors           ,EH01,Miscellaneous Contrct Services          ,1063.57,14/08/2015,REV,REDACTED
266,Adult Social Care,PS u65 Nursing Care Placements,PD R/Park-Nursing                       ,W2JM53,Third Party Payments          ,Private Contractors           ,EH01,Miscellaneous Contrct Services          ,1063.57,14/08/2015,REV,REDACTED
267,Adult Social Care,PS u65 Nursing Care Placements,PD R/Park-Nursing                       ,W2JM53,Third Party Payments          ,Private Contractors           ,EH01,Miscellaneous Contrct Services          ,1063.57,14/08/2015,REV,REDACTED
268,Adult Social Care,PS u65 Nursing Care Placements,PD EAST TEAM-Nursing,W2JJ53,Third Party Payments          ,Private Contractors           ,EH01,Miscellaneous Agency Services           ,606.39,29/04/2015,REV,BUPA CARE HOMES               
269,Adult Social Care,PS u65 Nursing Care Placements,PD EAST TEAM-Nursing,W2JJ53,Third Party Payments          ,Private Contractors           ,EH01,Miscellaneous Agency Services           ,707.46,29/04/2015,REV,BUPA CARE HOMES               
270,Adult Social Care,PS u65 Nursing Care Placements,PD EAST TEAM-Nursing,W2JJ53,Third Party Payments          ,Private Contractors           ,EH01,Miscellaneous Agency Services           ,707.46,29/04/2015,REV,BUPA CARE HOMES               
271,Adult Social Care,PS u65 Nursing Care Placements,PD EAST TEAM-Nursing,W2JJ53,Third Party Payments          ,Private Contractors           ,EH01,Miscellaneous Agency Services           ,707.46,29/04/2015,REV,BUPA CARE HOMES               
272,Adult Social Care,PS u65 Nursing Care Placements,PD EAST TEAM-Nursing,W2JJ53,Third Party Payments          ,Private Contractors           ,EH01,Miscellaneous Agency Services           ,817.55,29/04/2015,REV,BUPA CARE HOMES               
273,Adult Social Care,PS u65 Nursing Care Placements,PD EAST TEAM-Nursing,W2JJ53,Third Party Payments          ,Private Contractors           ,EH01,Miscellaneous Agency Services           ,817.55,29/04/2015,REV,BUPA CARE HOMES               
274,Adult Social Care,PS u65 Nursing Care Placements,PD EAST TEAM-Nursing,W2JJ53,Third Party Payments          ,Private Contractors           ,EH01,Miscellaneous Agency Services           ,817.55,29/04/2015,REV,BUPA CARE HOMES               
275,Adult Social Care,PS u65 Nursing Care Placements,PD EAST TEAM-Nursing,W2JJ53,Third Party Payments          ,Private Contractors           ,EH01,Miscellaneous Agency Services           ,817.55,29/04/2015,REV,BUPA CARE HOMES               
276,Adult Social Care,PS u65 Nursing Care Placements,PD EAST TEAM-Nursing,W2JJ53,Third Party Payments          ,Private Contractors           ,EH01,Miscellaneous Agency Services           ,817.55,29/04/2015,REV,BUPA CARE HOMES               
277,Adult Social Care,PS u65 Nursing Care Placements,PD EAST TEAM-Nursing,W2JJ53,Third Party Payments          ,Private Contractors           ,EH01,Miscellaneous Agency Services           ,817.55,29/04/2015,REV,BUPA CARE HOMES               
278,Adult Social Care,PS u65 Nursing Care Placements,PD EAST TEAM-Nursing,W2JJ53,Third Party Payments          ,Private Contractors           ,EH01,Miscellaneous Agency Services           ,817.55,29/04/2015,REV,BUPA CARE HOMES               
279,Adult Social Care,PS u65 Nursing Care Placements,PD EAST TEAM-Nursing,W2JJ53,Third Party Payments          ,Private Contractors           ,EH01,Miscellaneous Agency Services           ,817.55,29/04/2015,REV,BUPA CARE HOMES               
280,Adult Social Care,PS u65 Nursing Care Placements,PD EAST TEAM-Nursing,W2JJ53,Third Party Payments          ,Private Contractors           ,EH01,Miscellaneous Agency Services           ,817.55,29/04/2015,REV,BUPA CARE HOMES               
281,Adult Social Care,PS u65 Nursing Care Placements,PD EAST TEAM-Nursing,W2JJ53,Third Party Payments          ,Private Contractors           ,EH01,Miscellaneous Agency Services           ,817.55,29/04/2015,REV,BUPA CARE HOMES               
282,Adult Social Care,PS u65 Nursing Care Placements,PD EAST TEAM-Nursing,W2JJ53,Third Party Payments          ,Private Contractors           ,EH01,Miscellaneous Agency Services           ,817.55,29/04/2015,REV,BUPA CARE HOMES               
283,Adult Social Care,PS u65 Nursing Care Placements,PD EAST TEAM-Nursing,W2JJ53,Third Party Payments          ,Private Contractors           ,EH01,Miscellaneous Agency Services           ,817.55,29/04/2015,REV,BUPA CARE HOMES               
284,Adult Social Care,PS u65 Nursing Care Placements,PD EAST TEAM-Nursing,W2JJ53,Third Party Payments          ,Private Contractors           ,EH01,Miscellaneous Agency Services           ,817.55,29/04/2015,REV,BUPA CARE HOMES               
285,Adult Social Care,PS u65 Nursing Care Placements,PD EAST TEAM-Nursing,W2JJ53,Third Party Payments          ,Private Contractors           ,EH01,Miscellaneous Agency Services           ,817.55,29/04/2015,REV,BUPA CARE HOMES               
286,Adult Social Care,PS u65 Nursing Care Placements,PD EAST TEAM-Nursing,W2JJ53,Third Party Payments          ,Private Contractors           ,EH01,Miscellaneous Agency Services           ,817.55,29/04/2015,REV,BUPA CARE HOMES               
287,Adult Social Care,PS u65 Nursing Care Placements,PD EAST TEAM-Nursing,W2JJ53,Third Party Payments          ,Private Contractors           ,EH01,Miscellaneous Agency Services           ,817.55,29/04/2015,REV,BUPA CARE HOMES               
288,Adult Social Care,PS u65 Nursing Care Placements,PD EAST TEAM-Nursing,W2JJ53,Third Party Payments          ,Private Contractors           ,EH01,Miscellaneous Agency Services           ,817.55,29/04/2015,REV,BUPA CARE HOMES               
289,Adult Social Care,PS u65 Nursing Care Placements,PD EAST TEAM-Nursing,W2JJ53,Third Party Payments          ,Private Contractors           ,EH01,Miscellaneous Agency Services           ,817.55,29/04/2015,REV,BUPA CARE HOMES               
290,Adult Social Care,PS u65 Nursing Care Placements,PD EAST TEAM-Nursing,W2JJ53,Third Party Payments          ,Private Contractors           ,EH01,Miscellaneous Agency Services           ,817.55,29/04/2015,REV,BUPA CARE HOMES               
291,Adult Social Care,PS u65 Nursing Care Placements,PD EAST TEAM-Nursing,W2JJ53,Third Party Payments          ,Private Contractors           ,EH01,Miscellaneous Agency Services           ,817.55,29/04/2015,REV,BUPA CARE HOMES               
292,Adult Social Care,PS u65 Nursing Care Placements,PD EAST TEAM-Nursing,W2JJ53,Third Party Payments          ,Private Contractors           ,EH01,Miscellaneous Agency Services           ,817.55,20/05/2015,REV,BUPA CARE HOMES               
293,Adult Social Care,PS u65 Nursing Care Placements,PD EAST TEAM-Nursing,W2JJ53,Third Party Payments          ,Private Contractors           ,EH01,Miscellaneous Agency Services           ,817.55,20/05/2015,REV,BUPA CARE HOMES               
294,Adult Social Care,PS u65 Nursing Care Placements,PD EAST TEAM-Nursing,W2JJ53,Third Party Payments          ,Private Contractors           ,EH01,Miscellaneous Agency Services           ,817.55,20/05/2015,REV,BUPA CARE HOMES               
295,Adult Social Care,PS u65 Nursing Care Placements,PD EAST TEAM-Nursing,W2JJ53,Third Party Payments          ,Private Contractors           ,EH01,Miscellaneous Agency Services           ,817.55,20/05/2015,REV,BUPA CARE HOMES               
296,Adult Social Care,PS u65 Nursing Care Placements,PD EAST TEAM-Nursing,W2JJ53,Third Party Payments          ,Private Contractors           ,EH01,Miscellaneous Agency Services           ,707.46,18/06/2015,REV,BUPA CARE HOMES               
297,Adult Social Care,PS u65 Nursing Care Placements,PD EAST TEAM-Nursing,W2JJ53,Third Party Payments          ,Private Contractors           ,EH01,Miscellaneous Agency Services           ,707.46,18/06/2015,REV,BUPA CARE HOMES               
298,Adult Social Care,PS u65 Nursing Care Placements,PD EAST TEAM-Nursing,W2JJ53,Third Party Payments          ,Private Contractors           ,EH01,Miscellaneous Agency Services           ,707.46,18/06/2015,REV,BUPA CARE HOMES               
299,Adult Social Care,PS u65 Nursing Care Placements,PD EAST TEAM-Nursing,W2JJ53,Third Party Payments          ,Private Contractors           ,EH01,Miscellaneous Agency Services           ,707.46,18/06/2015,REV,BUPA CARE HOMES               
300,Childrens & Education Services,,ART Residential Secure accommo,W1DE58,Third Party Payments          ,Private Contractors           ,EH01,Miscellaneous Agency Services           ,803.57,08/07/2015,REV,FUTURE FOUNDATIONS LTD        
301,Childrens & Education Services,,ART Residential Secure accommo,W1DE58,Third Party Payments          ,Private Contractors           ,EH01,Miscellaneous Agency Services           ,1125.00,08/07/2015,REV,FUTURE FOUNDATIONS LTD        
302,Childrens & Education Services,,ART Residential Secure accommo,W1DE58,Third Party Payments          ,Private Contractors           ,EH01,Miscellaneous Agency Services           ,1125.00,08/07/2015,REV,FUTURE FOUNDATIONS LTD        
303,Childrens & Education Services,,ART Residential Secure accommo,W1DE58,Third Party Payments          ,Private Contractors           ,EH01,Miscellaneous Agency Services           ,1125.00,08/07/2015,REV,FUTURE FOUNDATIONS LTD        
304,Childrens & Education Services,,ART Residential Secure accommo,W1DE58,Third Party Payments          ,Private Contractors           ,EH01,Miscellaneous Agency Services           ,1125.00,08/07/2015,REV,FUTURE FOUNDATIONS LTD        
305,Childrens & Education Services,,ART Residential Secure accommo,W1DE58,Third Party Payments          ,Private Contractors           ,EH01,Miscellaneous Agency Services           ,800.00,31/07/2015,REV,HIGHER LEVEL CARE (HLC) LTD   
306,Childrens & Education Services,,ART Residential Secure accommo,W1DE58,Third Party Payments          ,Private Contractors           ,EH01,Miscellaneous Agency Services           ,800.00,31/07/2015,REV,HIGHER LEVEL CARE (HLC) LTD   
307,Childrens & Education Services,,ART Residential Secure accommo,W1DE58,Third Party Payments          ,Private Contractors           ,EH01,Miscellaneous Agency Services           ,800.00,31/07/2015,REV,HIGHER LEVEL CARE (HLC) LTD   
308,Childrens & Education Services,,ART Residential Secure accommo,W1DE58,Third Party Payments          ,Private Contractors           ,EH01,Miscellaneous Agency Services           ,1100.00,31/07/2015,REV,HIGHER LEVEL CARE (HLC) LTD   
309,Childrens & Education Services,,ART Residential Secure accommo,W1DE58,Third Party Payments          ,Private Contractors           ,EH01,Miscellaneous Agency Services           ,1100.00,31/07/2015,REV,HIGHER LEVEL CARE (HLC) LTD   
310,Childrens & Education Services,,ART Residential Secure accommo,W1DE58,Third Party Payments          ,Private Contractors           ,EH01,Miscellaneous Agency Services           ,1100.00,31/07/2015,REV,HIGHER LEVEL CARE (HLC) LTD   
311,Childrens & Education Services,,ART Residential Secure accommo,W1DE58,Third Party Payments          ,Private Contractors           ,EH01,Miscellaneous Agency Services           ,1100.00,31/07/2015,REV,HIGHER LEVEL CARE (HLC) LTD   
312,Childrens & Education Services,,ART Residential Secure accommo,W1DE58,Third Party Payments          ,Private Contractors           ,EH01,Miscellaneous Agency Services           ,1100.00,31/07/2015,REV,HIGHER LEVEL CARE (HLC) LTD   
313,Childrens & Education Services,,ART Residential Secure accommo,W1DE58,Third Party Payments          ,Private Contractors           ,EH01,Miscellaneous Agency Services           ,-629.28,31/07/2015,REV,HIGHER LEVEL CARE (HLC) LTD   
314,Childrens & Education Services,,ART Residential Secure accommo,W1DE58,Third Party Payments          ,Private Contractors           ,EH01,Miscellaneous Agency Services           ,845.00,15/07/2015,REV,NETPEX LTD                    
315,Childrens & Education Services,,ART Residential Secure accommo,W1DE58,Third Party Payments          ,Private Contractors           ,EH01,Miscellaneous Agency Services           ,845.00,15/07/2015,REV,NETPEX LTD                    
316,Childrens & Education Services,,ART Residential Secure accommo,W1DE58,Third Party Payments          ,Private Contractors           ,EH01,Miscellaneous Agency Services           ,845.00,15/07/2015,REV,NETPEX LTD                    
317,Childrens & Education Services,,ART Residential Secure accommo,W1DE58,Third Party Payments          ,Private Contractors           ,EH01,Miscellaneous Agency Services           ,845.00,15/07/2015,REV,NETPEX LTD                    
318,Childrens & Education Services,,ART Residential Secure accommo,W1DE58,Third Party Payments          ,Private Contractors           ,EH01,Miscellaneous Agency Services           ,525.00,03/08/2015,REV,BIBBY FACTORS SUSSEX LTD      
319,Childrens & Education Services,,ART Residential Secure accommo,W1DE58,Third Party Payments          ,Private Contractors           ,EH01,Miscellaneous Agency Services           ,735.00,03/08/2015,REV,BIBBY FACTORS SUSSEX LTD      
320,Childrens & Education Services,,ART Residential Secure accommo,W1DE58,Third Party Payments          ,Private Contractors           ,EH01,Miscellaneous Agency Services           ,735.00,03/08/2015,REV,BIBBY FACTORS SUSSEX LTD      
321,Childrens & Education Services,,ART Residential Secure accommo,W1DE58,Third Party Payments          ,Private Contractors           ,EH01,Miscellaneous Agency Services           ,735.00,03/08/2015,REV,BIBBY FACTORS SUSSEX LTD      
322,Childrens & Education Services,,ART Residential Secure accommo,W1DE58,Third Party Payments          ,Private Contractors           ,EH01,Miscellaneous Agency Services           ,735.00,03/08/2015,REV,BIBBY FACTORS SUSSEX LTD      
323,Childrens & Education Services,,ART Residential Secure accommo,W1DE58,Third Party Payments          ,Private Contractors           ,EH01,Miscellaneous Agency Services           ,700.00,01/08/2015,REV,UNIVERSAL CARE CONSULTANTS    
324,Childrens & Education Services,,ART Residential Secure accommo,W1DE58,Third Party Payments          ,Private Contractors           ,EH01,Miscellaneous Agency Services           ,700.00,01/08/2015,REV,UNIVERSAL CARE CONSULTANTS    
325,Childrens & Education Services,,ART Residential Secure accommo,W1DE58,Third Party Payments          ,Private Contractors           ,EH01,Miscellaneous Agency Services           ,700.00,01/08/2015,REV,UNIVERSAL CARE CONSULTANTS    
326,Childrens & Education Services,,ART Residential Secure accommo,W1DE58,Third Party Payments          ,Private Contractors           ,EH01,Miscellaneous Agency Services           ,700.00,01/08/2015,REV,UNIVERSAL CARE CONSULTANTS    
327,Adult Social Care,LD u65 Home Care,LD Home Care External,W2KB49,Third Party Payments          ,Private Contractors           ,EH01,Miscellaneous Agency Services           ,1004.66,17/08/2015,REV,CHOICE SUPPORT                
328,Adult Social Care,LD u65 Home Care,LD Home Care External,W2KB49,Third Party Payments          ,Private Contractors           ,EH01,Miscellaneous Agency Services           ,1004.66,17/08/2015,REV,CHOICE SUPPORT                
329,Adult Social Care,LD u65 Home Care,LD Home Care External,W2KB49,Third Party Payments          ,Private Contractors           ,EH01,Miscellaneous Agency Services           ,1004.66,17/08/2015,REV,CHOICE SUPPORT                
330,Adult Social Care,LD u65 Home Care,LD Home Care External,W2KB49,Third Party Payments          ,Private Contractors           ,EH01,Miscellaneous Agency Services           ,1004.66,17/08/2015,REV,CHOICE SUPPORT                
331,Adult Social Care,LD u65 Home Care,LD Home Care External,W2KB49,Third Party Payments          ,Private Contractors           ,EH01,Miscellaneous Agency Services           ,790.00,20/08/2015,REV,CRUSOE CARE RESIDENTIAL HOME  
332,Adult Social Care,LD u65 Home Care,LD Home Care External,W2KB49,Third Party Payments          ,Private Contractors           ,EH01,Miscellaneous Agency Services           ,790.00,20/08/2015,REV,CRUSOE CARE RESIDENTIAL HOME  
333,Adult Social Care,LD u65 Home Care,LD Home Care External,W2KB49,Third Party Payments          ,Private Contractors           ,EH01,Miscellaneous Agency Services           ,790.00,20/08/2015,REV,CRUSOE CARE RESIDENTIAL HOME  
334,Adult Social Care,LD u65 Home Care,LD Home Care External,W2KB49,Third Party Payments          ,Private Contractors           ,EH01,Miscellaneous Agency Services           ,790.00,20/08/2015,REV,CRUSOE CARE RESIDENTIAL HOME  
335,Childrens & Education Services,,ART Residential Secure accommo,W1DE58,Third Party Payments          ,Private Contractors           ,EH01,Miscellaneous Agency Services           ,535.80,31/07/2015,REV,HIGHER LEVEL CARE (HLC) LTD   
336,Childrens & Education Services,,ART Residential Secure accommo,W1DE58,Third Party Payments          ,Private Contractors           ,EH01,Miscellaneous Agency Services           ,750.00,31/07/2015,REV,HIGHER LEVEL CARE (HLC) LTD   
337,Childrens & Education Services,,ART Residential Secure accommo,W1DE58,Third Party Payments          ,Private Contractors           ,EH01,Miscellaneous Agency Services           ,750.00,31/07/2015,REV,HIGHER LEVEL CARE (HLC) LTD   
338,Childrens & Education Services,,ART Residential Secure accommo,W1DE58,Third Party Payments          ,Private Contractors           ,EH01,Miscellaneous Agency Services           ,750.00,31/07/2015,REV,HIGHER LEVEL CARE (HLC) LTD   
339,Childrens & Education Services,,ART Residential Secure accommo,W1DE58,Third Party Payments          ,Private Contractors           ,EH01,Miscellaneous Agency Services           ,750.00,31/07/2015,REV,HIGHER LEVEL CARE (HLC) LTD   
340,Adult Social Care,PS u65 Home Care,PD R/Park-Homecare                      ,W2JM49,Third Party Payments          ,Private Contractors           ,EH01,Miscellaneous Contrct Services          ,650.00,29/07/2015,REV,LONDON CARE                   
341,Adult Social Care,PS u65 Home Care,PD R/Park-Homecare                      ,W2JM49,Third Party Payments          ,Private Contractors           ,EH01,Miscellaneous Contrct Services          ,650.00,29/07/2015,REV,LONDON CARE                   
342,Adult Social Care,PS u65 Home Care,PD R/Park-Homecare                      ,W2JM49,Third Party Payments          ,Private Contractors           ,EH01,Miscellaneous Contrct Services          ,650.00,29/07/2015,REV,LONDON CARE                   
343,Adult Social Care,PS u65 Home Care,PD R/Park-Homecare                      ,W2JM49,Third Party Payments          ,Private Contractors           ,EH01,Miscellaneous Contrct Services          ,650.00,29/07/2015,REV,LONDON CARE                   
344,Childrens & Education Services,,ART Residential Secure accommo,W1DE58,Third Party Payments          ,Private Contractors           ,EH01,Miscellaneous Agency Services           ,625.00,31/07/2015,REV,HIGHER LEVEL CARE (HLC) LTD   
345,Childrens & Education Services,,ART Residential Secure accommo,W1DE58,Third Party Payments          ,Private Contractors           ,EH01,Miscellaneous Agency Services           ,875.00,31/07/2015,REV,HIGHER LEVEL CARE (HLC) LTD   
346,Childrens & Education Services,,ART Residential Secure accommo,W1DE58,Third Party Payments          ,Private Contractors           ,EH01,Miscellaneous Agency Services           ,875.00,31/07/2015,REV,HIGHER LEVEL CARE (HLC) LTD   
347,Childrens & Education Services,,ART Residential Secure accommo,W1DE58,Third Party Payments          ,Private Contractors           ,EH01,Miscellaneous Agency Services           ,875.00,31/07/2015,REV,HIGHER LEVEL CARE (HLC) LTD   
348,Childrens & Education Services,,ART Residential Secure accommo,W1DE58,Third Party Payments          ,Private Contractors           ,EH01,Miscellaneous Agency Services           ,875.00,31/07/2015,REV,HIGHER LEVEL CARE (HLC) LTD   
349,Childrens & Education Services,,ART Residential Secure accommo,W1DE58,Third Party Payments          ,Private Contractors           ,EH01,Miscellaneous Agency Services           ,893.50,31/07/2015,REV,HIGHER LEVEL CARE (HLC) LTD   
350,Childrens & Education Services,,ART Residential Secure accommo,W1DE58,Third Party Payments          ,Private Contractors           ,EH01,Miscellaneous Agency Services           ,1250.00,31/07/2015,REV,HIGHER LEVEL CARE (HLC) LTD   
351,Childrens & Education Services,,ART Residential Secure accommo,W1DE58,Third Party Payments          ,Private Contractors           ,EH01,Miscellaneous Agency Services           ,1250.00,31/07/2015,REV,HIGHER LEVEL CARE (HLC) LTD   
352,Childrens & Education Services,,ART Residential Secure accommo,W1DE58,Third Party Payments          ,Private Contractors           ,EH01,Miscellaneous Agency Services           ,1250.00,31/07/2015,REV,HIGHER LEVEL CARE (HLC) LTD   
353,Childrens & Education Services,,ART Residential Secure accommo,W1DE58,Third Party Payments          ,Private Contractors           ,EH01,Miscellaneous Agency Services           ,-590.05,31/07/2015,REV,HIGHER LEVEL CARE (HLC) LTD   
354,Childrens & Education Services,,ART Residential Secure accommo,W1DE58,Third Party Payments          ,Private Contractors           ,EH01,Miscellaneous Agency Services           ,1250.00,31/07/2015,REV,HIGHER LEVEL CARE (HLC) LTD   
355,Childrens & Education Services,,ART Residential Secure accommo,W1DE58,Third Party Payments          ,Private Contractors           ,EH01,Miscellaneous Agency Services           ,607.10,15/07/2015,REV,NETPEX LTD                    
356,Childrens & Education Services,,ART Residential Secure accommo,W1DE58,Third Party Payments          ,Private Contractors           ,EH01,Miscellaneous Agency Services           ,850.00,15/07/2015,REV,NETPEX LTD                    
357,Childrens & Education Services,,ART Residential Secure accommo,W1DE58,Third Party Payments          ,Private Contractors           ,EH01,Miscellaneous Agency Services           ,850.00,15/07/2015,REV,NETPEX LTD                    
358,Childrens & Education Services,,ART Residential Secure accommo,W1DE58,Third Party Payments          ,Private Contractors           ,EH01,Miscellaneous Agency Services           ,850.00,15/07/2015,REV,NETPEX LTD                    
359,Childrens & Education Services,,ART Residential Secure accommo,W1DE58,Third Party Payments          ,Private Contractors           ,EH01,Miscellaneous Agency Services           ,850.00,15/07/2015,REV,NETPEX LTD                    
360,Childrens & Education Services,,ART Residential Secure accommo,W1DE58,Third Party Payments          ,Private Contractors           ,EH01,Miscellaneous Agency Services           ,525.00,03/08/2015,REV,BIBBY FACTORS SUSSEX LTD      
361,Childrens & Education Services,,ART Residential Secure accommo,W1DE58,Third Party Payments          ,Private Contractors           ,EH01,Miscellaneous Agency Services           ,525.00,03/08/2015,REV,BIBBY FACTORS SUSSEX LTD      
362,Childrens & Education Services,,ART Residential Secure accommo,W1DE58,Third Party Payments          ,Private Contractors           ,EH01,Miscellaneous Agency Services           ,525.00,03/08/2015,REV,BIBBY FACTORS SUSSEX LTD      
363,Childrens & Education Services,,ART Residential Secure accommo,W1DE58,Third Party Payments          ,Private Contractors           ,EH01,Miscellaneous Agency Services           ,525.00,03/08/2015,REV,BIBBY FACTORS SUSSEX LTD      
364,Adult Social Care,MH u65 Residentl Care Placemnt,MH ResidentialCare Ext-Morden,W2HB55,Third Party Payments          ,Private Contractors           ,EH01,Miscellaneous Agency Services           ,600.00,31/07/2015,REV,ABBEY HOUSE RESIDENTIAL HOMES 
365,Adult Social Care,MH u65 Residentl Care Placemnt,MH ResidentialCare Ext-Morden,W2HB55,Third Party Payments          ,Private Contractors           ,EH01,Miscellaneous Agency Services           ,500.00,31/07/2015,REV,ABBEY HOUSE RESIDENTIAL HOMES 
366,Adult Social Care,MH u65 Residentl Care Placemnt,MH ResidentialCare Ext-Morden,W2HB55,Third Party Payments          ,Private Contractors           ,EH01,Miscellaneous Agency Services           ,500.00,31/07/2015,REV,ABBEY HOUSE RESIDENTIAL HOMES 
367,Adult Social Care,MH u65 Residentl Care Placemnt,MH ResidentialCare Ext-Morden,W2HB55,Third Party Payments          ,Private Contractors           ,EH01,Miscellaneous Agency Services           ,600.00,31/07/2015,REV,ABBEY HOUSE RESIDENTIAL HOMES 
368,Adult Social Care,MH u65 Residentl Care Placemnt,MH ResidentialCare Ext-Morden,W2HB55,Third Party Payments          ,Private Contractors           ,EH01,Miscellaneous Agency Services           ,500.00,31/07/2015,REV,ABBEY HOUSE RESIDENTIAL HOMES 
369,Adult Social Care,MH u65 Residentl Care Placemnt,MH ResidentialCare Ext-Morden,W2HB55,Third Party Payments          ,Private Contractors           ,EH01,Miscellaneous Agency Services           ,600.00,31/07/2015,REV,ABBEY HOUSE RESIDENTIAL HOMES 
370,Adult Social Care,MH u65 Residentl Care Placemnt,MH ResidentialCare Ext-Morden,W2HB55,Third Party Payments          ,Private Contractors           ,EH01,Miscellaneous Agency Services           ,600.00,31/07/2015,REV,ABBEY HOUSE RESIDENTIAL HOMES 
371,Adult Social Care,MH u65 Residentl Care Placemnt,MH ResidentialCare Ext-Morden,W2HB55,Third Party Payments          ,Private Contractors           ,EH01,Miscellaneous Agency Services           ,500.00,31/07/2015,REV,ABBEY HOUSE RESIDENTIAL HOMES 
372,Adult Social Care,MH u65 Residentl Care Placemnt,MH ResidentialCare Ext-Morden,W2HB55,Third Party Payments          ,Private Contractors           ,EH01,Miscellaneous Agency Services           ,500.00,31/07/2015,REV,ABBEY HOUSE RESIDENTIAL HOMES 
373,Adult Social Care,MH u65 Residentl Care Placemnt,MH ResidentialCare Ext-Morden,W2HB55,Third Party Payments          ,Private Contractors           ,EH01,Miscellaneous Agency Services           ,600.00,31/07/2015,REV,ABBEY HOUSE RESIDENTIAL HOMES 
374,Childrens & Education Services,,ART Residential Secure accommo,W1DE58,Third Party Payments          ,Private Contractors           ,EH01,Miscellaneous Agency Services           ,1000.00,22/06/2015,REV,WOODHOUSE SUPPORT SERVICES LTD
375,Childrens & Education Services,,ART Residential Secure accommo,W1DE58,Third Party Payments          ,Private Contractors           ,EH01,Miscellaneous Agency Services           ,-796.79,22/06/2015,REV,WOODHOUSE SUPPORT SERVICES LTD
376,Childrens & Education Services,,ART Residential Secure accommo,W1DE58,Third Party Payments          ,Private Contractors           ,EH01,Miscellaneous Agency Services           ,1000.00,22/06/2015,REV,WOODHOUSE SUPPORT SERVICES LTD
377,Adult Social Care,MH u65 Home Care,MH Home Care External -Morden,W2HB49,Third Party Payments          ,Private Contractors           ,EH01,Miscellaneous Agency Services           ,524.28,21/08/2015,REV,BROOKDALE HEALTH CARE         
378,Adult Social Care,MH u65 Home Care,MH Home Care External -Morden,W2HB49,Third Party Payments          ,Private Contractors           ,EH01,Miscellaneous Agency Services           ,524.28,21/08/2015,REV,BROOKDALE HEALTH CARE         
379,Adult Social Care,MH u65 Home Care,MH Home Care External -Morden,W2HB49,Third Party Payments          ,Private Contractors           ,EH01,Miscellaneous Agency Services           ,524.28,21/08/2015,REV,BROOKDALE HEALTH CARE         
380,Adult Social Care,LD u65 Home Care,LD Home Care External,W2KB49,Third Party Payments          ,Private Contractors           ,EH01,Miscellaneous Agency Services           ,650.00,21/07/2015,REV,HOLISTIC COMMUNITY CARE LTD   
381,Adult Social Care,LD u65 Home Care,LD Home Care External,W2KB49,Third Party Payments          ,Private Contractors           ,EH01,Miscellaneous Agency Services           ,650.00,21/07/2015,REV,HOLISTIC COMMUNITY CARE LTD   
382,Adult Social Care,LD u65 Home Care,LD Home Care External,W2KB49,Third Party Payments          ,Private Contractors           ,EH01,Miscellaneous Agency Services           ,650.00,21/07/2015,REV,HOLISTIC COMMUNITY CARE LTD   
383,Adult Social Care,LD u65 Home Care,LD Home Care External,W2KB49,Third Party Payments          ,Private Contractors           ,EH01,Miscellaneous Agency Services           ,650.00,21/07/2015,REV,HOLISTIC COMMUNITY CARE LTD   
384,Adult Social Care,MH u65 Residentl Care Placemnt,MH ResidentialCare Ext - Wim,W2HC55,Third Party Payments          ,Private Contractors           ,EH01,Miscellaneous Agency Services           ,841.27,28/07/2015,REV,RNID                          
385,Adult Social Care,MH u65 Residentl Care Placemnt,MH ResidentialCare Ext - Wim,W2HC55,Third Party Payments          ,Private Contractors           ,EH01,Miscellaneous Agency Services           ,841.27,28/07/2015,REV,RNID                          
386,Adult Social Care,MH u65 Residentl Care Placemnt,MH ResidentialCare Ext - Wim,W2HC55,Third Party Payments          ,Private Contractors           ,EH01,Miscellaneous Agency Services           ,841.27,28/07/2015,REV,RNID                          
387,Adult Social Care,MH u65 Residentl Care Placemnt,MH ResidentialCare Ext - Wim,W2HC55,Third Party Payments          ,Private Contractors           ,EH01,Miscellaneous Agency Services           ,841.27,28/07/2015,REV,RNID                          
388,Childrens & Education Services,Family - Other Services,CS SWD Personal support                 ,W1CF49,Third Party Payments          ,Private Contractors           ,EH01,Miscellaneous Contrct Services          ,4273.13,29/07/2015,REV,AMBITION RECRUITMENT          
389,Adult Social Care,MH u65 Residentl Care Placemnt,MH ResidentialCare Ext - Wim,W2HC55,Third Party Payments          ,Private Contractors           ,EH01,Miscellaneous Agency Services           ,792.77,03/08/2015,REV,MENTAL HEALTH CARE (UK) LTD   
390,Adult Social Care,MH u65 Residentl Care Placemnt,MH ResidentialCare Ext - Wim,W2HC55,Third Party Payments          ,Private Contractors           ,EH01,Miscellaneous Agency Services           ,792.77,03/08/2015,REV,MENTAL HEALTH CARE (UK) LTD   
391,Adult Social Care,MH u65 Residentl Care Placemnt,MH ResidentialCare Ext - Wim,W2HC55,Third Party Payments          ,Private Contractors           ,EH01,Miscellaneous Agency Services           ,792.77,03/08/2015,REV,MENTAL HEALTH CARE (UK) LTD   
392,Adult Social Care,MH u65 Residentl Care Placemnt,MH ResidentialCare Ext - Wim,W2HC55,Third Party Payments          ,Private Contractors           ,EH01,Miscellaneous Agency Services           ,792.77,03/08/2015,REV,MENTAL HEALTH CARE (UK) LTD   
393,Adult Social Care,MH u65 Residentl Care Placemnt,MH ResidentialCare Ext-Morden,W2HB55,Third Party Payments          ,Private Contractors           ,EH01,Miscellaneous Agency Services           ,709.77,01/08/2015,REV,JANE'S HOUSE                  
394,Adult Social Care,MH u65 Residentl Care Placemnt,MH ResidentialCare Ext-Morden,W2HB55,Third Party Payments          ,Private Contractors           ,EH01,Miscellaneous Agency Services           ,709.77,01/08/2015,REV,JANE'S HOUSE                  
395,Adult Social Care,MH u65 Residentl Care Placemnt,MH ResidentialCare Ext-Morden,W2HB55,Third Party Payments          ,Private Contractors           ,EH01,Miscellaneous Agency Services           ,709.77,01/08/2015,REV,JANE'S HOUSE                  
396,Adult Social Care,MH u65 Residentl Care Placemnt,MH ResidentialCare Ext-Morden,W2HB55,Third Party Payments          ,Private Contractors           ,EH01,Miscellaneous Agency Services           ,709.77,01/08/2015,REV,JANE'S HOUSE                  
397,Adult Social Care,LD u65 Direct Payments,LD Direct Payment Scheme,W2KB36,Third Party Payments          ,Private Contractors           ,EH73,Direct Payments                         ,694.96,24/08/2015,REV,REDACTED
398,Adult Social Care,LD u65 Direct Payments,LD Direct Payment Scheme,W2KB36,Third Party Payments          ,Private Contractors           ,EH73,Direct Payments                         ,694.96,24/08/2015,REV,REDACTED
399,Adult Social Care,LD u65 Direct Payments,LD Direct Payment Scheme,W2KB36,Third Party Payments          ,Private Contractors           ,EH73,Direct Payments                         ,694.96,24/08/2015,REV,REDACTED
400,Adult Social Care,LD u65 Direct Payments,LD Direct Payment Scheme,W2KB36,Third Party Payments          ,Private Contractors           ,EH73,Direct Payments                         ,694.96,24/08/2015,REV,REDACTED
401,Adult Social Care,LD u65 Direct Payments,LD Direct Payment Scheme,W2KB36,Third Party Payments          ,Private Contractors           ,EH73,Direct Payments                         ,523.88,24/08/2015,REV,REDACTED
402,Adult Social Care,LD u65 Direct Payments,LD Direct Payment Scheme,W2KB36,Third Party Payments          ,Private Contractors           ,EH73,Direct Payments                         ,523.88,24/08/2015,REV,REDACTED
403,Adult Social Care,LD u65 Direct Payments,LD Direct Payment Scheme,W2KB36,Third Party Payments          ,Private Contractors           ,EH73,Direct Payments                         ,523.88,24/08/2015,REV,REDACTED
404,Adult Social Care,LD u65 Direct Payments,LD Direct Payment Scheme,W2KB36,Third Party Payments          ,Private Contractors           ,EH73,Direct Payments                         ,523.88,24/08/2015,REV,REDACTED
405,Adult Social Care,LD u65 Direct Payments,LD Direct Payment Scheme,W2KB36,Third Party Payments          ,Private Contractors           ,EH73,Direct Payments                         ,1065.38,24/08/2015,REV,REDACTED
406,Adult Social Care,LD u65 Direct Payments,LD Direct Payment Scheme,W2KB36,Third Party Payments          ,Private Contractors           ,EH73,Direct Payments                         ,1065.38,24/08/2015,REV,REDACTED
407,Adult Social Care,LD u65 Direct Payments,LD Direct Payment Scheme,W2KB36,Third Party Payments          ,Private Contractors           ,EH73,Direct Payments                         ,1065.38,24/08/2015,REV,REDACTED
408,Adult Social Care,LD u65 Direct Payments,LD Direct Payment Scheme,W2KB36,Third Party Payments          ,Private Contractors           ,EH73,Direct Payments                         ,1065.38,24/08/2015,REV,REDACTED
409,Adult Social Care,MH u65 Residentl Care Placemnt,MH ResidentialCare Ext - Wim,W2HC55,Third Party Payments          ,Private Contractors           ,EH01,Miscellaneous Agency Services           ,908.00,01/08/2015,REV,CARE MANAGEMENT GROUP         
410,Adult Social Care,MH u65 Residentl Care Placemnt,MH ResidentialCare Ext - Wim,W2HC55,Third Party Payments          ,Private Contractors           ,EH01,Miscellaneous Agency Services           ,908.00,01/08/2015,REV,CARE MANAGEMENT GROUP         
411,Adult Social Care,MH u65 Residentl Care Placemnt,MH ResidentialCare Ext - Wim,W2HC55,Third Party Payments          ,Private Contractors           ,EH01,Miscellaneous Agency Services           ,908.00,01/08/2015,REV,CARE MANAGEMENT GROUP         
412,Adult Social Care,MH u65 Residentl Care Placemnt,MH ResidentialCare Ext - Wim,W2HC55,Third Party Payments          ,Private Contractors           ,EH01,Miscellaneous Agency Services           ,908.00,01/08/2015,REV,CARE MANAGEMENT GROUP         
413,Childrens & Education Services,Family - Other Services,CS Children in Need Section 17,W1CB38,Transfer Payments             ,Schoolchildren/Students       ,FF02,Childr Act 1989 S17                     ,1860.00,10/08/2015,REV,EURO HOTELS(GILROY COURT)LTD  
414,Childrens & Education Services,Family - Other Services,CS Children in Need Section 17,W1CB38,Transfer Payments             ,Schoolchildren/Students       ,FF02,Childr Act 1989 S17                     ,1800.00,10/08/2015,REV,EURO HOTELS(GILROY COURT)LTD  
415,Childrens & Education Services,Family - Other Services,CS Children in Need Section 17,W1CB38,Transfer Payments             ,Schoolchildren/Students       ,FF02,Childr Act 1989 S17                     ,1917.00,10/08/2015,REV,LEXTOX                        
416,Childrens & Education Services,Family - Other Services,CS Children in Need Section 17,W1CB38,Transfer Payments             ,Schoolchildren/Students       ,FF02,Childr Act 1989 S17                     ,1396.00,10/08/2015,REV,REDACTED
417,Adult Social Care,PS u65 Home Care,PD WEST TEAM-Homecare,W2JK49,Third Party Payments          ,Private Contractors           ,EH01,Miscellaneous Agency Services           ,606.29,10/08/2015,REV,WESTMINSTER HEALTHCARE LTD    
418,Adult Social Care,LD u65 Direct Payments,LD Direct Payment Scheme,W2KB36,Third Party Payments          ,Private Contractors           ,EH73,Direct Payments                         ,1260.00,24/08/2015,REV,REDACTED
419,Adult Social Care,LD u65 Direct Payments,LD Direct Payment Scheme,W2KB36,Third Party Payments          ,Private Contractors           ,EH73,Direct Payments                         ,1260.00,24/08/2015,REV,REDACTED
420,Adult Social Care,LD u65 Direct Payments,LD Direct Payment Scheme,W2KB36,Third Party Payments          ,Private Contractors           ,EH73,Direct Payments                         ,1260.00,24/08/2015,REV,REDACTED
421,Adult Social Care,LD u65 Direct Payments,LD Direct Payment Scheme,W2KB36,Third Party Payments          ,Private Contractors           ,EH73,Direct Payments                         ,1260.00,24/08/2015,REV,REDACTED
422,Adult Social Care,PS u65 Home Care,PD WEST TEAM-Homecare,W2JK49,Third Party Payments          ,Private Contractors           ,EH01,Miscellaneous Agency Services           ,606.29,10/08/2015,REV,WESTMINSTER HEALTHCARE LTD    
423,Adult Social Care,PS u65 Home Care,PD WEST TEAM-Homecare,W2JK49,Third Party Payments          ,Private Contractors           ,EH01,Miscellaneous Agency Services           ,606.29,10/08/2015,REV,WESTMINSTER HEALTHCARE LTD    
424,Adult Social Care,PS u65 Home Care,PD WEST TEAM-Homecare,W2JK49,Third Party Payments          ,Private Contractors           ,EH01,Miscellaneous Agency Services           ,606.29,10/08/2015,REV,WESTMINSTER HEALTHCARE LTD    
425,Adult Social Care,MH u65 Residentl Care Placemnt,MH ResidentialCare Ext - Wim,W2HC55,Third Party Payments          ,Private Contractors           ,EH01,Miscellaneous Agency Services           ,792.77,03/08/2015,REV,MENTAL HEALTH CARE (UK) LTD   
426,Adult Social Care,MH u65 Residentl Care Placemnt,MH ResidentialCare Ext - Wim,W2HC55,Third Party Payments          ,Private Contractors           ,EH01,Miscellaneous Agency Services           ,792.77,03/08/2015,REV,MENTAL HEALTH CARE (UK) LTD   
427,Adult Social Care,MH u65 Residentl Care Placemnt,MH ResidentialCare Ext - Wim,W2HC55,Third Party Payments          ,Private Contractors           ,EH01,Miscellaneous Agency Services           ,792.77,03/08/2015,REV,MENTAL HEALTH CARE (UK) LTD   
428,Adult Social Care,MH u65 Residentl Care Placemnt,MH ResidentialCare Ext - Wim,W2HC55,Third Party Payments          ,Private Contractors           ,EH01,Miscellaneous Agency Services           ,792.77,03/08/2015,REV,MENTAL HEALTH CARE (UK) LTD   
429,Adult Social Care,PS u65 Home Care,PD EAST TEAM-Homecare,W2JJ49,Third Party Payments          ,Private Contractors           ,EH01,Miscellaneous Agency Services           ,928.41,10/08/2015,REV,HOMECARE SERVICES LTD         
430,Adult Social Care,PS u65 Home Care,PD EAST TEAM-Homecare,W2JJ49,Third Party Payments          ,Private Contractors           ,EH01,Miscellaneous Agency Services           ,928.41,10/08/2015,REV,HOMECARE SERVICES LTD         
431,Adult Social Care,PS u65 Home Care,PD EAST TEAM-Homecare,W2JJ49,Third Party Payments          ,Private Contractors           ,EH01,Miscellaneous Agency Services           ,928.41,10/08/2015,REV,HOMECARE SERVICES LTD         
432,Adult Social Care,PS u65 Home Care,PD EAST TEAM-Homecare,W2JJ49,Third Party Payments          ,Private Contractors           ,EH01,Miscellaneous Agency Services           ,928.41,10/08/2015,REV,HOMECARE SERVICES LTD         
433,Adult Social Care,LD u65 Direct Payments,LD Direct Payment Scheme,W2KB36,Third Party Payments          ,Private Contractors           ,EH73,Direct Payments                         ,706.80,24/08/2015,REV,REDACTED
434,Adult Social Care,LD u65 Direct Payments,LD Direct Payment Scheme,W2KB36,Third Party Payments          ,Private Contractors           ,EH73,Direct Payments                         ,706.80,24/08/2015,REV,REDACTED
435,Adult Social Care,LD u65 Direct Payments,LD Direct Payment Scheme,W2KB36,Third Party Payments          ,Private Contractors           ,EH73,Direct Payments                         ,706.80,24/08/2015,REV,REDACTED
436,Adult Social Care,LD u65 Direct Payments,LD Direct Payment Scheme,W2KB36,Third Party Payments          ,Private Contractors           ,EH73,Direct Payments                         ,706.80,24/08/2015,REV,REDACTED
437,Adult Social Care,LD u65 Direct Payments,LD Direct Payment Scheme,W2KB36,Third Party Payments          ,Private Contractors           ,EH73,Direct Payments                         ,828.44,24/08/2015,REV,REDACTED
438,Adult Social Care,LD u65 Direct Payments,LD Direct Payment Scheme,W2KB36,Third Party Payments          ,Private Contractors           ,EH73,Direct Payments                         ,828.44,24/08/2015,REV,REDACTED
439,Adult Social Care,LD u65 Direct Payments,LD Direct Payment Scheme,W2KB36,Third Party Payments          ,Private Contractors           ,EH73,Direct Payments                         ,828.44,24/08/2015,REV,REDACTED
440,Adult Social Care,LD u65 Direct Payments,LD Direct Payment Scheme,W2KB36,Third Party Payments          ,Private Contractors           ,EH73,Direct Payments                         ,828.44,24/08/2015,REV,REDACTED
441,Adult Social Care,PS u65 Residentl Care Placemnt,PD R/Park-Residential Care              ,W2JM55,Third Party Payments          ,Private Contractors           ,EH01,Miscellaneous Contrct Services          ,1037.36,03/08/2015,REV,HOTHFIELD MANOR FSHC          
442,Adult Social Care,PS u65 Residentl Care Placemnt,PD R/Park-Residential Care              ,W2JM55,Third Party Payments          ,Private Contractors           ,EH01,Miscellaneous Contrct Services          ,1037.36,03/08/2015,REV,HOTHFIELD MANOR FSHC          
443,Adult Social Care,PS u65 Residentl Care Placemnt,PD R/Park-Residential Care              ,W2JM55,Third Party Payments          ,Private Contractors           ,EH01,Miscellaneous Contrct Services          ,1037.36,03/08/2015,REV,HOTHFIELD MANOR FSHC          
444,Adult Social Care,PS u65 Residentl Care Placemnt,PD R/Park-Residential Care              ,W2JM55,Third Party Payments          ,Private Contractors           ,EH01,Miscellaneous Contrct Services          ,1037.36,03/08/2015,REV,HOTHFIELD MANOR FSHC          
445,Adult Social Care,PS u65 Residentl Care Placemnt,PD R/Park-Residential Care              ,W2JM55,Third Party Payments          ,Private Contractors           ,EH01,Miscellaneous Contrct Services          ,668.81,07/08/2015,REV,GARWOOD FOUNDATION            
446,Adult Social Care,PS u65 Residentl Care Placemnt,PD R/Park-Residential Care              ,W2JM55,Third Party Payments          ,Private Contractors           ,EH01,Miscellaneous Contrct Services          ,668.81,07/08/2015,REV,GARWOOD FOUNDATION            
447,Adult Social Care,PS u65 Residentl Care Placemnt,PD R/Park-Residential Care              ,W2JM55,Third Party Payments          ,Private Contractors           ,EH01,Miscellaneous Contrct Services          ,668.81,07/08/2015,REV,GARWOOD FOUNDATION            
448,Adult Social Care,PS u65 Residentl Care Placemnt,PD R/Park-Residential Care              ,W2JM55,Third Party Payments          ,Private Contractors           ,EH01,Miscellaneous Contrct Services          ,668.81,07/08/2015,REV,GARWOOD FOUNDATION            
449,Adult Social Care,MH u65 Residentl Care Placemnt,MH ResidentialCare Ext - Wim,W2HC55,Third Party Payments          ,Private Contractors           ,EH01,Miscellaneous Agency Services           ,689.09,10/08/2015,REV,SANCTUARY CARE LTD            
450,Adult Social Care,MH u65 Residentl Care Placemnt,MH ResidentialCare Ext - Wim,W2HC55,Third Party Payments          ,Private Contractors           ,EH01,Miscellaneous Agency Services           ,689.09,10/08/2015,REV,SANCTUARY CARE LTD            
451,Adult Social Care,MH u65 Residentl Care Placemnt,MH ResidentialCare Ext - Wim,W2HC55,Third Party Payments          ,Private Contractors           ,EH01,Miscellaneous Agency Services           ,689.09,10/08/2015,REV,SANCTUARY CARE LTD            
452,Adult Social Care,MH u65 Residentl Care Placemnt,MH ResidentialCare Ext - Wim,W2HC55,Third Party Payments          ,Private Contractors           ,EH01,Miscellaneous Agency Services           ,689.09,10/08/2015,REV,SANCTUARY CARE LTD            
453,Adult Social Care,PS u65 Direct Payments,PD WEST TEAM-Direct Payment,W2JK36,Third Party Payments          ,Private Contractors           ,EH73,Direct Payments                         ,745.50,19/08/2015,REV,REDACTED
454,Adult Social Care,PS u65 Direct Payments,PD WEST TEAM-Direct Payment,W2JK36,Third Party Payments          ,Private Contractors           ,EH73,Direct Payments                         ,745.50,19/08/2015,REV,REDACTED
455,Adult Social Care,PS u65 Direct Payments,PD WEST TEAM-Direct Payment,W2JK36,Third Party Payments          ,Private Contractors           ,EH73,Direct Payments                         ,745.50,19/08/2015,REV,REDACTED
456,Adult Social Care,PS u65 Direct Payments,PD WEST TEAM-Direct Payment,W2JK36,Third Party Payments          ,Private Contractors           ,EH73,Direct Payments                         ,745.50,19/08/2015,REV,REDACTED
457,Adult Social Care,PS u65 Residentl Care Placemnt,PD R/Park-Residential Care              ,W2JM55,Third Party Payments          ,Private Contractors           ,EH01,Miscellaneous Contrct Services          ,1950.00,31/07/2015,REV,NCYPE                         
458,Adult Social Care,PS u65 Residentl Care Placemnt,PD R/Park-Residential Care              ,W2JM55,Third Party Payments          ,Private Contractors           ,EH01,Miscellaneous Contrct Services          ,2730.00,31/07/2015,REV,NCYPE                         
459,Adult Social Care,PS u65 Residentl Care Placemnt,PD R/Park-Residential Care              ,W2JM55,Third Party Payments          ,Private Contractors           ,EH01,Miscellaneous Contrct Services          ,2730.00,31/07/2015,REV,NCYPE                         
460,Adult Social Care,PS u65 Residentl Care Placemnt,PD R/Park-Residential Care              ,W2JM55,Third Party Payments          ,Private Contractors           ,EH01,Miscellaneous Contrct Services          ,2730.00,31/07/2015,REV,NCYPE                         
461,Adult Social Care,PS u65 Residentl Care Placemnt,PD R/Park-Residential Care              ,W2JM55,Third Party Payments          ,Private Contractors           ,EH01,Miscellaneous Contrct Services          ,2730.00,31/07/2015,REV,NCYPE                         
462,Adult Social Care,PS u65 Residentl Care Placemnt,PD R/Park-Residential Care              ,W2JM55,Third Party Payments          ,Private Contractors           ,EH01,Miscellaneous Contrct Services          ,-780.00,31/07/2015,REV,NCYPE                         
463,Adult Social Care,LD u65 Home Care,LD Home Care External,W2KB49,Third Party Payments          ,Private Contractors           ,EH01,Miscellaneous Agency Services           ,650.00,23/08/2015,REV,SUPREME HOMES LTD             
464,Adult Social Care,LD u65 Home Care,LD Home Care External,W2KB49,Third Party Payments          ,Private Contractors           ,EH01,Miscellaneous Agency Services           ,650.00,23/08/2015,REV,SUPREME HOMES LTD             
465,Adult Social Care,LD u65 Home Care,LD Home Care External,W2KB49,Third Party Payments          ,Private Contractors           ,EH01,Miscellaneous Agency Services           ,650.00,23/08/2015,REV,SUPREME HOMES LTD             
466,Adult Social Care,LD u65 Home Care,LD Home Care External,W2KB49,Third Party Payments          ,Private Contractors           ,EH01,Miscellaneous Agency Services           ,650.00,23/08/2015,REV,SUPREME HOMES LTD             
467,Adult Social Care,LD u65 Home Care,LD Home Care External,W2KB49,Third Party Payments          ,Private Contractors           ,EH01,Miscellaneous Agency Services           ,928.05,23/08/2015,REV,SUPREME HOMES LTD             
468,Adult Social Care,LD u65 Home Care,LD Home Care External,W2KB49,Third Party Payments          ,Private Contractors           ,EH01,Miscellaneous Agency Services           ,928.05,23/08/2015,REV,SUPREME HOMES LTD             
469,Adult Social Care,LD u65 Home Care,LD Home Care External,W2KB49,Third Party Payments          ,Private Contractors           ,EH01,Miscellaneous Agency Services           ,928.05,23/08/2015,REV,SUPREME HOMES LTD             
470,Adult Social Care,LD u65 Home Care,LD Home Care External,W2KB49,Third Party Payments          ,Private Contractors           ,EH01,Miscellaneous Agency Services           ,928.05,23/08/2015,REV,SUPREME HOMES LTD             
471,Adult Social Care,LD u65 Home Care,LD Home Care External,W2KB49,Third Party Payments          ,Private Contractors           ,EH01,Miscellaneous Agency Services           ,520.10,23/08/2015,REV,SUPREME HOMES LTD             
472,Adult Social Care,LD u65 Home Care,LD Home Care External,W2KB49,Third Party Payments          ,Private Contractors           ,EH01,Miscellaneous Agency Services           ,520.10,23/08/2015,REV,SUPREME HOMES LTD             
473,Adult Social Care,LD u65 Home Care,LD Home Care External,W2KB49,Third Party Payments          ,Private Contractors           ,EH01,Miscellaneous Agency Services           ,520.10,23/08/2015,REV,SUPREME HOMES LTD             
474,Adult Social Care,LD u65 Home Care,LD Home Care External,W2KB49,Third Party Payments          ,Private Contractors           ,EH01,Miscellaneous Agency Services           ,520.10,23/08/2015,REV,SUPREME HOMES LTD             
475,Adult Social Care,PS u65 Residentl Care Placemnt,PD EAST TEAM-Residential,W2JJ55,Third Party Payments          ,Private Contractors           ,EH01,Miscellaneous Agency Services           ,599.40,01/09/2015,REV,CARE MANAGEMENT GROUP         
476,Childrens & Education Services,Fostering Services,ART Independent Agency Foster,W1DE46,Supplies & Services           ,Services                      ,DF91,Long Term Fostering                     ,573.55,01/06/2015,REV,FOSTER CARE ASSOCIATES LTD    
477,Childrens & Education Services,Fostering Services,ART Independent Agency Foster,W1DE46,Supplies & Services           ,Services                      ,DF91,Long Term Fostering                     ,802.97,01/06/2015,REV,FOSTER CARE ASSOCIATES LTD    
478,Childrens & Education Services,Fostering Services,ART Independent Agency Foster,W1DE46,Supplies & Services           ,Services                      ,DF91,Long Term Fostering                     ,802.97,01/06/2015,REV,FOSTER CARE ASSOCIATES LTD    
479,Childrens & Education Services,Fostering Services,ART Independent Agency Foster,W1DE46,Supplies & Services           ,Services                      ,DF91,Long Term Fostering                     ,802.97,01/06/2015,REV,FOSTER CARE ASSOCIATES LTD    
480,Childrens & Education Services,Fostering Services,ART Independent Agency Foster,W1DE46,Supplies & Services           ,Services                      ,DF91,Long Term Fostering                     ,802.97,01/06/2015,REV,FOSTER CARE ASSOCIATES LTD    
481,Childrens & Education Services,,ART Residential Secure accommo,W1DE58,Third Party Payments          ,Private Contractors           ,EH17,Supported Lodgings                      ,850.00,16/07/2015,REV,NETPEX LTD                    
482,Childrens & Education Services,,ART Residential Secure accommo,W1DE58,Third Party Payments          ,Private Contractors           ,EH17,Supported Lodgings                      ,850.00,16/07/2015,REV,NETPEX LTD                    
483,Childrens & Education Services,,ART Residential Secure accommo,W1DE58,Third Party Payments          ,Private Contractors           ,EH17,Supported Lodgings                      ,850.00,16/07/2015,REV,NETPEX LTD                    
484,Childrens & Education Services,,ART Residential Secure accommo,W1DE58,Third Party Payments          ,Private Contractors           ,EH17,Supported Lodgings                      ,850.00,16/07/2015,REV,NETPEX LTD                    
485,Adult Social Care,PS u65 Residentl Care Placemnt,PD EAST TEAM-Residential,W2JJ55,Third Party Payments          ,Private Contractors           ,EH01,Miscellaneous Agency Services           ,1774.00,01/09/2015,REV,CARE MANAGEMENT GROUP         
486,Adult Social Care,PS u65 Residentl Care Placemnt,PD EAST TEAM-Residential,W2JJ55,Third Party Payments          ,Private Contractors           ,EH01,Miscellaneous Agency Services           ,1774.00,01/09/2015,REV,CARE MANAGEMENT GROUP         
487,Adult Social Care,PS u65 Residentl Care Placemnt,PD EAST TEAM-Residential,W2JJ55,Third Party Payments          ,Private Contractors           ,EH01,Miscellaneous Agency Services           ,1774.00,01/09/2015,REV,CARE MANAGEMENT GROUP         
488,Adult Social Care,PS u65 Residentl Care Placemnt,PD EAST TEAM-Residential,W2JJ55,Third Party Payments          ,Private Contractors           ,EH01,Miscellaneous Agency Services           ,-599.40,01/09/2015,REV,CARE MANAGEMENT GROUP         
489,Adult Social Care,PS u65 Residentl Care Placemnt,PD EAST TEAM-Residential,W2JJ55,Third Party Payments          ,Private Contractors           ,EH01,Miscellaneous Agency Services           ,1774.00,01/09/2015,REV,CARE MANAGEMENT GROUP         
490,Adult Social Care,PS u65 Direct Payments,PD EAST TEAM-Direct Payment,W2JJ36,Third Party Payments          ,Private Contractors           ,EH73,Direct Payments                         ,590.75,24/08/2015,REV,REDACTED
491,Adult Social Care,PS u65 Direct Payments,PD EAST TEAM-Direct Payment,W2JJ36,Third Party Payments          ,Private Contractors           ,EH73,Direct Payments                         ,590.75,24/08/2015,REV,REDACTED
492,Adult Social Care,PS u65 Direct Payments,PD EAST TEAM-Direct Payment,W2JJ36,Third Party Payments          ,Private Contractors           ,EH73,Direct Payments                         ,590.75,24/08/2015,REV,REDACTED
493,Adult Social Care,PS u65 Direct Payments,PD EAST TEAM-Direct Payment,W2JJ36,Third Party Payments          ,Private Contractors           ,EH73,Direct Payments                         ,590.75,24/08/2015,REV,REDACTED
494,Adult Social Care,PS u65 Direct Payments,PD WEST TEAM-Direct Payment,W2JK36,Third Party Payments          ,Private Contractors           ,EH73,Direct Payments                         ,602.33,24/08/2015,REV,REDACTED
495,Adult Social Care,PS u65 Direct Payments,PD WEST TEAM-Direct Payment,W2JK36,Third Party Payments          ,Private Contractors           ,EH73,Direct Payments                         ,602.33,24/08/2015,REV,REDACTED
496,Adult Social Care,PS u65 Direct Payments,PD WEST TEAM-Direct Payment,W2JK36,Third Party Payments          ,Private Contractors           ,EH73,Direct Payments                         ,602.33,24/08/2015,REV,REDACTED
497,Adult Social Care,PS u65 Direct Payments,PD WEST TEAM-Direct Payment,W2JK36,Third Party Payments          ,Private Contractors           ,EH73,Direct Payments                         ,602.33,24/08/2015,REV,REDACTED
498,Adult Social Care,PS u65 Direct Payments,PD WEST TEAM-Direct Payment,W2JK36,Third Party Payments          ,Private Contractors           ,EH73,Direct Payments                         ,746.40,24/08/2015,REV,REDACTED
499,Adult Social Care,PS u65 Direct Payments,PD WEST TEAM-Direct Payment,W2JK36,Third Party Payments          ,Private Contractors           ,EH73,Direct Payments                         ,746.40,24/08/2015,REV,REDACTED
500,Adult Social Care,PS u65 Direct Payments,PD WEST TEAM-Direct Payment,W2JK36,Third Party Payments          ,Private Contractors           ,EH73,Direct Payments                         ,746.40,24/08/2015,REV,REDACTED
501,Adult Social Care,PS u65 Direct Payments,PD WEST TEAM-Direct Payment,W2JK36,Third Party Payments          ,Private Contractors           ,EH73,Direct Payments                         ,746.40,24/08/2015,REV,REDACTED
502,Adult Social Care,PS u65 Direct Payments,PD EAST TEAM-Direct Payment,W2JJ36,Third Party Payments          ,Private Contractors           ,EH73,Direct Payments                         ,670.95,24/08/2015,REV,REDACTED
503,Adult Social Care,PS u65 Direct Payments,PD EAST TEAM-Direct Payment,W2JJ36,Third Party Payments          ,Private Contractors           ,EH73,Direct Payments                         ,670.95,24/08/2015,REV,REDACTED
504,Adult Social Care,PS u65 Direct Payments,PD EAST TEAM-Direct Payment,W2JJ36,Third Party Payments          ,Private Contractors           ,EH73,Direct Payments                         ,670.95,24/08/2015,REV,REDACTED
505,Adult Social Care,PS u65 Direct Payments,PD EAST TEAM-Direct Payment,W2JJ36,Third Party Payments          ,Private Contractors           ,EH73,Direct Payments                         ,670.95,24/08/2015,REV,REDACTED
506,Adult Social Care,PS u65 Direct Payments,PD WEST TEAM-Direct Payment,W2JK36,Third Party Payments          ,Private Contractors           ,EH73,Direct Payments                         ,609.50,24/08/2015,REV,REDACTED
507,Adult Social Care,PS u65 Direct Payments,PD WEST TEAM-Direct Payment,W2JK36,Third Party Payments          ,Private Contractors           ,EH73,Direct Payments                         ,609.50,24/08/2015,REV,REDACTED
508,Adult Social Care,PS u65 Direct Payments,PD WEST TEAM-Direct Payment,W2JK36,Third Party Payments          ,Private Contractors           ,EH73,Direct Payments                         ,609.50,24/08/2015,REV,REDACTED
509,Adult Social Care,PS u65 Direct Payments,PD WEST TEAM-Direct Payment,W2JK36,Third Party Payments          ,Private Contractors           ,EH73,Direct Payments                         ,609.50,24/08/2015,REV,REDACTED
510,Adult Social Care,PS u65 Direct Payments,PD EAST TEAM-Direct Payment,W2JJ36,Third Party Payments          ,Private Contractors           ,EH73,Direct Payments                         ,896.64,24/08/2015,REV,REDACTED
511,Adult Social Care,PS u65 Direct Payments,PD EAST TEAM-Direct Payment,W2JJ36,Third Party Payments          ,Private Contractors           ,EH73,Direct Payments                         ,896.64,24/08/2015,REV,REDACTED
512,Adult Social Care,PS u65 Direct Payments,PD EAST TEAM-Direct Payment,W2JJ36,Third Party Payments          ,Private Contractors           ,EH73,Direct Payments                         ,896.64,24/08/2015,REV,REDACTED
513,Adult Social Care,PS u65 Direct Payments,PD EAST TEAM-Direct Payment,W2JJ36,Third Party Payments          ,Private Contractors           ,EH73,Direct Payments                         ,896.64,24/08/2015,REV,REDACTED
514,Adult Social Care,PS u65 Direct Payments,PD WEST TEAM-Direct Payment,W2JK36,Third Party Payments          ,Private Contractors           ,EH73,Direct Payments                         ,550.92,24/08/2015,REV,REDACTED
515,Adult Social Care,PS u65 Direct Payments,PD WEST TEAM-Direct Payment,W2JK36,Third Party Payments          ,Private Contractors           ,EH73,Direct Payments                         ,550.92,24/08/2015,REV,REDACTED
516,Adult Social Care,PS u65 Direct Payments,PD WEST TEAM-Direct Payment,W2JK36,Third Party Payments          ,Private Contractors           ,EH73,Direct Payments                         ,550.92,24/08/2015,REV,REDACTED
517,Adult Social Care,PS u65 Direct Payments,PD WEST TEAM-Direct Payment,W2JK36,Third Party Payments          ,Private Contractors           ,EH73,Direct Payments                         ,550.92,24/08/2015,REV,REDACTED
518,Childrens & Education Services,Family - Direct Payments,CS Direct Payments,W1CF36,Third Party Payments          ,Private Contractors           ,EH73,Direct Payments                         ,764.90,24/08/2015,REV,REDACTED
519,Childrens & Education Services,Family - Direct Payments,CS Direct Payments,W1CF36,Third Party Payments          ,Private Contractors           ,EH73,Direct Payments                         ,764.90,24/08/2015,REV,REDACTED
520,Childrens & Education Services,Family - Direct Payments,CS Direct Payments,W1CF36,Third Party Payments          ,Private Contractors           ,EH73,Direct Payments                         ,764.90,24/08/2015,REV,REDACTED
521,Childrens & Education Services,Family - Direct Payments,CS Direct Payments,W1CF36,Third Party Payments          ,Private Contractors           ,EH73,Direct Payments                         ,764.90,24/08/2015,REV,REDACTED
522,Childrens & Education Services,Family - Direct Payments,CS Direct Payments,W1CF36,Third Party Payments          ,Private Contractors           ,EH73,Direct Payments                         ,551.60,24/08/2015,REV,REDACTED
523,Childrens & Education Services,Family - Direct Payments,CS Direct Payments,W1CF36,Third Party Payments          ,Private Contractors           ,EH73,Direct Payments                         ,551.60,24/08/2015,REV,REDACTED
524,Childrens & Education Services,Family - Direct Payments,CS Direct Payments,W1CF36,Third Party Payments          ,Private Contractors           ,EH73,Direct Payments                         ,551.60,24/08/2015,REV,REDACTED
525,Childrens & Education Services,Family - Direct Payments,CS Direct Payments,W1CF36,Third Party Payments          ,Private Contractors           ,EH73,Direct Payments                         ,551.60,24/08/2015,REV,REDACTED
526,Adult Social Care,PS u65 Direct Payments,PD EAST TEAM-Direct Payment,W2JJ36,Third Party Payments          ,Private Contractors           ,EH73,Direct Payments                         ,535.07,24/08/2015,REV,REDACTED
527,Adult Social Care,PS u65 Direct Payments,PD EAST TEAM-Direct Payment,W2JJ36,Third Party Payments          ,Private Contractors           ,EH73,Direct Payments                         ,535.07,24/08/2015,REV,REDACTED
528,Adult Social Care,PS u65 Direct Payments,PD EAST TEAM-Direct Payment,W2JJ36,Third Party Payments          ,Private Contractors           ,EH73,Direct Payments                         ,535.07,24/08/2015,REV,REDACTED
529,Adult Social Care,PS u65 Direct Payments,PD EAST TEAM-Direct Payment,W2JJ36,Third Party Payments          ,Private Contractors           ,EH73,Direct Payments                         ,535.07,24/08/2015,REV,REDACTED
530,Childrens & Education Services,Family - Direct Payments,CS Direct Payments,W1CF36,Third Party Payments          ,Private Contractors           ,EH73,Direct Payments                         ,1160.65,24/08/2015,REV,REDACTED
531,Childrens & Education Services,Family - Direct Payments,CS Direct Payments,W1CF36,Third Party Payments          ,Private Contractors           ,EH73,Direct Payments                         ,1160.65,24/08/2015,REV,REDACTED
532,Childrens & Education Services,Family - Direct Payments,CS Direct Payments,W1CF36,Third Party Payments          ,Private Contractors           ,EH73,Direct Payments                         ,1160.65,24/08/2015,REV,REDACTED
533,Childrens & Education Services,Family - Direct Payments,CS Direct Payments,W1CF36,Third Party Payments          ,Private Contractors           ,EH73,Direct Payments                         ,1160.65,24/08/2015,REV,REDACTED
534,Adult Social Care,MH u65 Residentl Care Placemnt,MH ResidentialCare Ext - Wim,W2HC55,Third Party Payments          ,Private Contractors           ,EH01,Miscellaneous Agency Services           ,908.00,01/09/2015,REV,CARE MANAGEMENT GROUP         
535,Adult Social Care,MH u65 Residentl Care Placemnt,MH ResidentialCare Ext - Wim,W2HC55,Third Party Payments          ,Private Contractors           ,EH01,Miscellaneous Agency Services           ,908.00,01/09/2015,REV,CARE MANAGEMENT GROUP         
536,Adult Social Care,MH u65 Residentl Care Placemnt,MH ResidentialCare Ext - Wim,W2HC55,Third Party Payments          ,Private Contractors           ,EH01,Miscellaneous Agency Services           ,908.00,01/09/2015,REV,CARE MANAGEMENT GROUP         
537,Adult Social Care,MH u65 Residentl Care Placemnt,MH ResidentialCare Ext - Wim,W2HC55,Third Party Payments          ,Private Contractors           ,EH01,Miscellaneous Agency Services           ,908.00,01/09/2015,REV,CARE MANAGEMENT GROUP         
538,Childrens & Education Services,Family - Other Services,SPECIAL GUARDIANSHIP ORDERS,W1DC37,Third Party Payments          ,Private Contractors           ,EH01,Miscellaneous Contrct Services          ,4210.00,24/08/2015,REV,ROYAL ALEXANDRA & ALBERT SCH'L
539,Childrens & Education Services,Leaving Care Services,"MASH, FR and VCT NRTPF                  ",W1CE39,Third Party Payments          ,Private Contractors           ,EH04,Accommodation Based Support             ,500.00,24/08/2015,REV,REDACTED
540,Adult Social Care,LD u65 Direct Payments,LD Direct Payment Scheme,W2KB36,Third Party Payments          ,Private Contractors           ,EH73,Direct Payments                         ,2340.50,25/08/2015,REV,REDACTED
541,Adult Social Care,LD u65 Home Care,LD Home Care External,W2KB49,Third Party Payments          ,Private Contractors           ,EH01,Miscellaneous Agency Services           ,650.00,25/05/2015,REV,HOLISTIC COMMUNITY CARE LTD   
542,Adult Social Care,LD u65 Home Care,LD Home Care External,W2KB49,Third Party Payments          ,Private Contractors           ,EH01,Miscellaneous Agency Services           ,650.00,25/05/2015,REV,HOLISTIC COMMUNITY CARE LTD   
543,Adult Social Care,LD u65 Home Care,LD Home Care External,W2KB49,Third Party Payments          ,Private Contractors           ,EH01,Miscellaneous Agency Services           ,650.00,25/05/2015,REV,HOLISTIC COMMUNITY CARE LTD   
544,Adult Social Care,LD u65 Home Care,LD Home Care External,W2KB49,Third Party Payments          ,Private Contractors           ,EH01,Miscellaneous Agency Services           ,650.00,25/05/2015,REV,HOLISTIC COMMUNITY CARE LTD   
545,Adult Social Care,MH u65 Supported & Other Accom,MH Adult Placement Cont-Wim,W2HC32,Third Party Payments          ,Private Contractors           ,EH04,Accommodation Based Support             ,2250.00,25/08/2015,REV,REDACTED
546,Adult Social Care,PS u65 Residentl Care Placemnt,PD R/Park-Residential Care              ,W2JM55,Third Party Payments          ,Private Contractors           ,EH01,Miscellaneous Contrct Services          ,2730.00,30/06/2015,REV,NCYPE                         
547,Adult Social Care,PS u65 Residentl Care Placemnt,PD R/Park-Residential Care              ,W2JM55,Third Party Payments          ,Private Contractors           ,EH01,Miscellaneous Contrct Services          ,2730.00,30/06/2015,REV,NCYPE                         
548,Adult Social Care,PS u65 Residentl Care Placemnt,PD R/Park-Residential Care              ,W2JM55,Third Party Payments          ,Private Contractors           ,EH01,Miscellaneous Contrct Services          ,2730.00,30/06/2015,REV,NCYPE                         
549,Adult Social Care,PS u65 Residentl Care Placemnt,PD R/Park-Residential Care              ,W2JM55,Third Party Payments          ,Private Contractors           ,EH01,Miscellaneous Contrct Services          ,2730.00,30/06/2015,REV,NCYPE                         
550,Adult Social Care,PS u65 Residentl Care Placemnt,PD R/Park-Residential Care              ,W2JM55,Third Party Payments          ,Private Contractors           ,EH01,Miscellaneous Contrct Services          ,2730.00,30/06/2015,REV,NCYPE                         
551,Adult Social Care,PS u65 Residentl Care Placemnt,PD R/Park-Residential Care              ,W2JM55,Third Party Payments          ,Private Contractors           ,EH01,Miscellaneous Contrct Services          ,-1950.00,30/06/2015,REV,NCYPE                         
552,Adult Social Care,PS u65 Nursing Care Placements,PD EAST TEAM-Nursing,W2JJ53,Third Party Payments          ,Private Contractors           ,EH01,Miscellaneous Agency Services           ,817.55,18/08/2015,REV,BUPA CARE HOMES               
553,Adult Social Care,PS u65 Nursing Care Placements,PD EAST TEAM-Nursing,W2JJ53,Third Party Payments          ,Private Contractors           ,EH01,Miscellaneous Agency Services           ,817.55,18/08/2015,REV,BUPA CARE HOMES               
554,Adult Social Care,PS u65 Nursing Care Placements,PD EAST TEAM-Nursing,W2JJ53,Third Party Payments          ,Private Contractors           ,EH01,Miscellaneous Agency Services           ,817.55,18/08/2015,REV,BUPA CARE HOMES               
555,Adult Social Care,PS u65 Nursing Care Placements,PD EAST TEAM-Nursing,W2JJ53,Third Party Payments          ,Private Contractors           ,EH01,Miscellaneous Agency Services           ,817.55,18/08/2015,REV,BUPA CARE HOMES               
556,Adult Social Care,PS u65 Nursing Care Placements,PD R/Park-Nursing                       ,W2JM53,Third Party Payments          ,Private Contractors           ,EH01,Miscellaneous Contrct Services          ,750.00,01/08/2015,REV,CHEGWORTH N.H. (BAYSWIFT LTD) 
557,Adult Social Care,PS u65 Nursing Care Placements,PD R/Park-Nursing                       ,W2JM53,Third Party Payments          ,Private Contractors           ,EH01,Miscellaneous Contrct Services          ,750.00,01/08/2015,REV,CHEGWORTH N.H. (BAYSWIFT LTD) 
558,Adult Social Care,PS u65 Nursing Care Placements,PD R/Park-Nursing                       ,W2JM53,Third Party Payments          ,Private Contractors           ,EH01,Miscellaneous Contrct Services          ,750.00,01/08/2015,REV,CHEGWORTH N.H. (BAYSWIFT LTD) 
559,Adult Social Care,PS u65 Nursing Care Placements,PD R/Park-Nursing                       ,W2JM53,Third Party Payments          ,Private Contractors           ,EH01,Miscellaneous Contrct Services          ,750.00,01/08/2015,REV,CHEGWORTH N.H. (BAYSWIFT LTD) 
560,Childrens & Education Services,,ART Residential Secure accommo,W1DE58,Third Party Payments          ,Private Contractors           ,EH01,Miscellaneous Agency Services           ,850.01,14/08/2015,REV,NETPEX LTD                    
561,Adult Social Care,PS u65 Nursing Care Placements,PD R/Park-Nursing                       ,W2JM53,Third Party Payments          ,Private Contractors           ,EH01,Miscellaneous Contrct Services          ,800.00,18/08/2015,REV,BUPA CARE HOMES               
562,Adult Social Care,PS u65 Nursing Care Placements,PD R/Park-Nursing                       ,W2JM53,Third Party Payments          ,Private Contractors           ,EH01,Miscellaneous Contrct Services          ,800.00,18/08/2015,REV,BUPA CARE HOMES               
563,Adult Social Care,PS u65 Nursing Care Placements,PD R/Park-Nursing                       ,W2JM53,Third Party Payments          ,Private Contractors           ,EH01,Miscellaneous Contrct Services          ,800.00,18/08/2015,REV,BUPA CARE HOMES               
564,Adult Social Care,PS u65 Nursing Care Placements,PD R/Park-Nursing                       ,W2JM53,Third Party Payments          ,Private Contractors           ,EH01,Miscellaneous Contrct Services          ,800.00,18/08/2015,REV,BUPA CARE HOMES               
565,Adult Social Care,MH u65 Nursing Care Placements,MH Nursing Care - Morden,W2HB53,Third Party Payments          ,Private Contractors           ,EH01,Miscellaneous Agency Services           ,679.13,25/08/2015,REV,CARE UNLIMITED                
566,Adult Social Care,MH u65 Nursing Care Placements,MH Nursing Care - Morden,W2HB53,Third Party Payments          ,Private Contractors           ,EH01,Miscellaneous Agency Services           ,679.13,25/08/2015,REV,CARE UNLIMITED                
567,Adult Social Care,MH u65 Nursing Care Placements,MH Nursing Care - Morden,W2HB53,Third Party Payments          ,Private Contractors           ,EH01,Miscellaneous Agency Services           ,679.13,25/08/2015,REV,CARE UNLIMITED                
568,Adult Social Care,MH u65 Nursing Care Placements,MH Nursing Care - Morden,W2HB53,Third Party Payments          ,Private Contractors           ,EH01,Miscellaneous Agency Services           ,679.13,25/08/2015,REV,CARE UNLIMITED                
569,Childrens & Education Services,,ART Residential Secure accommo,W1DE58,Third Party Payments          ,Private Contractors           ,EH01,Miscellaneous Agency Services           ,850.00,14/08/2015,REV,NETPEX LTD                    
570,Childrens & Education Services,CS - Commiss'ing & Social Work,Access to Resources Team,W1DE01,Third Party Payments          ,Private Contractors           ,EH01,Miscellaneous Agency Services           ,3629.00,24/03/2015,REV,ACHIEVING FOR CHILDREN LTD    
571,Adult Social Care,OP 65 & Over Home Care,OP West - Home Care External,W2LG49,Third Party Payments          ,Private Contractors           ,EH01,Miscellaneous Agency Services           ,1940.40,23/04/2015,REV,SANCTUARY HOME CARE           
572,Adult Social Care,OP 65 & Over Home Care,OP West - Home Care External,W2LG49,Third Party Payments          ,Private Contractors           ,EH01,Miscellaneous Agency Services           ,1940.40,23/04/2015,REV,SANCTUARY HOME CARE           
573,Adult Social Care,OP 65 & Over Home Care,OP West - Home Care External,W2LG49,Third Party Payments          ,Private Contractors           ,EH01,Miscellaneous Agency Services           ,1940.40,23/04/2015,REV,SANCTUARY HOME CARE           
574,Adult Social Care,OP 65 & Over Home Care,OP West - Home Care External,W2LG49,Third Party Payments          ,Private Contractors           ,EH01,Miscellaneous Agency Services           ,1940.40,23/04/2015,REV,SANCTUARY HOME CARE           
575,Adult Social Care,LD u65 Residentl Care Placemnt,LD Residential Care External,W2KB55,Third Party Payments          ,Private Contractors           ,EH01,Miscellaneous Agency Services           ,802.59,02/08/2015,REV,CRAEGMOOR FACILITIES - WINDSOR
576,Adult Social Care,LD u65 Residentl Care Placemnt,LD Residential Care External,W2KB55,Third Party Payments          ,Private Contractors           ,EH01,Miscellaneous Agency Services           ,802.59,02/08/2015,REV,CRAEGMOOR FACILITIES - WINDSOR
577,Adult Social Care,LD u65 Residentl Care Placemnt,LD Residential Care External,W2KB55,Third Party Payments          ,Private Contractors           ,EH01,Miscellaneous Agency Services           ,802.59,02/08/2015,REV,CRAEGMOOR FACILITIES - WINDSOR
578,Adult Social Care,LD u65 Residentl Care Placemnt,LD Residential Care External,W2KB55,Third Party Payments          ,Private Contractors           ,EH01,Miscellaneous Agency Services           ,802.59,02/08/2015,REV,CRAEGMOOR FACILITIES - WINDSOR
579,Adult Social Care,LD u65 Nursing Care Placements,LD Nursing Care,W2KB53,Third Party Payments          ,Private Contractors           ,EH01,Miscellaneous Agency Services           ,1351.42,29/07/2015,REV,HIGH HURLANDS HOMES           
580,Adult Social Care,LD u65 Nursing Care Placements,LD Nursing Care,W2KB53,Third Party Payments          ,Private Contractors           ,EH01,Miscellaneous Agency Services           ,1351.42,29/07/2015,REV,HIGH HURLANDS HOMES           
581,Adult Social Care,LD u65 Nursing Care Placements,LD Nursing Care,W2KB53,Third Party Payments          ,Private Contractors           ,EH01,Miscellaneous Agency Services           ,1351.42,29/07/2015,REV,HIGH HURLANDS HOMES           
582,Adult Social Care,LD u65 Nursing Care Placements,LD Nursing Care,W2KB53,Third Party Payments          ,Private Contractors           ,EH01,Miscellaneous Agency Services           ,1351.42,29/07/2015,REV,HIGH HURLANDS HOMES           
583,Childrens & Education Services,Chidren's Homes,ART Residential Placements,W1DE57,Third Party Payments          ,Private Contractors           ,EH01,Miscellaneous Agency Services           ,600.00,22/06/2015,REV,REDACTED
584,Childrens & Education Services,Chidren's Homes,ART Residential Placements,W1DE57,Third Party Payments          ,Private Contractors           ,EH01,Miscellaneous Agency Services           ,600.00,22/06/2015,REV,REDACTED
585,Adult Social Care,LD u65 Residentl Care Placemnt,LD Residential Care External,W2KB55,Third Party Payments          ,Private Contractors           ,EH01,Miscellaneous Agency Services           ,1850.00,31/07/2015,REV,LONDON CARE PARTNERSHIP       
586,Adult Social Care,LD u65 Residentl Care Placemnt,LD Residential Care External,W2KB55,Third Party Payments          ,Private Contractors           ,EH01,Miscellaneous Agency Services           ,1850.00,31/07/2015,REV,LONDON CARE PARTNERSHIP       
587,Adult Social Care,LD u65 Residentl Care Placemnt,LD Residential Care External,W2KB55,Third Party Payments          ,Private Contractors           ,EH01,Miscellaneous Agency Services           ,1850.00,31/07/2015,REV,LONDON CARE PARTNERSHIP       
588,Adult Social Care,LD u65 Residentl Care Placemnt,LD Residential Care External,W2KB55,Third Party Payments          ,Private Contractors           ,EH01,Miscellaneous Agency Services           ,1850.00,31/07/2015,REV,LONDON CARE PARTNERSHIP       
589,Adult Social Care,LD u65 Residentl Care Placemnt,LD Residential Care External,W2KB55,Third Party Payments          ,Private Contractors           ,EH01,Miscellaneous Agency Services           ,1850.00,31/07/2015,REV,LONDON CARE PARTNERSHIP       
590,Adult Social Care,LD u65 Residentl Care Placemnt,LD Residential Care External,W2KB55,Third Party Payments          ,Private Contractors           ,EH01,Miscellaneous Agency Services           ,1850.00,31/07/2015,REV,LONDON CARE PARTNERSHIP       
591,Adult Social Care,LD u65 Residentl Care Placemnt,LD Residential Care External,W2KB55,Third Party Payments          ,Private Contractors           ,EH01,Miscellaneous Agency Services           ,1850.00,31/07/2015,REV,LONDON CARE PARTNERSHIP       
592,Adult Social Care,LD u65 Residentl Care Placemnt,LD Residential Care External,W2KB55,Third Party Payments          ,Private Contractors           ,EH01,Miscellaneous Agency Services           ,1850.00,31/07/2015,REV,LONDON CARE PARTNERSHIP       
593,Adult Social Care,LD u65 Residentl Care Placemnt,LD Residential Care External,W2KB55,Third Party Payments          ,Private Contractors           ,EH01,Miscellaneous Agency Services           ,2181.00,31/07/2015,REV,LONDON CARE PARTNERSHIP       
594,Adult Social Care,LD u65 Residentl Care Placemnt,LD Residential Care External,W2KB55,Third Party Payments          ,Private Contractors           ,EH01,Miscellaneous Agency Services           ,769.00,31/07/2015,REV,LONDON CARE PARTNERSHIP       
595,Adult Social Care,LD u65 Residentl Care Placemnt,LD Residential Care External,W2KB55,Third Party Payments          ,Private Contractors           ,EH01,Miscellaneous Agency Services           ,2181.00,31/07/2015,REV,LONDON CARE PARTNERSHIP       
596,Adult Social Care,LD u65 Residentl Care Placemnt,LD Residential Care External,W2KB55,Third Party Payments          ,Private Contractors           ,EH01,Miscellaneous Agency Services           ,769.00,31/07/2015,REV,LONDON CARE PARTNERSHIP       
597,Adult Social Care,LD u65 Residentl Care Placemnt,LD Residential Care External,W2KB55,Third Party Payments          ,Private Contractors           ,EH01,Miscellaneous Agency Services           ,769.00,31/07/2015,REV,LONDON CARE PARTNERSHIP       
598,Adult Social Care,LD u65 Residentl Care Placemnt,LD Residential Care External,W2KB55,Third Party Payments          ,Private Contractors           ,EH01,Miscellaneous Agency Services           ,2181.00,31/07/2015,REV,LONDON CARE PARTNERSHIP       
599,Adult Social Care,LD u65 Residentl Care Placemnt,LD Residential Care External,W2KB55,Third Party Payments          ,Private Contractors           ,EH01,Miscellaneous Agency Services           ,769.00,31/07/2015,REV,LONDON CARE PARTNERSHIP       
600,Adult Social Care,LD u65 Residentl Care Placemnt,LD Residential Care External,W2KB55,Third Party Payments          ,Private Contractors           ,EH01,Miscellaneous Agency Services           ,2181.00,31/07/2015,REV,LONDON CARE PARTNERSHIP       
601,Adult Social Care,LD u65 Residentl Care Placemnt,LD Residential Care External,W2KB55,Third Party Payments          ,Private Contractors           ,EH01,Miscellaneous Agency Services           ,2181.00,31/07/2015,REV,LONDON CARE PARTNERSHIP       
602,Adult Social Care,LD u65 Residentl Care Placemnt,LD Residential Care External,W2KB55,Third Party Payments          ,Private Contractors           ,EH01,Miscellaneous Agency Services           ,769.00,31/07/2015,REV,LONDON CARE PARTNERSHIP       
603,Adult Social Care,LD u65 Residentl Care Placemnt,LD Residential Care External,W2KB55,Third Party Payments          ,Private Contractors           ,EH01,Miscellaneous Agency Services           ,2181.00,31/07/2015,REV,LONDON CARE PARTNERSHIP       
604,Adult Social Care,LD u65 Residentl Care Placemnt,LD Residential Care External,W2KB55,Third Party Payments          ,Private Contractors           ,EH01,Miscellaneous Agency Services           ,769.00,31/07/2015,REV,LONDON CARE PARTNERSHIP       
605,Adult Social Care,LD u65 Residentl Care Placemnt,LD Residential Care External,W2KB55,Third Party Payments          ,Private Contractors           ,EH01,Miscellaneous Agency Services           ,769.00,31/07/2015,REV,LONDON CARE PARTNERSHIP       
606,Adult Social Care,LD u65 Residentl Care Placemnt,LD Residential Care External,W2KB55,Third Party Payments          ,Private Contractors           ,EH01,Miscellaneous Agency Services           ,2181.00,31/07/2015,REV,LONDON CARE PARTNERSHIP       
607,Adult Social Care,LD u65 Residentl Care Placemnt,LD Residential Care External,W2KB55,Third Party Payments          ,Private Contractors           ,EH01,Miscellaneous Agency Services           ,769.00,31/07/2015,REV,LONDON CARE PARTNERSHIP       
608,Adult Social Care,LD u65 Residentl Care Placemnt,LD Residential Care External,W2KB55,Third Party Payments          ,Private Contractors           ,EH01,Miscellaneous Agency Services           ,2181.00,31/07/2015,REV,LONDON CARE PARTNERSHIP       
609,Adult Social Care,LD u65 Residentl Care Placemnt,LD Residential Care External,W2KB55,Third Party Payments          ,Private Contractors           ,EH01,Miscellaneous Agency Services           ,2150.00,31/07/2015,REV,LONDON CARE PARTNERSHIP       
610,Adult Social Care,LD u65 Residentl Care Placemnt,LD Residential Care External,W2KB55,Third Party Payments          ,Private Contractors           ,EH01,Miscellaneous Agency Services           ,2150.00,31/07/2015,REV,LONDON CARE PARTNERSHIP       
611,Adult Social Care,LD u65 Residentl Care Placemnt,LD Residential Care External,W2KB55,Third Party Payments          ,Private Contractors           ,EH01,Miscellaneous Agency Services           ,2150.00,31/07/2015,REV,LONDON CARE PARTNERSHIP       
612,Adult Social Care,LD u65 Residentl Care Placemnt,LD Residential Care External,W2KB55,Third Party Payments          ,Private Contractors           ,EH01,Miscellaneous Agency Services           ,2150.00,31/07/2015,REV,LONDON CARE PARTNERSHIP       
613,Childrens & Education Services,Chidren's Homes,ART Residential Placements,W1DE57,Third Party Payments          ,Private Contractors           ,EH01,Miscellaneous Agency Services           ,1457.14,30/06/2015,REV,REDACTED
614,Childrens & Education Services,Chidren's Homes,ART Residential Placements,W1DE57,Third Party Payments          ,Private Contractors           ,EH01,Miscellaneous Agency Services           ,3400.00,30/06/2015,REV,REDACTED
615,Childrens & Education Services,Chidren's Homes,ART Residential Placements,W1DE57,Third Party Payments          ,Private Contractors           ,EH01,Miscellaneous Agency Services           ,2800.00,30/06/2015,REV,REDACTED
616,Childrens & Education Services,Chidren's Homes,ART Residential Placements,W1DE57,Third Party Payments          ,Private Contractors           ,EH01,Miscellaneous Agency Services           ,2800.00,30/06/2015,REV,REDACTED
617,Childrens & Education Services,Chidren's Homes,ART Residential Placements,W1DE57,Third Party Payments          ,Private Contractors           ,EH01,Miscellaneous Agency Services           ,-1200.00,30/06/2015,REV,REDACTED
618,Adult Social Care,OP 65 & Over Day Care,OP West - Daycare,W2LG33,Third Party Payments          ,Private Contractors           ,EH01,Miscellaneous Agency Services           ,11073.60,04/08/2015,REV,WOODLANDS                     
619,Adult Social Care,OP 65 & Over Day Care,OP West - Daycare,W2LG33,Third Party Payments          ,Private Contractors           ,EH01,Miscellaneous Agency Services           ,-627.40,22/07/2015,REV,WOODLANDS                     
620,Adult Social Care,OP 65 & Over Day Care,OP West - Daycare,W2LG33,Third Party Payments          ,Private Contractors           ,EH01,Miscellaneous Agency Services           ,-501.92,22/07/2015,REV,WOODLANDS                     
621,Adult Social Care,LD u65 Residentl Care Placemnt,LD Residential Care External,W2KB55,Third Party Payments          ,Private Contractors           ,EH01,Miscellaneous Agency Services           ,1670.50,27/07/2015,REV,ELIZABETH FITZROY HOMES       
622,Adult Social Care,LD u65 Residentl Care Placemnt,LD Residential Care External,W2KB55,Third Party Payments          ,Private Contractors           ,EH01,Miscellaneous Agency Services           ,1670.50,27/07/2015,REV,ELIZABETH FITZROY HOMES       
623,Adult Social Care,LD u65 Residentl Care Placemnt,LD Residential Care External,W2KB55,Third Party Payments          ,Private Contractors           ,EH01,Miscellaneous Agency Services           ,1670.50,27/07/2015,REV,ELIZABETH FITZROY HOMES       
624,Adult Social Care,LD u65 Residentl Care Placemnt,LD Residential Care External,W2KB55,Third Party Payments          ,Private Contractors           ,EH01,Miscellaneous Agency Services           ,1670.50,27/07/2015,REV,ELIZABETH FITZROY HOMES       
625,Adult Social Care,LD u65 Residentl Care Placemnt,LD Residential Care External,W2KB55,Third Party Payments          ,Private Contractors           ,EH01,Miscellaneous Agency Services           ,1482.92,27/07/2015,REV,THE LEO TRUST                 
626,Adult Social Care,LD u65 Residentl Care Placemnt,LD Residential Care External,W2KB55,Third Party Payments          ,Private Contractors           ,EH01,Miscellaneous Agency Services           ,1482.92,27/07/2015,REV,THE LEO TRUST                 
627,Adult Social Care,LD u65 Residentl Care Placemnt,LD Residential Care External,W2KB55,Third Party Payments          ,Private Contractors           ,EH01,Miscellaneous Agency Services           ,1482.92,27/07/2015,REV,THE LEO TRUST                 
628,Adult Social Care,LD u65 Residentl Care Placemnt,LD Residential Care External,W2KB55,Third Party Payments          ,Private Contractors           ,EH01,Miscellaneous Agency Services           ,1482.92,27/07/2015,REV,THE LEO TRUST                 
629,Childrens & Education Services,Leaving Care Services,CL Setting Up Home Allowance,W1DF41,Third Party Payments          ,Private Contractors           ,EH01,Miscellaneous Agency Services           ,1832.81,05/08/2015,REV,REDACTED
630,Adult Social Care,LD u65 Residentl Care Placemnt,LD Residential Care External,W2KB55,Third Party Payments          ,Private Contractors           ,EH01,Miscellaneous Agency Services           ,728.57,31/07/2015,REV,SUSSEX HEALTH CARE            
631,Adult Social Care,LD u65 Residentl Care Placemnt,LD Residential Care External,W2KB55,Third Party Payments          ,Private Contractors           ,EH01,Miscellaneous Agency Services           ,1700.00,31/07/2015,REV,SUSSEX HEALTH CARE            
632,Adult Social Care,LD u65 Residentl Care Placemnt,LD Residential Care External,W2KB55,Third Party Payments          ,Private Contractors           ,EH01,Miscellaneous Agency Services           ,1700.00,31/07/2015,REV,SUSSEX HEALTH CARE            
633,Adult Social Care,LD u65 Residentl Care Placemnt,LD Residential Care External,W2KB55,Third Party Payments          ,Private Contractors           ,EH01,Miscellaneous Agency Services           ,1700.00,01/08/2015,REV,SUSSEX HEALTH CARE            
634,Adult Social Care,LD u65 Residentl Care Placemnt,LD Residential Care External,W2KB55,Third Party Payments          ,Private Contractors           ,EH01,Miscellaneous Agency Services           ,1700.00,01/08/2015,REV,SUSSEX HEALTH CARE            
635,Adult Social Care,LD u65 Residentl Care Placemnt,LD Residential Care External,W2KB55,Third Party Payments          ,Private Contractors           ,EH01,Miscellaneous Agency Services           ,1700.00,01/08/2015,REV,SUSSEX HEALTH CARE            
636,Adult Social Care,LD u65 Residentl Care Placemnt,LD Residential Care External,W2KB55,Third Party Payments          ,Private Contractors           ,EH01,Miscellaneous Agency Services           ,1700.00,01/08/2015,REV,SUSSEX HEALTH CARE            
637,Adult Social Care,LD u65 Residentl Care Placemnt,LD Residential Care External,W2KB55,Third Party Payments          ,Private Contractors           ,EH01,Miscellaneous Agency Services           ,1700.00,01/08/2015,REV,SUSSEX HEALTH CARE            
638,Adult Social Care,LD u65 Residentl Care Placemnt,LD Residential Care External,W2KB55,Third Party Payments          ,Private Contractors           ,EH01,Miscellaneous Agency Services           ,-1457.14,01/08/2015,REV,SUSSEX HEALTH CARE            
639,Adult Social Care,LD u65 Supported & Other Accom,LD AdultPlacementCont,W2KB32,Third Party Payments          ,Private Contractors           ,EH04,Accommodation Based Support             ,545.00,06/08/2015,REV,COMPASS FOSTERING LONDON LTD  
640,Adult Social Care,LD u65 Supported & Other Accom,LD AdultPlacementCont,W2KB32,Third Party Payments          ,Private Contractors           ,EH04,Accommodation Based Support             ,545.00,06/08/2015,REV,COMPASS FOSTERING LONDON LTD  
641,Adult Social Care,LD u65 Supported & Other Accom,LD AdultPlacementCont,W2KB32,Third Party Payments          ,Private Contractors           ,EH04,Accommodation Based Support             ,545.00,06/08/2015,REV,COMPASS FOSTERING LONDON LTD  
642,Adult Social Care,LD u65 Supported & Other Accom,LD AdultPlacementCont,W2KB32,Third Party Payments          ,Private Contractors           ,EH04,Accommodation Based Support             ,545.00,06/08/2015,REV,COMPASS FOSTERING LONDON LTD  
643,Adult Social Care,LD u65 Residentl Care Placemnt,LD Residential Care External,W2KB55,Third Party Payments          ,Private Contractors           ,EH01,Miscellaneous Agency Services           ,1275.00,03/08/2015,REV,MACINTYRE                     
644,Adult Social Care,LD u65 Residentl Care Placemnt,LD Residential Care External,W2KB55,Third Party Payments          ,Private Contractors           ,EH01,Miscellaneous Agency Services           ,1275.00,03/08/2015,REV,MACINTYRE                     
645,Adult Social Care,LD u65 Residentl Care Placemnt,LD Residential Care External,W2KB55,Third Party Payments          ,Private Contractors           ,EH01,Miscellaneous Agency Services           ,1275.00,03/08/2015,REV,MACINTYRE                     
646,Adult Social Care,LD u65 Residentl Care Placemnt,LD Residential Care External,W2KB55,Third Party Payments          ,Private Contractors           ,EH01,Miscellaneous Agency Services           ,1275.00,03/08/2015,REV,MACINTYRE                     
647,Adult Social Care,LD u65 Residentl Care Placemnt,LD Residential Care External,W2KB55,Third Party Payments          ,Private Contractors           ,EH01,Miscellaneous Agency Services           ,761.31,03/08/2015,REV,MACINTYRE                     
648,Adult Social Care,LD u65 Residentl Care Placemnt,LD Residential Care External,W2KB55,Third Party Payments          ,Private Contractors           ,EH01,Miscellaneous Agency Services           ,761.31,03/08/2015,REV,MACINTYRE                     
649,Adult Social Care,LD u65 Residentl Care Placemnt,LD Residential Care External,W2KB55,Third Party Payments          ,Private Contractors           ,EH01,Miscellaneous Agency Services           ,761.31,03/08/2015,REV,MACINTYRE                     
650,Adult Social Care,LD u65 Residentl Care Placemnt,LD Residential Care External,W2KB55,Third Party Payments          ,Private Contractors           ,EH01,Miscellaneous Agency Services           ,761.31,03/08/2015,REV,MACINTYRE                     
651,Adult Social Care,LD u65 Residentl Care Placemnt,LD Residential Care External,W2KB55,Third Party Payments          ,Private Contractors           ,EH01,Miscellaneous Agency Services           ,990.20,03/08/2015,REV,MACINTYRE                     
652,Adult Social Care,LD u65 Residentl Care Placemnt,LD Residential Care External,W2KB55,Third Party Payments          ,Private Contractors           ,EH01,Miscellaneous Agency Services           ,990.20,03/08/2015,REV,MACINTYRE                     
653,Adult Social Care,LD u65 Residentl Care Placemnt,LD Residential Care External,W2KB55,Third Party Payments          ,Private Contractors           ,EH01,Miscellaneous Agency Services           ,990.20,03/08/2015,REV,MACINTYRE                     
654,Adult Social Care,LD u65 Residentl Care Placemnt,LD Residential Care External,W2KB55,Third Party Payments          ,Private Contractors           ,EH01,Miscellaneous Agency Services           ,990.20,03/08/2015,REV,MACINTYRE                     
655,Adult Social Care,LD u65 Residentl Care Placemnt,LD Residential Care External,W2KB55,Third Party Payments          ,Private Contractors           ,EH01,Miscellaneous Agency Services           ,1013.00,10/08/2015,REV,HAYDON PARK LODGE             
656,Adult Social Care,LD u65 Residentl Care Placemnt,LD Residential Care External,W2KB55,Third Party Payments          ,Private Contractors           ,EH01,Miscellaneous Agency Services           ,1013.00,10/08/2015,REV,HAYDON PARK LODGE             
657,Adult Social Care,LD u65 Residentl Care Placemnt,LD Residential Care External,W2KB55,Third Party Payments          ,Private Contractors           ,EH01,Miscellaneous Agency Services           ,1013.00,10/08/2015,REV,HAYDON PARK LODGE             
658,Adult Social Care,LD u65 Residentl Care Placemnt,LD Residential Care External,W2KB55,Third Party Payments          ,Private Contractors           ,EH01,Miscellaneous Agency Services           ,1013.00,10/08/2015,REV,HAYDON PARK LODGE             
659,Adult Social Care,LD u65 Residentl Care Placemnt,LD Residential Care External,W2KB55,Third Party Payments          ,Private Contractors           ,EH01,Miscellaneous Agency Services           ,585.46,10/08/2015,REV,HAYDON PARK LODGE             
660,Adult Social Care,LD u65 Residentl Care Placemnt,LD Residential Care External,W2KB55,Third Party Payments          ,Private Contractors           ,EH01,Miscellaneous Agency Services           ,585.46,10/08/2015,REV,HAYDON PARK LODGE             
661,Adult Social Care,LD u65 Residentl Care Placemnt,LD Residential Care External,W2KB55,Third Party Payments          ,Private Contractors           ,EH01,Miscellaneous Agency Services           ,585.46,10/08/2015,REV,HAYDON PARK LODGE             
662,Adult Social Care,LD u65 Residentl Care Placemnt,LD Residential Care External,W2KB55,Third Party Payments          ,Private Contractors           ,EH01,Miscellaneous Agency Services           ,585.46,10/08/2015,REV,HAYDON PARK LODGE             
663,Adult Social Care,LD u65 Residentl Care Placemnt,LD Residential Care External,W2KB55,Third Party Payments          ,Private Contractors           ,EH01,Miscellaneous Agency Services           ,964.00,10/08/2015,REV,HAYDON PARK LODGE             
664,Adult Social Care,LD u65 Residentl Care Placemnt,LD Residential Care External,W2KB55,Third Party Payments          ,Private Contractors           ,EH01,Miscellaneous Agency Services           ,964.00,10/08/2015,REV,HAYDON PARK LODGE             
665,Adult Social Care,LD u65 Residentl Care Placemnt,LD Residential Care External,W2KB55,Third Party Payments          ,Private Contractors           ,EH01,Miscellaneous Agency Services           ,964.00,10/08/2015,REV,HAYDON PARK LODGE             
666,Adult Social Care,LD u65 Residentl Care Placemnt,LD Residential Care External,W2KB55,Third Party Payments          ,Private Contractors           ,EH01,Miscellaneous Agency Services           ,964.00,10/08/2015,REV,HAYDON PARK LODGE             
667,Adult Social Care,LD u65 Residentl Care Placemnt,LD Residential Care External,W2KB55,Third Party Payments          ,Private Contractors           ,EH01,Miscellaneous Agency Services           ,930.00,10/08/2015,REV,HAYDON PARK LODGE             
668,Adult Social Care,LD u65 Residentl Care Placemnt,LD Residential Care External,W2KB55,Third Party Payments          ,Private Contractors           ,EH01,Miscellaneous Agency Services           ,930.00,10/08/2015,REV,HAYDON PARK LODGE             
669,Adult Social Care,LD u65 Residentl Care Placemnt,LD Residential Care External,W2KB55,Third Party Payments          ,Private Contractors           ,EH01,Miscellaneous Agency Services           ,930.00,10/08/2015,REV,HAYDON PARK LODGE             
670,Adult Social Care,LD u65 Residentl Care Placemnt,LD Residential Care External,W2KB55,Third Party Payments          ,Private Contractors           ,EH01,Miscellaneous Agency Services           ,930.00,10/08/2015,REV,HAYDON PARK LODGE             
671,Adult Social Care,LD u65 Residentl Care Placemnt,LD Residential Care External,W2KB55,Third Party Payments          ,Private Contractors           ,EH01,Miscellaneous Agency Services           ,1013.00,10/08/2015,REV,HAYDON PARK LODGE             
672,Adult Social Care,LD u65 Residentl Care Placemnt,LD Residential Care External,W2KB55,Third Party Payments          ,Private Contractors           ,EH01,Miscellaneous Agency Services           ,1013.00,10/08/2015,REV,HAYDON PARK LODGE             
673,Adult Social Care,LD u65 Residentl Care Placemnt,LD Residential Care External,W2KB55,Third Party Payments          ,Private Contractors           ,EH01,Miscellaneous Agency Services           ,1013.00,10/08/2015,REV,HAYDON PARK LODGE             
674,Adult Social Care,LD u65 Residentl Care Placemnt,LD Residential Care External,W2KB55,Third Party Payments          ,Private Contractors           ,EH01,Miscellaneous Agency Services           ,1013.00,10/08/2015,REV,HAYDON PARK LODGE             
675,Adult Social Care,LD u65 Residentl Care Placemnt,LD Residential Care External,W2KB55,Third Party Payments          ,Private Contractors           ,EH01,Miscellaneous Agency Services           ,585.46,10/08/2015,REV,HAYDON PARK LODGE             
676,Adult Social Care,LD u65 Residentl Care Placemnt,LD Residential Care External,W2KB55,Third Party Payments          ,Private Contractors           ,EH01,Miscellaneous Agency Services           ,585.46,10/08/2015,REV,HAYDON PARK LODGE             
677,Adult Social Care,LD u65 Residentl Care Placemnt,LD Residential Care External,W2KB55,Third Party Payments          ,Private Contractors           ,EH01,Miscellaneous Agency Services           ,585.46,10/08/2015,REV,HAYDON PARK LODGE             
678,Adult Social Care,LD u65 Residentl Care Placemnt,LD Residential Care External,W2KB55,Third Party Payments          ,Private Contractors           ,EH01,Miscellaneous Agency Services           ,585.46,10/08/2015,REV,HAYDON PARK LODGE             
679,Adult Social Care,LD u65 Residentl Care Placemnt,LD Residential Care External,W2KB55,Third Party Payments          ,Private Contractors           ,EH01,Miscellaneous Agency Services           ,988.00,10/08/2015,REV,HAYDON PARK LODGE             
680,Adult Social Care,LD u65 Residentl Care Placemnt,LD Residential Care External,W2KB55,Third Party Payments          ,Private Contractors           ,EH01,Miscellaneous Agency Services           ,988.00,10/08/2015,REV,HAYDON PARK LODGE             
681,Adult Social Care,LD u65 Residentl Care Placemnt,LD Residential Care External,W2KB55,Third Party Payments          ,Private Contractors           ,EH01,Miscellaneous Agency Services           ,988.00,10/08/2015,REV,HAYDON PARK LODGE             
682,Adult Social Care,LD u65 Residentl Care Placemnt,LD Residential Care External,W2KB55,Third Party Payments          ,Private Contractors           ,EH01,Miscellaneous Agency Services           ,988.00,10/08/2015,REV,HAYDON PARK LODGE             
683,Adult Social Care,LD u65 Residentl Care Placemnt,LD Residential Care External,W2KB55,Third Party Payments          ,Private Contractors           ,EH01,Miscellaneous Agency Services           ,585.46,10/08/2015,REV,HAYDON PARK LODGE             
684,Adult Social Care,LD u65 Residentl Care Placemnt,LD Residential Care External,W2KB55,Third Party Payments          ,Private Contractors           ,EH01,Miscellaneous Agency Services           ,585.46,10/08/2015,REV,HAYDON PARK LODGE             
685,Adult Social Care,LD u65 Residentl Care Placemnt,LD Residential Care External,W2KB55,Third Party Payments          ,Private Contractors           ,EH01,Miscellaneous Agency Services           ,585.46,10/08/2015,REV,HAYDON PARK LODGE             
686,Adult Social Care,LD u65 Residentl Care Placemnt,LD Residential Care External,W2KB55,Third Party Payments          ,Private Contractors           ,EH01,Miscellaneous Agency Services           ,585.46,10/08/2015,REV,HAYDON PARK LODGE             
687,Childrens & Education Services,Chidren's Homes,ART Residential Placements,W1DE57,Third Party Payments          ,Private Contractors           ,EH01,Miscellaneous Agency Services           ,775.00,01/06/2015,REV,REDACTED
688,Childrens & Education Services,Chidren's Homes,ART Residential Placements,W1DE57,Third Party Payments          ,Private Contractors           ,EH01,Miscellaneous Agency Services           ,775.00,01/06/2015,REV,REDACTED
689,Childrens & Education Services,Chidren's Homes,ART Residential Placements,W1DE57,Third Party Payments          ,Private Contractors           ,EH01,Miscellaneous Agency Services           ,775.00,01/06/2015,REV,REDACTED
690,Childrens & Education Services,Chidren's Homes,ART Residential Placements,W1DE57,Third Party Payments          ,Private Contractors           ,EH01,Miscellaneous Agency Services           ,775.00,01/06/2015,REV,REDACTED
691,Childrens & Education Services,Chidren's Homes,ART Residential Placements,W1DE57,Third Party Payments          ,Private Contractors           ,EH01,Miscellaneous Agency Services           ,775.00,01/06/2015,REV,REDACTED
692,Childrens & Education Services,Chidren's Homes,ART Residential Placements,W1DE57,Third Party Payments          ,Private Contractors           ,EH01,Miscellaneous Agency Services           ,775.00,01/06/2015,REV,REDACTED
693,Childrens & Education Services,Chidren's Homes,ART Residential Placements,W1DE57,Third Party Payments          ,Private Contractors           ,EH01,Miscellaneous Agency Services           ,775.00,01/06/2015,REV,REDACTED
694,Childrens & Education Services,Chidren's Homes,ART Residential Placements,W1DE57,Third Party Payments          ,Private Contractors           ,EH01,Miscellaneous Agency Services           ,775.00,01/06/2015,REV,REDACTED
695,Childrens & Education Services,Chidren's Homes,ART Residential Placements,W1DE57,Third Party Payments          ,Private Contractors           ,EH01,Miscellaneous Agency Services           ,775.00,01/06/2015,REV,REDACTED
696,Childrens & Education Services,Chidren's Homes,ART Residential Placements,W1DE57,Third Party Payments          ,Private Contractors           ,EH01,Miscellaneous Agency Services           ,775.00,01/06/2015,REV,REDACTED
697,Childrens & Education Services,Chidren's Homes,ART Residential Placements,W1DE57,Third Party Payments          ,Private Contractors           ,EH01,Miscellaneous Agency Services           ,775.00,01/06/2015,REV,REDACTED
698,Childrens & Education Services,Chidren's Homes,ART Residential Placements,W1DE57,Third Party Payments          ,Private Contractors           ,EH01,Miscellaneous Agency Services           ,775.00,01/06/2015,REV,REDACTED
699,Childrens & Education Services,Chidren's Homes,ART Residential Placements,W1DE57,Third Party Payments          ,Private Contractors           ,EH01,Miscellaneous Agency Services           ,775.00,01/06/2015,REV,REDACTED
700,Childrens & Education Services,Chidren's Homes,ART Residential Placements,W1DE57,Third Party Payments          ,Private Contractors           ,EH01,Miscellaneous Agency Services           ,775.00,01/06/2015,REV,REDACTED
701,Adult Social Care,MH u65 Residentl Care Placemnt,MH Res Care Ext- Mitcham West,W2HD55,Third Party Payments          ,Private Contractors           ,EH01,Miscellaneous Agency Services           ,518.68,06/08/2015,REV,ASTRA HOMES                   
702,Adult Social Care,MH u65 Residentl Care Placemnt,MH Res Care Ext- Mitcham West,W2HD55,Third Party Payments          ,Private Contractors           ,EH01,Miscellaneous Agency Services           ,518.68,06/08/2015,REV,ASTRA HOMES                   
703,Adult Social Care,MH u65 Residentl Care Placemnt,MH Res Care Ext- Mitcham West,W2HD55,Third Party Payments          ,Private Contractors           ,EH01,Miscellaneous Agency Services           ,518.68,06/08/2015,REV,ASTRA HOMES                   
704,Adult Social Care,MH u65 Residentl Care Placemnt,MH Res Care Ext- Mitcham West,W2HD55,Third Party Payments          ,Private Contractors           ,EH01,Miscellaneous Agency Services           ,518.68,06/08/2015,REV,ASTRA HOMES                   
705,Adult Social Care,LD u65 Residentl Care Placemnt,LD Residential Care External,W2KB55,Third Party Payments          ,Private Contractors           ,EH01,Miscellaneous Agency Services           ,949.51,17/07/2015,REV,BRIGSTOCK HOUSE               
706,Adult Social Care,LD u65 Residentl Care Placemnt,LD Residential Care External,W2KB55,Third Party Payments          ,Private Contractors           ,EH01,Miscellaneous Agency Services           ,949.51,17/07/2015,REV,BRIGSTOCK HOUSE               
707,Adult Social Care,LD u65 Residentl Care Placemnt,LD Residential Care External,W2KB55,Third Party Payments          ,Private Contractors           ,EH01,Miscellaneous Agency Services           ,949.51,17/07/2015,REV,BRIGSTOCK HOUSE               
708,Adult Social Care,LD u65 Residentl Care Placemnt,LD Residential Care External,W2KB55,Third Party Payments          ,Private Contractors           ,EH01,Miscellaneous Agency Services           ,949.51,17/07/2015,REV,BRIGSTOCK HOUSE               
709,Adult Social Care,LD u65 Residentl Care Placemnt,LD Residential Care External,W2KB55,Third Party Payments          ,Private Contractors           ,EH01,Miscellaneous Agency Services           ,1602.00,06/07/2015,REV,CARRICKS BROOK                
710,Adult Social Care,LD u65 Residentl Care Placemnt,LD Residential Care External,W2KB55,Third Party Payments          ,Private Contractors           ,EH01,Miscellaneous Agency Services           ,1602.00,06/07/2015,REV,CARRICKS BROOK                
711,Adult Social Care,LD u65 Residentl Care Placemnt,LD Residential Care External,W2KB55,Third Party Payments          ,Private Contractors           ,EH01,Miscellaneous Agency Services           ,1602.00,06/07/2015,REV,CARRICKS BROOK                
712,Adult Social Care,LD u65 Residentl Care Placemnt,LD Residential Care External,W2KB55,Third Party Payments          ,Private Contractors           ,EH01,Miscellaneous Agency Services           ,1602.00,06/07/2015,REV,CARRICKS BROOK                
713,Adult Social Care,LD u65 Residentl Care Placemnt,LD Residential Care External,W2KB55,Third Party Payments          ,Private Contractors           ,EH01,Miscellaneous Agency Services           ,-1373.14,06/07/2015,REV,CARRICKS BROOK                
714,Adult Social Care,LD u65 Residentl Care Placemnt,LD Residential Care External,W2KB55,Third Party Payments          ,Private Contractors           ,EH01,Miscellaneous Agency Services           ,1602.00,06/07/2015,REV,CARRICKS BROOK                
715,Adult Social Care,LD u65 Residentl Care Placemnt,LD Residential Care External,W2KB55,Third Party Payments          ,Private Contractors           ,EH01,Miscellaneous Agency Services           ,628.57,09/07/2015,REV,CHATSWORTH CARE               
716,Adult Social Care,LD u65 Residentl Care Placemnt,LD Residential Care External,W2KB55,Third Party Payments          ,Private Contractors           ,EH01,Miscellaneous Agency Services           ,2200.00,09/07/2015,REV,CHATSWORTH CARE               
717,Adult Social Care,LD u65 Residentl Care Placemnt,LD Residential Care External,W2KB55,Third Party Payments          ,Private Contractors           ,EH01,Miscellaneous Agency Services           ,2200.00,09/07/2015,REV,CHATSWORTH CARE               
718,Adult Social Care,LD u65 Residentl Care Placemnt,LD Residential Care External,W2KB55,Third Party Payments          ,Private Contractors           ,EH01,Miscellaneous Agency Services           ,2200.00,09/07/2015,REV,CHATSWORTH CARE               
719,Adult Social Care,LD u65 Residentl Care Placemnt,LD Residential Care External,W2KB55,Third Party Payments          ,Private Contractors           ,EH01,Miscellaneous Agency Services           ,2200.00,09/07/2015,REV,CHATSWORTH CARE               
720,Adult Social Care,LD u65 Residentl Care Placemnt,LD Residential Care External,W2KB55,Third Party Payments          ,Private Contractors           ,EH01,Miscellaneous Agency Services           ,2200.00,09/07/2015,REV,CHATSWORTH CARE               
721,Adult Social Care,LD u65 Residentl Care Placemnt,LD Residential Care External,W2KB55,Third Party Payments          ,Private Contractors           ,EH01,Miscellaneous Agency Services           ,-1885.71,09/07/2015,REV,CHATSWORTH CARE               
722,Adult Social Care,LD u65 Residentl Care Placemnt,LD Residential Care External,W2KB55,Third Party Payments          ,Private Contractors           ,EH01,Miscellaneous Agency Services           ,1115.23,20/07/2015,REV,REDACTED
723,Adult Social Care,LD u65 Residentl Care Placemnt,LD Residential Care External,W2KB55,Third Party Payments          ,Private Contractors           ,EH01,Miscellaneous Agency Services           ,1115.23,20/07/2015,REV,REDACTED
724,Adult Social Care,LD u65 Residentl Care Placemnt,LD Residential Care External,W2KB55,Third Party Payments          ,Private Contractors           ,EH01,Miscellaneous Agency Services           ,1115.23,20/07/2015,REV,REDACTED
725,Adult Social Care,LD u65 Residentl Care Placemnt,LD Residential Care External,W2KB55,Third Party Payments          ,Private Contractors           ,EH01,Miscellaneous Agency Services           ,1115.23,20/07/2015,REV,REDACTED
726,Adult Social Care,LD u65 Residentl Care Placemnt,LD Residential Care External,W2KB55,Third Party Payments          ,Private Contractors           ,EH01,Miscellaneous Agency Services           ,1375.00,01/08/2015,REV,CARE MANAGEMENT GROUP         
727,Adult Social Care,LD u65 Residentl Care Placemnt,LD Residential Care External,W2KB55,Third Party Payments          ,Private Contractors           ,EH01,Miscellaneous Agency Services           ,1375.00,01/08/2015,REV,CARE MANAGEMENT GROUP         
728,Adult Social Care,LD u65 Residentl Care Placemnt,LD Residential Care External,W2KB55,Third Party Payments          ,Private Contractors           ,EH01,Miscellaneous Agency Services           ,1375.00,01/08/2015,REV,CARE MANAGEMENT GROUP         
729,Adult Social Care,LD u65 Residentl Care Placemnt,LD Residential Care External,W2KB55,Third Party Payments          ,Private Contractors           ,EH01,Miscellaneous Agency Services           ,1375.00,01/08/2015,REV,CARE MANAGEMENT GROUP         
730,Adult Social Care,LD u65 Residentl Care Placemnt,LD Residential Care External,W2KB55,Third Party Payments          ,Private Contractors           ,EH01,Miscellaneous Agency Services           ,1511.00,01/08/2015,REV,CARE MANAGEMENT GROUP         
731,Adult Social Care,LD u65 Residentl Care Placemnt,LD Residential Care External,W2KB55,Third Party Payments          ,Private Contractors           ,EH01,Miscellaneous Agency Services           ,1511.00,01/08/2015,REV,CARE MANAGEMENT GROUP         
732,Adult Social Care,LD u65 Residentl Care Placemnt,LD Residential Care External,W2KB55,Third Party Payments          ,Private Contractors           ,EH01,Miscellaneous Agency Services           ,1511.00,01/08/2015,REV,CARE MANAGEMENT GROUP         
733,Adult Social Care,LD u65 Residentl Care Placemnt,LD Residential Care External,W2KB55,Third Party Payments          ,Private Contractors           ,EH01,Miscellaneous Agency Services           ,1511.00,01/08/2015,REV,CARE MANAGEMENT GROUP         
734,Adult Social Care,LD u65 Residentl Care Placemnt,LD Residential Care External,W2KB55,Third Party Payments          ,Private Contractors           ,EH01,Miscellaneous Agency Services           ,1495.31,01/08/2015,REV,CARE MANAGEMENT GROUP         
735,Adult Social Care,LD u65 Residentl Care Placemnt,LD Residential Care External,W2KB55,Third Party Payments          ,Private Contractors           ,EH01,Miscellaneous Agency Services           ,1495.31,01/08/2015,REV,CARE MANAGEMENT GROUP         
736,Adult Social Care,LD u65 Residentl Care Placemnt,LD Residential Care External,W2KB55,Third Party Payments          ,Private Contractors           ,EH01,Miscellaneous Agency Services           ,1495.31,01/08/2015,REV,CARE MANAGEMENT GROUP         
737,Adult Social Care,LD u65 Residentl Care Placemnt,LD Residential Care External,W2KB55,Third Party Payments          ,Private Contractors           ,EH01,Miscellaneous Agency Services           ,1495.31,01/08/2015,REV,CARE MANAGEMENT GROUP         
738,Adult Social Care,LD u65 Residentl Care Placemnt,LD Residential Care External,W2KB55,Third Party Payments          ,Private Contractors           ,EH01,Miscellaneous Agency Services           ,1261.00,01/08/2015,REV,CARE MANAGEMENT GROUP         
739,Adult Social Care,LD u65 Residentl Care Placemnt,LD Residential Care External,W2KB55,Third Party Payments          ,Private Contractors           ,EH01,Miscellaneous Agency Services           ,1261.00,01/08/2015,REV,CARE MANAGEMENT GROUP         
740,Adult Social Care,LD u65 Residentl Care Placemnt,LD Residential Care External,W2KB55,Third Party Payments          ,Private Contractors           ,EH01,Miscellaneous Agency Services           ,1261.00,01/08/2015,REV,CARE MANAGEMENT GROUP         
741,Adult Social Care,LD u65 Residentl Care Placemnt,LD Residential Care External,W2KB55,Third Party Payments          ,Private Contractors           ,EH01,Miscellaneous Agency Services           ,1261.00,01/08/2015,REV,CARE MANAGEMENT GROUP         
742,Adult Social Care,LD u65 Residentl Care Placemnt,LD Residential Care External,W2KB55,Third Party Payments          ,Private Contractors           ,EH01,Miscellaneous Agency Services           ,834.00,01/08/2015,REV,CARE MANAGEMENT GROUP         
743,Adult Social Care,LD u65 Residentl Care Placemnt,LD Residential Care External,W2KB55,Third Party Payments          ,Private Contractors           ,EH01,Miscellaneous Agency Services           ,834.00,01/08/2015,REV,CARE MANAGEMENT GROUP         
744,Adult Social Care,LD u65 Residentl Care Placemnt,LD Residential Care External,W2KB55,Third Party Payments          ,Private Contractors           ,EH01,Miscellaneous Agency Services           ,834.00,01/08/2015,REV,CARE MANAGEMENT GROUP         
745,Adult Social Care,LD u65 Residentl Care Placemnt,LD Residential Care External,W2KB55,Third Party Payments          ,Private Contractors           ,EH01,Miscellaneous Agency Services           ,834.00,01/08/2015,REV,CARE MANAGEMENT GROUP         
746,Adult Social Care,LD u65 Residentl Care Placemnt,LD Residential Care External,W2KB55,Third Party Payments          ,Private Contractors           ,EH01,Miscellaneous Agency Services           ,1195.00,26/07/2015,REV,GREENFIELD CARE HOMES LTD     
747,Adult Social Care,LD u65 Residentl Care Placemnt,LD Residential Care External,W2KB55,Third Party Payments          ,Private Contractors           ,EH01,Miscellaneous Agency Services           ,1195.00,26/07/2015,REV,GREENFIELD CARE HOMES LTD     
748,Adult Social Care,LD u65 Residentl Care Placemnt,LD Residential Care External,W2KB55,Third Party Payments          ,Private Contractors           ,EH01,Miscellaneous Agency Services           ,1195.00,26/07/2015,REV,GREENFIELD CARE HOMES LTD     
749,Adult Social Care,LD u65 Residentl Care Placemnt,LD Residential Care External,W2KB55,Third Party Payments          ,Private Contractors           ,EH01,Miscellaneous Agency Services           ,1195.00,26/07/2015,REV,GREENFIELD CARE HOMES LTD     
750,Adult Social Care,LD u65 Residentl Care Placemnt,LD Residential Care External,W2KB55,Third Party Payments          ,Private Contractors           ,EH01,Miscellaneous Agency Services           ,1183.00,27/07/2015,REV,GREENFIELD CARE HOMES LTD     
751,Adult Social Care,LD u65 Residentl Care Placemnt,LD Residential Care External,W2KB55,Third Party Payments          ,Private Contractors           ,EH01,Miscellaneous Agency Services           ,1183.00,27/07/2015,REV,GREENFIELD CARE HOMES LTD     
752,Adult Social Care,LD u65 Residentl Care Placemnt,LD Residential Care External,W2KB55,Third Party Payments          ,Private Contractors           ,EH01,Miscellaneous Agency Services           ,1183.00,27/07/2015,REV,GREENFIELD CARE HOMES LTD     
753,Adult Social Care,LD u65 Residentl Care Placemnt,LD Residential Care External,W2KB55,Third Party Payments          ,Private Contractors           ,EH01,Miscellaneous Agency Services           ,1183.00,27/07/2015,REV,GREENFIELD CARE HOMES LTD     
754,Adult Social Care,LD u65 Residentl Care Placemnt,LD Residential Care External,W2KB55,Third Party Payments          ,Private Contractors           ,EH01,Miscellaneous Agency Services           ,1195.00,26/07/2015,REV,GREENFIELD CARE HOMES LTD     
755,Adult Social Care,LD u65 Residentl Care Placemnt,LD Residential Care External,W2KB55,Third Party Payments          ,Private Contractors           ,EH01,Miscellaneous Agency Services           ,1195.00,26/07/2015,REV,GREENFIELD CARE HOMES LTD     
756,Adult Social Care,LD u65 Residentl Care Placemnt,LD Residential Care External,W2KB55,Third Party Payments          ,Private Contractors           ,EH01,Miscellaneous Agency Services           ,1195.00,26/07/2015,REV,GREENFIELD CARE HOMES LTD     
757,Adult Social Care,LD u65 Residentl Care Placemnt,LD Residential Care External,W2KB55,Third Party Payments          ,Private Contractors           ,EH01,Miscellaneous Agency Services           ,1195.00,26/07/2015,REV,GREENFIELD CARE HOMES LTD     
758,Adult Social Care,LD u65 Residentl Care Placemnt,LD Residential Care External,W2KB55,Third Party Payments          ,Private Contractors           ,EH01,Miscellaneous Agency Services           ,1195.00,26/07/2015,REV,GREENFIELD CARE HOMES LTD     
759,Adult Social Care,LD u65 Residentl Care Placemnt,LD Residential Care External,W2KB55,Third Party Payments          ,Private Contractors           ,EH01,Miscellaneous Agency Services           ,1195.00,26/07/2015,REV,GREENFIELD CARE HOMES LTD     
760,Adult Social Care,LD u65 Residentl Care Placemnt,LD Residential Care External,W2KB55,Third Party Payments          ,Private Contractors           ,EH01,Miscellaneous Agency Services           ,1195.00,26/07/2015,REV,GREENFIELD CARE HOMES LTD     
761,Adult Social Care,LD u65 Residentl Care Placemnt,LD Residential Care External,W2KB55,Third Party Payments          ,Private Contractors           ,EH01,Miscellaneous Agency Services           ,1195.00,26/07/2015,REV,GREENFIELD CARE HOMES LTD     
762,Adult Social Care,LD u65 Residentl Care Placemnt,LD Residential Care External,W2KB55,Third Party Payments          ,Private Contractors           ,EH01,Miscellaneous Agency Services           ,1186.00,26/07/2015,REV,GREENFIELD CARE HOMES LTD     
763,Adult Social Care,LD u65 Residentl Care Placemnt,LD Residential Care External,W2KB55,Third Party Payments          ,Private Contractors           ,EH01,Miscellaneous Agency Services           ,1186.00,26/07/2015,REV,GREENFIELD CARE HOMES LTD     
764,Adult Social Care,LD u65 Residentl Care Placemnt,LD Residential Care External,W2KB55,Third Party Payments          ,Private Contractors           ,EH01,Miscellaneous Agency Services           ,1186.00,26/07/2015,REV,GREENFIELD CARE HOMES LTD     
765,Adult Social Care,LD u65 Residentl Care Placemnt,LD Residential Care External,W2KB55,Third Party Payments          ,Private Contractors           ,EH01,Miscellaneous Agency Services           ,1186.00,26/07/2015,REV,GREENFIELD CARE HOMES LTD     
766,Adult Social Care,LD u65 Residentl Care Placemnt,LD Residential Care External,W2KB55,Third Party Payments          ,Private Contractors           ,EH01,Miscellaneous Agency Services           ,1156.00,26/07/2015,REV,GREENFIELD CARE HOMES LTD     
767,Adult Social Care,LD u65 Residentl Care Placemnt,LD Residential Care External,W2KB55,Third Party Payments          ,Private Contractors           ,EH01,Miscellaneous Agency Services           ,1156.00,26/07/2015,REV,GREENFIELD CARE HOMES LTD     
768,Adult Social Care,LD u65 Residentl Care Placemnt,LD Residential Care External,W2KB55,Third Party Payments          ,Private Contractors           ,EH01,Miscellaneous Agency Services           ,1156.00,26/07/2015,REV,GREENFIELD CARE HOMES LTD     
769,Adult Social Care,LD u65 Residentl Care Placemnt,LD Residential Care External,W2KB55,Third Party Payments          ,Private Contractors           ,EH01,Miscellaneous Agency Services           ,1156.00,26/07/2015,REV,GREENFIELD CARE HOMES LTD     
770,Adult Social Care,LD u65 Residentl Care Placemnt,LD Residential Care External,W2KB55,Third Party Payments          ,Private Contractors           ,EH01,Miscellaneous Agency Services           ,750.00,26/07/2015,REV,GREENFIELD CARE HOMES LTD     
771,Adult Social Care,LD u65 Residentl Care Placemnt,LD Residential Care External,W2KB55,Third Party Payments          ,Private Contractors           ,EH01,Miscellaneous Agency Services           ,750.00,26/07/2015,REV,GREENFIELD CARE HOMES LTD     
772,Adult Social Care,LD u65 Residentl Care Placemnt,LD Residential Care External,W2KB55,Third Party Payments          ,Private Contractors           ,EH01,Miscellaneous Agency Services           ,750.00,26/07/2015,REV,GREENFIELD CARE HOMES LTD     
773,Adult Social Care,LD u65 Residentl Care Placemnt,LD Residential Care External,W2KB55,Third Party Payments          ,Private Contractors           ,EH01,Miscellaneous Agency Services           ,750.00,26/07/2015,REV,GREENFIELD CARE HOMES LTD     
774,Adult Social Care,LD u65 Residentl Care Placemnt,LD Residential Care External,W2KB55,Third Party Payments          ,Private Contractors           ,EH01,Miscellaneous Agency Services           ,1311.00,01/08/2015,REV,KENT AUTISTIC TRUST           
775,Adult Social Care,LD u65 Residentl Care Placemnt,LD Residential Care External,W2KB55,Third Party Payments          ,Private Contractors           ,EH01,Miscellaneous Agency Services           ,1311.00,01/08/2015,REV,KENT AUTISTIC TRUST           
776,Adult Social Care,LD u65 Residentl Care Placemnt,LD Residential Care External,W2KB55,Third Party Payments          ,Private Contractors           ,EH01,Miscellaneous Agency Services           ,1311.00,01/08/2015,REV,KENT AUTISTIC TRUST           
777,Adult Social Care,LD u65 Residentl Care Placemnt,LD Residential Care External,W2KB55,Third Party Payments          ,Private Contractors           ,EH01,Miscellaneous Agency Services           ,1311.00,01/08/2015,REV,KENT AUTISTIC TRUST           
778,Adult Social Care,LD u65 Residentl Care Placemnt,LD Residential Care External,W2KB55,Third Party Payments          ,Private Contractors           ,EH01,Miscellaneous Agency Services           ,2150.00,31/07/2015,REV,LONDON CARE PARTNERSHIP       
779,Adult Social Care,LD u65 Residentl Care Placemnt,LD Residential Care External,W2KB55,Third Party Payments          ,Private Contractors           ,EH01,Miscellaneous Agency Services           ,2150.00,31/07/2015,REV,LONDON CARE PARTNERSHIP       
780,Adult Social Care,LD u65 Residentl Care Placemnt,LD Residential Care External,W2KB55,Third Party Payments          ,Private Contractors           ,EH01,Miscellaneous Agency Services           ,2150.00,31/07/2015,REV,LONDON CARE PARTNERSHIP       
781,Adult Social Care,LD u65 Residentl Care Placemnt,LD Residential Care External,W2KB55,Third Party Payments          ,Private Contractors           ,EH01,Miscellaneous Agency Services           ,2150.00,31/07/2015,REV,LONDON CARE PARTNERSHIP       
782,Adult Social Care,LD u65 Residentl Care Placemnt,LD Residential Care External,W2KB55,Third Party Payments          ,Private Contractors           ,EH01,Miscellaneous Agency Services           ,560.00,06/07/2015,REV,OAKDOWN HOUSE LTD             
783,Adult Social Care,LD u65 Residentl Care Placemnt,LD Residential Care External,W2KB55,Third Party Payments          ,Private Contractors           ,EH01,Miscellaneous Agency Services           ,560.00,06/07/2015,REV,OAKDOWN HOUSE LTD             
784,Adult Social Care,LD u65 Residentl Care Placemnt,LD Residential Care External,W2KB55,Third Party Payments          ,Private Contractors           ,EH01,Miscellaneous Agency Services           ,560.00,06/07/2015,REV,OAKDOWN HOUSE LTD             
785,Adult Social Care,LD u65 Residentl Care Placemnt,LD Residential Care External,W2KB55,Third Party Payments          ,Private Contractors           ,EH01,Miscellaneous Agency Services           ,560.00,06/07/2015,REV,OAKDOWN HOUSE LTD             
786,Adult Social Care,LD u65 Residentl Care Placemnt,LD Residential Care External,W2KB55,Third Party Payments          ,Private Contractors           ,EH01,Miscellaneous Agency Services           ,560.00,06/07/2015,REV,OAKDOWN HOUSE LTD             
787,Adult Social Care,LD u65 Residentl Care Placemnt,LD Residential Care External,W2KB55,Third Party Payments          ,Private Contractors           ,EH01,Miscellaneous Agency Services           ,1089.00,22/07/2015,REV,REDACTED
788,Adult Social Care,LD u65 Residentl Care Placemnt,LD Residential Care External,W2KB55,Third Party Payments          ,Private Contractors           ,EH01,Miscellaneous Agency Services           ,1089.00,22/07/2015,REV,REDACTED
789,Adult Social Care,LD u65 Residentl Care Placemnt,LD Residential Care External,W2KB55,Third Party Payments          ,Private Contractors           ,EH01,Miscellaneous Agency Services           ,1089.00,22/07/2015,REV,REDACTED
790,Adult Social Care,LD u65 Residentl Care Placemnt,LD Residential Care External,W2KB55,Third Party Payments          ,Private Contractors           ,EH01,Miscellaneous Agency Services           ,1089.00,22/07/2015,REV,REDACTED
791,Adult Social Care,LD u65 Residentl Care Placemnt,LD Comm -Residential-Orch Hill,W2KR55,Third Party Payments          ,Private Contractors           ,EH01,Miscellaneous Agency Services           ,1496.02,16/07/2015,REV,PROSPECT HOUSING & SUPPORT SER
792,Adult Social Care,LD u65 Residentl Care Placemnt,LD Comm -Residential-Orch Hill,W2KR55,Third Party Payments          ,Private Contractors           ,EH01,Miscellaneous Agency Services           ,1496.02,16/07/2015,REV,PROSPECT HOUSING & SUPPORT SER
793,Adult Social Care,LD u65 Residentl Care Placemnt,LD Comm -Residential-Orch Hill,W2KR55,Third Party Payments          ,Private Contractors           ,EH01,Miscellaneous Agency Services           ,1496.02,16/07/2015,REV,PROSPECT HOUSING & SUPPORT SER
794,Adult Social Care,LD u65 Residentl Care Placemnt,LD Comm -Residential-Orch Hill,W2KR55,Third Party Payments          ,Private Contractors           ,EH01,Miscellaneous Agency Services           ,1496.02,16/07/2015,REV,PROSPECT HOUSING & SUPPORT SER
795,Adult Social Care,LD u65 Residentl Care Placemnt,LD Residential Care External,W2KB55,Third Party Payments          ,Private Contractors           ,EH01,Miscellaneous Agency Services           ,685.71,01/08/2015,REV,RAPKYNS CARE CENTRE           
796,Adult Social Care,LD u65 Residentl Care Placemnt,LD Residential Care External,W2KB55,Third Party Payments          ,Private Contractors           ,EH01,Miscellaneous Agency Services           ,2400.00,01/08/2015,REV,RAPKYNS CARE CENTRE           
797,Adult Social Care,LD u65 Residentl Care Placemnt,LD Residential Care External,W2KB55,Third Party Payments          ,Private Contractors           ,EH01,Miscellaneous Agency Services           ,2400.00,01/08/2015,REV,RAPKYNS CARE CENTRE           
798,Adult Social Care,LD u65 Residentl Care Placemnt,LD Residential Care External,W2KB55,Third Party Payments          ,Private Contractors           ,EH01,Miscellaneous Agency Services           ,2400.00,01/08/2015,REV,RAPKYNS CARE CENTRE           
799,Adult Social Care,LD u65 Residentl Care Placemnt,LD Residential Care External,W2KB55,Third Party Payments          ,Private Contractors           ,EH01,Miscellaneous Agency Services           ,2400.00,01/08/2015,REV,RAPKYNS CARE CENTRE           
800,Adult Social Care,LD u65 Residentl Care Placemnt,LD Residential Care External,W2KB55,Third Party Payments          ,Private Contractors           ,EH01,Miscellaneous Agency Services           ,2400.00,01/08/2015,REV,RAPKYNS CARE CENTRE           
801,Adult Social Care,LD u65 Residentl Care Placemnt,LD Residential Care External,W2KB55,Third Party Payments          ,Private Contractors           ,EH01,Miscellaneous Agency Services           ,-2057.14,01/08/2015,REV,RAPKYNS CARE CENTRE           
802,Adult Social Care,LD u65 Residentl Care Placemnt,LD Residential Care External,W2KB55,Third Party Payments          ,Private Contractors           ,EH01,Miscellaneous Agency Services           ,1320.00,10/08/2015,REV,THE REGARD PARTNERSHIP LTD    
803,Adult Social Care,LD u65 Residentl Care Placemnt,LD Residential Care External,W2KB55,Third Party Payments          ,Private Contractors           ,EH01,Miscellaneous Agency Services           ,1320.00,10/08/2015,REV,THE REGARD PARTNERSHIP LTD    
804,Adult Social Care,LD u65 Residentl Care Placemnt,LD Residential Care External,W2KB55,Third Party Payments          ,Private Contractors           ,EH01,Miscellaneous Agency Services           ,1320.00,10/08/2015,REV,THE REGARD PARTNERSHIP LTD    
805,Adult Social Care,LD u65 Residentl Care Placemnt,LD Residential Care External,W2KB55,Third Party Payments          ,Private Contractors           ,EH01,Miscellaneous Agency Services           ,1320.00,10/08/2015,REV,THE REGARD PARTNERSHIP LTD    
806,Adult Social Care,LD u65 Residentl Care Placemnt,LD Residential Care External,W2KB55,Third Party Payments          ,Private Contractors           ,EH01,Miscellaneous Agency Services           ,1300.00,10/08/2015,REV,THE REGARD PARTNERSHIP LTD    
807,Adult Social Care,LD u65 Residentl Care Placemnt,LD Residential Care External,W2KB55,Third Party Payments          ,Private Contractors           ,EH01,Miscellaneous Agency Services           ,1300.00,10/08/2015,REV,THE REGARD PARTNERSHIP LTD    
808,Adult Social Care,LD u65 Residentl Care Placemnt,LD Residential Care External,W2KB55,Third Party Payments          ,Private Contractors           ,EH01,Miscellaneous Agency Services           ,1300.00,10/08/2015,REV,THE REGARD PARTNERSHIP LTD    
809,Adult Social Care,LD u65 Residentl Care Placemnt,LD Residential Care External,W2KB55,Third Party Payments          ,Private Contractors           ,EH01,Miscellaneous Agency Services           ,1300.00,10/08/2015,REV,THE REGARD PARTNERSHIP LTD    
810,Adult Social Care,LD u65 Residentl Care Placemnt,LD Residential Care External,W2KB55,Third Party Payments          ,Private Contractors           ,EH01,Miscellaneous Agency Services           ,1750.00,05/08/2015,REV,YOYAGE CARE LTD               
811,Adult Social Care,LD u65 Residentl Care Placemnt,LD Residential Care External,W2KB55,Third Party Payments          ,Private Contractors           ,EH01,Miscellaneous Agency Services           ,1750.00,05/08/2015,REV,YOYAGE CARE LTD               
812,Adult Social Care,LD u65 Residentl Care Placemnt,LD Residential Care External,W2KB55,Third Party Payments          ,Private Contractors           ,EH01,Miscellaneous Agency Services           ,1750.00,05/08/2015,REV,YOYAGE CARE LTD               
813,Adult Social Care,LD u65 Residentl Care Placemnt,LD Residential Care External,W2KB55,Third Party Payments          ,Private Contractors           ,EH01,Miscellaneous Agency Services           ,1750.00,05/08/2015,REV,YOYAGE CARE LTD               
814,Adult Social Care,LD u65 Residentl Care Placemnt,LD Residential Care External,W2KB55,Third Party Payments          ,Private Contractors           ,EH01,Miscellaneous Agency Services           ,1291.00,05/08/2015,REV,YOYAGE CARE LTD               
815,Adult Social Care,LD u65 Residentl Care Placemnt,LD Residential Care External,W2KB55,Third Party Payments          ,Private Contractors           ,EH01,Miscellaneous Agency Services           ,1291.00,05/08/2015,REV,YOYAGE CARE LTD               
816,Adult Social Care,LD u65 Residentl Care Placemnt,LD Residential Care External,W2KB55,Third Party Payments          ,Private Contractors           ,EH01,Miscellaneous Agency Services           ,1291.00,05/08/2015,REV,YOYAGE CARE LTD               
817,Adult Social Care,LD u65 Residentl Care Placemnt,LD Residential Care External,W2KB55,Third Party Payments          ,Private Contractors           ,EH01,Miscellaneous Agency Services           ,1291.00,05/08/2015,REV,YOYAGE CARE LTD               
818,Adult Social Care,LD u65 Residentl Care Placemnt,LD Residential Care External,W2KB55,Third Party Payments          ,Private Contractors           ,EH01,Miscellaneous Agency Services           ,1600.00,05/08/2015,REV,YOYAGE CARE LTD               
819,Adult Social Care,LD u65 Residentl Care Placemnt,LD Residential Care External,W2KB55,Third Party Payments          ,Private Contractors           ,EH01,Miscellaneous Agency Services           ,1600.00,05/08/2015,REV,YOYAGE CARE LTD               
820,Adult Social Care,LD u65 Residentl Care Placemnt,LD Residential Care External,W2KB55,Third Party Payments          ,Private Contractors           ,EH01,Miscellaneous Agency Services           ,1600.00,05/08/2015,REV,YOYAGE CARE LTD               
821,Adult Social Care,LD u65 Residentl Care Placemnt,LD Residential Care External,W2KB55,Third Party Payments          ,Private Contractors           ,EH01,Miscellaneous Agency Services           ,1600.00,05/08/2015,REV,YOYAGE CARE LTD               
822,Adult Social Care,LD u65 Residentl Care Placemnt,LD Residential Care External,W2KB55,Third Party Payments          ,Private Contractors           ,EH01,Miscellaneous Agency Services           ,1419.55,21/06/2015,REV,AUTISM SUSSEX LTD             
823,Adult Social Care,LD u65 Residentl Care Placemnt,LD Residential Care External,W2KB55,Third Party Payments          ,Private Contractors           ,EH01,Miscellaneous Agency Services           ,1419.55,21/06/2015,REV,AUTISM SUSSEX LTD             
824,Adult Social Care,LD u65 Residentl Care Placemnt,LD Residential Care External,W2KB55,Third Party Payments          ,Private Contractors           ,EH01,Miscellaneous Agency Services           ,1419.55,21/06/2015,REV,AUTISM SUSSEX LTD             
825,Adult Social Care,LD u65 Residentl Care Placemnt,LD Residential Care External,W2KB55,Third Party Payments          ,Private Contractors           ,EH01,Miscellaneous Agency Services           ,1419.55,21/06/2015,REV,AUTISM SUSSEX LTD             
826,Adult Social Care,LD u65 Residentl Care Placemnt,LD Residential Care External,W2KB55,Third Party Payments          ,Private Contractors           ,EH01,Miscellaneous Agency Services           ,1419.55,19/07/2015,REV,AUTISM SUSSEX LTD             
827,Adult Social Care,LD u65 Residentl Care Placemnt,LD Residential Care External,W2KB55,Third Party Payments          ,Private Contractors           ,EH01,Miscellaneous Agency Services           ,1419.55,19/07/2015,REV,AUTISM SUSSEX LTD             
828,Adult Social Care,LD u65 Residentl Care Placemnt,LD Residential Care External,W2KB55,Third Party Payments          ,Private Contractors           ,EH01,Miscellaneous Agency Services           ,1419.55,19/07/2015,REV,AUTISM SUSSEX LTD             
829,Adult Social Care,LD u65 Residentl Care Placemnt,LD Residential Care External,W2KB55,Third Party Payments          ,Private Contractors           ,EH01,Miscellaneous Agency Services           ,1419.55,19/07/2015,REV,AUTISM SUSSEX LTD             
